{"text_format":"1","workbook":"xlsx","n_sheets":18,"sheets":["Project Info & Instructions","Split Sample Comparison","Core Data","AC % Data","Mix Acceptance","Air Voids Pay Factor","Density Pay Factor","Test Strip Summary","Gauge-Core Variability","QC-1 Density Worksheet","QC-2 Density Worksheet","QV-1 Density Worksheet","QV-2 Density Worksheet","QC-1 Correlation","QC-2 Correlation","QV-1 Correlation","QV-2 Correlation","Data Summary"],"not_rendered":{"charts":5,"images":2,"macros":1,"external_links":2,"defined_names":343,"comments":0,"pivot_tables":0},"unopened":[],"bounds":{"document_bytes":16777216,"sheet_cells":100000,"rows_first":2000,"rows_last":500,"rows_between":2000,"halvings":0,"cell_chars":16384,"cell_head_chars":4096},"cells_cut":0,"cells_raw":0,"read":"whole","date_system":"1900"}

{"sheet":"Project Info & Instructions","index":0,"n_rows":73,"n_cols":22,"rows_kept":73,"cut":false,"hidden":false,"merged":[[36,2,36,8],[11,9,11,10],[13,9,13,10],[12,6,12,8],[15,6,15,8],[14,6,14,8],[12,9,12,10],[14,9,14,10],[30,6,30,8],[29,6,29,8],[28,6,28,8],[19,6,19,8],[18,6,18,8],[17,6,17,8],[32,2,33,8],[5,14,7,14],[8,2,8,8],[27,6,27,8],[16,6,16,8],[0,2,5,8],[6,2,6,8],[7,2,7,8],[9,6,9,8],[10,6,10,8],[11,6,11,8],[25,6,25,8],[26,6,26,8],[21,6,21,8],[20,9,22,10],[20,6,20,8],[2,9,10,10]]}
[null,null,"Wisconsin Department \nof Transportation "]
[]
[null,null,null,null,null,null,null,null,null,"Do Not use / or + symbols in data entry cells. "]
[]
[null,null,null,null,null,null,null,null,null,null,null,null,null,null,1]
["Revised 04-08-22",null,null,null,null,null,null,null,null,null,null,null,null,null,"Test strip type ref"]
[null,null,"HMA PWL Test Strip Spreadsheet"]
[null,null,{"$f":"CONCATENATE(O10,\" Project Information\")","v":"Combined Density and Volumetrics Test Strip Project Information"},null,null,null,null,null,null,null,null,null,null,null,null,null,null,null,null,{"$f":"CONCATENATE(G16,C18,G17)","v":""},"LowerLTPCC",93]
[null,"Test Strip Type:",null,null,null,null,null,null,null,null,null,"Lower ","Upper","Inc/Dec Test",1]
[null,"Date:",null,null,null,"Paving Width(ft):",null,null,null,null,null,{"$f":"IF(O14=FALSE,G14+100,G14-100)","v":100},{"$f":"IF(O14=FALSE,(G14+ABS(((I14-G14)/2)-150)),(G14-(ABS(((I14-G14)/2)+150))))","v":{"$error":"#VALUE!"}},{"$f":"I14-G14","v":{"$error":"#VALUE!"}},{"$f":"IF(O9=1,\"Combined Density and Volumetrics Test Strip\",IF(O9=2, \"Density Only Test Strip\",IF(O9=3,\"Volumetrics Only Test Strip\",\"\")))","v":"Combined Density and Volumetrics Test Strip"},null,null,null,null,null,"LowerMTPCC",93]
[null,"Test Strip #:",null,null,null,"Lane Width(ft):",null,null,null,null,null,{"$f":"IF(O14=FALSE,(G14+ABS(((I14-G14)/2)+150)),(G14-ABS(((I14-G14)/2)-150)))","v":{"$error":"#VALUE!"}},{"$f":"IF(O14=FALSE,I14-100,I14+100)","v":{"$error":"#VALUE!"}},null,{"$f":"IF(O9=1,\"Combined\",IF(O9=2, \"Density-Only\",IF(O9=3,\"Volumetrics-Only\",\"\")))","v":"Combined"},null,null,null,null,null,"LowerHTPCC",93]
[null,"Contract:",null,null,null,"Nominal Thickness(in):",null,null,null,"Calculated Tonnage",null,50,{"$f":"L13/3","v":0},{"$f":"L13/3*2","v":0},{"$f":"L13","v":0},null,null,null,null,null,"LowerSMAPCC",93]
[null,"Job No.-Project ID:",null,null,null,"Estimated Tonnage:",null,null,null,{"$f":"IF(G15=\"\",\"\",(G15*G10)/9*112*G12/2000)","v":""},null,{"$f":"IF(O13=TRUE,J13,G13)","v":0},{"$f":"IF(O13=\"TRUE\",((G15*G10)/9*112*G12/2000),G13*2000/G12*9/112/G10)","v":{"$error":"#DIV/0!"}},null,false,null,null,null,null,null,"LowerLTHMA",93]
[null,"Route-Road:",null,null,null," Estimated Stations- Start:",null,"End:",{"$f":"IF(G14=\"\",\"\",IF(AND(O13=TRUE,O14=TRUE),G14-G15,IF(AND(O13=TRUE,O14=FALSE),G14+G15,IF(AND(O13=FALSE,O14=TRUE),G14-J15,IF(AND(O13=FALSE,O14=FALSE),G14+J15,\"\")))))","v":""},"Calculated Length",null,null,null,null,false,null,null,null,null,null,"LowerMTHMA",93]
[null,"County:",null,null,null,"Estimated Length(ft):",null,null,null,{"$f":"IF(G13=\"\",\"\",G13*2000/G12*9/112/G10)","v":""},null,{"$f":"IF(O13=FALSE,J15,G15)","v":""},null,null,null,null,null,null,null,null,"LowerHTHMA",93]
[null,"WisDOT Mix No.:",null,null,null,"Test Strip Pavement Layer:",null,null,null,null,null,null,null,null,null,null,null,null,null,null,"LowerSMAHMA",93]
[null,"Mix Gradation:",null,null,null,"Underlying Layer:",null,null,null,null,null,null,null,null,null,null,null,null,null,null,"LowerLTCrushed Aggregate",91]
[null,"Mix Traffic Vol:",null,null,null,"Density Lower Spec Limit(%):",{"$f":"IF(OR(G16=\"\",G17=\"\",C18=\"\"),\"Enter Mix and Layer Info\",IF(OR(G16=\"Upper\",G16=\"Middle\"),93,VLOOKUP(T8,U8:V30,2,FALSE)))","v":"Enter Mix and Layer Info"},null,null,null,null,null,null,null,null,null,null,null,null,null,"LowerMTCrushed Aggregate",91]
[null,"Asphalt Binder:",null,null,null,"Project Leader:",null,null,null,null,null,null,null,null,null,null,null,null,null,null,"LowerHTCrushed Aggregate",92]
[null,"Binder Designation:",null,null,null,"Contractor:",null,null,null,null,null,null,null,null,null,null,null,null,null,null,"LowerSMACrushed Aggregate",93]
[null,"Mix Type:",{"$f":"CONCATENATE(C17,\"-\",C18,\"-\",C19,C20)","v":"--"},null,null,"JMF Gmm:",null,null,null,"From WisDOT 250 Report/ Current JMF",null,null,null,null,null,null,null,null,null,null,"LowerLTRecycled HMA",91]
[null,"Contract Unit Price:",null,null,null," JMF AC  %: ",null,null,null,null,null,null,50,null,null,null,null,null,null,null,"LowerMTRecycled HMA",91]
[null,"Final Tonnage:",null,null,null,"JMF AC Sp Gr:",null,"JMF Gse: ",null,null,null,null,null,"#1 S/E ","#2 S/E",null,null,null,null,null,"LowerHTRecycled HMA",92]
[null,"Final Length:"]
[]
[null,null,null,null,null,"Density Zone #1 Center Station:",null,null,null,null,null,{"$f":"IF(G26<G27,G26+(2*'QC-1 Density Worksheet'!C12),G26-(2*'QC-1 Density Worksheet'!C12))","v":-100},{"$f":"IF(L26<L27,L27-L26,L26-L27)","v":200},{"$f":"'QC-1 Density Worksheet'!B14","v":-100},{"$f":"'QC-1 Density Worksheet'!B20","v":-100},null,null,null,null,null,"LowerSMARecycled HMA",93]
[null,null,null,null,null,"Density Zone #2 Center Station:",null,null,null,null,null,{"$f":"IF(G26<G27,G27-(2*'QC-1 Density Worksheet'!C12),G27+(2*'QC-1 Density Worksheet'!C12))","v":100},null,{"$f":"'QC-1 Density Worksheet'!B18","v":100},{"$f":"'QC-1 Density Worksheet'!B24","v":100},null,null,null,null,null,"LowerLTRecycled PCC",91]
[null,null,null,null,null,null,null,null,null,null,null,"Stations lock",false,null,null,null,null,null,null,null,"LowerMTRecycled PCC",91]
[null,null,null,null,null,"Random Split Sample #1 Tonnage:",null,null,null,null,null,"Tonnage lock",false,null,null,null,null,null,null,null,"LowerHTRecycled PCC",92]
[null,null,null,null,null,"Random Split Sample #2 Tonnage:",null,null,null,null,null,null,null,null,null,null,null,null,null,null,"LowerSMARecycled PCC",93]
[null,null,null,null,null,"Random Split Sample #3 Tonnage:"]
[]
[null,"Other/Notes:"]
[]
[null,"Suggested File Name:",{"$f":"CONCATENATE(C13,\"_\",C14,\"_\",C21,\"_\",G16,\"_\",\"PWL-TS-\",C11,\"-\",O11)","v":"__--__PWL-TS--Combined"}]
[]
[null,null,"WHO is Responsible for WHAT?"]
[null,"Green","Worksheet requires data from QC/QV lab & field personnel to be input by a Department Representative (dept.rep)"]
[null,"Yellow","Worksheet requires project data only"]
[null,"Red","Worksheets do not require any input; they are results only"]
[]
[null,"Dept. Rep:","- Confirm mix volumetrics conform to the limits defined in C.2.1 of the HMA PWL Test Strip SPV prior to construction of test strip."]
[null,null,"- Complete the Project Information above.  "]
[null,"Canary","Cells in Project Info & Instructions tab require input from the dept. rep prior to construction, on all other tabs these are for test data."]
[null,"Peach","Cells are for random stations/tonnage calculation on Project Info & Instructions tab only."]
[null,"Blue","Cells require test strip final length and final tonnage after construction is finished. Input on Project Info & Instructions tab only."]
[null,null,"- The Test Strip Type is used to determine which analyses need to be run. If \"Density Only Test Strip\" is selected the Gmm will need to be entered at the top of the Core Data"]
[null,null,"  worksheet. Otherwise, the Gmm will be calculated from the Split Sample Comparison worksheet."]
[null,null,"- The Test Strip # for each mix type or layer has a default value of \"1\". If the test strip for a given layer or material is reconstructed, the spreadsheet "]
[null,null,"   for the reconstructed test strip will be identified as \"2\". "]
[null,null,"- The Suggested File Name consists of the Job No./Project ID, Route/Road, Mix Type, Layer, the identifier \"PWL-TS-\", Test Strip #, and Test Strip Type. "]
[null,null,"- Once the Suggested File Name is complete click the \"Save with Suggested File Name, Date & Time\" button to create a new file for the test strip. "]
[null,null,"- The Paving Width, and Layer Thickness are used with a known test strip length to estimate the test strip tonnage OR with a known test strip tonnage to estimate the test strip length. "]
[null,null,"- If the Estimated Length is known click the box next to \"Calculate Tonnage Based On Known Length\", otherwise the known tonnage is used to calculate the length."]
[null,null,"- The End Station is calculated from the Start Station and the Estimated Length (or Calculated Length is an Estimated Tonnage is entered), assuming a straight line."]
[null,null,"- After the Estimated Tonnage and Estimated Length are either entered or calculated, use the \"Generate Random Station/Tonnage\" button to determine density testing/coring "]
[null,null,"   locations and sampling tonnages or, if necessary, enter alternate center stations/tonnages in the peach-colored cells. "]
[null,null,"- The Density Lower Spec Limit is calculated based on the Mix Type, Test Strip Pavement Layer, and Underlying Layer entered."]
[null,null,"- Confirm that Split Sample Comparison worksheet indicates that the datasets correlate and have testing differences within the testing tolerance (green cells rather than red)."]
[null,null,"- If indicated on the Split Sample Comparison worksheet, enter BTS Referee Gmm & Gmb data into Split Sample Comparison worksheet."]
[null,null,"- Confirm correct Dry Weight, Submerged Weight, and SSD are recorded in the Core Data worksheet."]
[null,null,"- AFTER Test strip construction is finished, enter total Final Tonnage and Final Length to be used for pay adjustment. These values will likely be different "]
[null,null,"  than the estimated length and tonnage entered or calculated initially."]
[]
[null,"QC Lab:","- Provide dept. rep Gmm, Gmb,  gradation and AC% data for 3 split samples for entry into Split Sample Comparison tab. Determine core density from cores retrieved and tested under dept. rep witness."]
[]
[null,"QV Lab:","- Provide Gmm, Gmb and AC% data for 3 split samples for entry into Split Sample Comparison tab. Verify the core density as directed by the engineer."]
[]
[null,"QC-NUCDENSITYTEC:","- Provide Density Standard, Moisture Standard, and your name on the appropriate Density Worksheet (QC or QV, 1 or 2)"]
[null,null,"- Record M-counts, D-counts, and Wet Density for 2-3 readings per test site (3rd only needed if first 2 wet densities differ by more than 1.0 pcf)"]
[]
[null,"QV-NUCDENSITYTEC:","- Provide Density Standard, Moisture Standard, and your name on the appropriate Density Worksheet (QC or QV, 1 or 2)"]
[null,null,"- Record M-counts, D-counts, and Wet Density for 2-3 readings per test site (3rd only needed if first 2 wet densities differ by more than 1.0 pcf)"]

{"sheet":"Split Sample Comparison","index":1,"n_rows":33,"n_cols":28,"rows_kept":33,"cut":false,"hidden":false,"merged":[[22,10,22,12],[31,15,31,17],[20,6,20,7],[20,8,20,9],[10,6,10,7],[10,8,10,9],[10,12,10,13],[20,12,20,13],[19,12,19,13],[19,15,19,16],[20,15,20,16],[19,6,19,9],[24,13,24,15],[23,10,23,12],[2,2,2,3],[3,2,3,3],[4,2,4,3],[2,6,2,7],[3,6,3,7],[4,6,4,7],[14,18,16,18],[6,11,6,13],[16,11,16,13],[6,14,6,16],[9,15,9,16],[10,15,10,16],[16,14,16,16],[5,2,5,3],[12,5,12,9],[6,24,7,24],[9,6,9,9],[9,12,9,13],[4,18,6,18],[5,7,5,9]]}
[null,"Split Sample Testing Comparison",null,null,null,null,null,null,null,null,null,"If datasets compare and testing differences are within testing tolerance, QC data is carried into the "]
[null,null,null,null,null,null,null,null,null,null,null,"Air Voids Pay Factor worksheet. If not, BTS will conduct referee Gmm & Gmb tests and BTS"]
[null,"Date:",{"$f":"IF('Project Info & Instructions'!C10=\"\",\"\",'Project Info & Instructions'!C10)","v":""},null,null,"Test Strip #:",{"$f":"IF('Project Info & Instructions'!C11=\"\",\"\",'Project Info & Instructions'!C11)","v":""},null,null,null,null,"data will be used for subsequent calculations."]
[null,"Project ID:",{"$f":"IF('Project Info & Instructions'!C13=\"\",\"\",'Project Info & Instructions'!C13)","v":""},null,null,"Route/Road:",{"$f":"IF('Project Info & Instructions'!C14=\"\",\"\",'Project Info & Instructions'!C14)","v":""},null,null,null,null,"If QC and QV datasets do not compare, BTS referee Gmm and Gmb test data needs to be entered in the "]
[null,"Mix Type:",{"$f":"IF('Project Info & Instructions'!C21=\"\",\"\",'Project Info & Instructions'!C21)","v":"--"},null,null," Layer:",{"$f":"IF('Project Info & Instructions'!G16=\"\",\"\",'Project Info & Instructions'!G16)","v":""},null,null,null,null,"BTS Referee Gmm/Gmb Column.",null,null,null,null,null,null,"Gmm \nXd Mean Tolerance"]
[null,"JMF Gmm:",{"$f":"IF('Project Info & Instructions'!G21=\"\",\"Enter JMF Gmm\",'Project Info & Instructions'!G21)","v":"Enter JMF Gmm"}]
[null,"Gmm",null,null,null,null,null,null,null,null,null,"BTS Vs. QC Results",null,null,"BTS Vs. QV Results",null,null,null,null,null,null,null,null,null,"BTS result needed"]
[null,"Split Sample Number","Tonnage","QC Gmm","QV Gmm","Difference (Xd)","Xd Mean",{"$f":"IF(T9<6,\"\",ABS(AVERAGE(F9:F11)))","v":""},"Degree of Freedom",{"$f":"COUNT(E9:E11)-1","v":-1},"BTS Referee Gmm","Difference (Xd)","Xd Mean",{"$f":"IF(W9<3,\"\",ABS(AVERAGE(L9:L11)))","v":""},"Difference (Xd)","Xd Mean",{"$f":"IF(W9<3,\"\",ABS(AVERAGE(O9:O11)))","v":""},null,1.2E-2,1.2500000000000001E-2,"QC","QV",null,"BTS"]
[null,1,{"$f":"'Project Info & Instructions'!G29","v":0},null,null,{"$f":"IF(OR(D9=\"\",E9=\"\"),\"\",ABS(D9-E9))","v":""},"t-test p-value",{"$f":"IF(T9<6,\"\",TTEST($D$9:$D$11,$E$9:$E$11, 2, 1))","v":""},"Prob. α",0.01,{"$f":"IF(AND($T$23=12,$Y9=1),\"BTS Result\",\"\")","v":""},{"$f":"IF(OR(D9=\"\",K9=\"\",K9=\"BTS Result\"),\"\",ABS(D9-K9))","v":""},"t-test p-value",{"$f":"IF(W9<3,\"\",TTEST($D$9:$D$11,$K$9:$K$11, 2, 1))","v":""},{"$f":"IF(OR(E9=\"\",K9=\"\",K9=\"BTS Result\"),\"\",ABS(E9-K9))","v":""},"t-test p-value",{"$f":"IF(W9<3,\"\",TTEST($E$9:$E$11,$K$9:$K$11, 2, 1))","v":""},{"$f":"IF(AND($T$23=12,$Y9=1),\"BTS Result\",\"\")","v":""},null,{"$f":"SUM(U9:V11)","v":0},{"$f":"IF(D9=\"\",0,1)","v":0},{"$f":"IF(E9=\"\",0,1)","v":0},{"$f":"SUM(X9:X11)","v":0},{"$f":"IF(ISNUMBER(K9),1,0)","v":0},{"$f":"IF(OR($T$23<12,$U$26=TRUE),\"\",IF(AND($G$10=$Z$9,$I$11=\"Datasets Compare\",$G$20=$Z$9,$I$21=\"Datasets Compare\"),\"\",1))","v":""},"Test differences within testing tolerance",null,"Test differences within testing tolerance"]
[null,2,{"$f":"'Project Info & Instructions'!G30","v":0},null,null,{"$f":"IF(OR(D10=\"\",E10=\"\"),\"\",ABS(D10-E10))","v":""},{"$f":"IF(T9<6,\"\",IF(H8<T8,$Z$9,$Z$10))","v":""},null,null,null,{"$f":"IF(AND($T$23=12,$Y10=1),\"BTS Result\",\"\")","v":""},{"$f":"IF(OR(D10=\"\",K10=\"\",K10=\"BTS Result\"),\"\",ABS(D10-K10))","v":""},{"$f":"IF(W9<3,\"\",IF(N8<T8,$Z$9,$Z$10))","v":""},null,{"$f":"IF(OR(E10=\"\",K10=\"\",K10=\"BTS Result\"),\"\",ABS(E10-K10))","v":""},{"$f":"IF(W9<3,\"\",IF(Q8<T8,$Z$9,$Z$10))","v":""},null,{"$f":"IF(AND($T$23=12,$Y10=1),\"BTS Result\",\"\")","v":""},null,null,{"$f":"IF(D10=\"\",0,1)","v":0},0,null,{"$f":"IF(ISNUMBER(K10),1,0)","v":0},{"$f":"IF(OR($T$23<12,$U$26=TRUE),\"\",IF(AND($G$10=$Z$9,$I$11=\"Datasets Compare\",$G$20=$Z$9,$I$21=\"Datasets Compare\"),\"\",1))","v":""},"Test differences exceed testing tolerance",null,"Test differences exceed testing tolerance"]
[null,3,{"$f":"'Project Info & Instructions'!G31","v":0},null,null,{"$f":"IF(OR(D11=\"\",E11=\"\"),\"\",ABS(D11-E11))","v":""},"Split Sample Results: ",null,{"$f":"IF(T9<6,\"\",IF(OR(H9<J9,H8>T8),\"Do not Compare\",\"Datasets Compare\"))","v":""},null,{"$f":"IF(AND($T$23=12,$Y11=1),\"BTS Result\",\"\")","v":""},"",{"$f":"IF(W9<3,\"\",IF(OR(N9<J9,N8>T8),\"Do not Compare\",\"Datasets Compare\"))","v":""},null,"",{"$f":"IF(W9<3,\"\",IF(OR(Q9<J9,Q8>T8),\"Do not Compare\",\"Datasets Compare\"))","v":""},null,{"$f":"IF(AND($T$23=12,$Y11=1),\"BTS Result\",\"\")","v":""},null,null,0,0,null,0,{"$f":"IF(OR($T$23<12,$U$26=TRUE),\"\",IF(AND($G$10=$Z$9,$I$11=\"Datasets Compare\",$G$20=$Z$9,$I$21=\"Datasets Compare\"),\"\",1))","v":""}]
[null,"Gmm Tolerance to JMF"]
[null,"Split Sample Number","Tonnage","QC Gmm-JMF Difference","QV Gmm-JMF Difference",{"$f":"IF(COUNT(D14:E16)<6,\"\",IF('Project Info & Instructions'!G21=\"\",\"Enter JMF Gmm on Project Info & Instructions Tab\",IF(AND(COUNT(K14:K16)=0,I16>0),\"One or more GMM exceeds the acceptance limits in C.2.1 of the PWL Test Strip STSP\",IF(AND(COUNT(K14:K16)>0,M16>0),\"One or more GMM exceeds the acceptance limits in C.2.1 of the PWL Test Strip STSP\",\"Gmm are within Acceptance Limits\"))))","v":""},null,null,null,null,"BTS Gmm-JMF Difference","overall result",{"$f":"IF(F13=\"One or more GMM exceeds the acceptance limits in C.2.1 of the PWL Test Strip STSP\",1,0)","v":0}]
[null,1,{"$f":"C9","v":0},{"$f":"IF(OR($C$6=\"Enter JMF Gmm\",D9=\"\"),\"\",ABS($C$6-D9))","v":""},{"$f":"IF(OR($C$6=\"Enter JMF Gmm\",E9=\"\"),\"\",ABS($C$6-E9))","v":""},null,{"$f":"IF(D14>0.024,1,0)","v":1},{"$f":"IF(E14>0.024,1,0)","v":1},null,null,{"$f":"IF(OR($C$6=\"Enter JMF Gmm\",K9=\"\",K9=\"BTS Result\"),\"\",ABS($C$6-K9))","v":""},{"$f":"IF(K14>0.024,1,0)","v":1}]
[null,2,{"$f":"C10","v":0},{"$f":"IF(OR($C$6=\"Enter JMF Gmm\",D10=\"\"),\"\",ABS($C$6-D10))","v":""},"",null,{"$f":"IF(D15>0.024,1,0)","v":1},{"$f":"IF(E15>0.024,1,0)","v":1},"SUM",null,{"$f":"IF(OR($C$6=\"Enter JMF Gmm\",K10=\"\",K10=\"BTS Result\"),\"\",ABS($C$6-K10))","v":""},{"$f":"IF(K15>0.024,1,0)","v":1},"SUM",null,null,null,null,null,"Gmb \nXd Mean Tolerance"]
[null,3,0,"","",null,1,{"$f":"IF(E16>0.024,1,0)","v":1},{"$f":"SUM(G14:H16)","v":6},null,"",1,{"$f":"SUM(L14:L16)","v":3}]
[null,"Gmb",null,null,null,null,null,null,null,null,null,"BTS Vs. QC Results",null,null,"BTS Vs. QV Results"]
[null,"Split Sample Number","Tonnage","QC Gmb","QV Gmb","Difference (Xd)","Xd Mean",{"$f":"IF(T19<6,\"\",ABS(AVERAGE(F19:F21)))","v":""},"Degree of Freedom",{"$f":"COUNT(E19:E21)-1","v":-1},"BTS Referee Gmb","Difference (Xd)","Xd Mean",{"$f":"IF(W19<3,\"\",ABS(AVERAGE(L19:L21)))","v":""},"Difference (Xd)","Xd Mean",{"$f":"IF(W19<3,\"\",ABS(AVERAGE(O19:O21)))","v":""},null,1.2E-2,1.2500000000000001E-2]
[null,1,{"$f":"'Project Info & Instructions'!G29","v":0},null,null,{"$f":"IF(OR(D19=\"\",E19=\"\"),\"\",ABS(D19-E19))","v":""},"t-test p-value",{"$f":"IF(T19<6,\"\",TTEST($D$19:$D$21,$E$19:$E$21,2,1))","v":""},"Prob. α",0.01,{"$f":"IF(AND($T$23=12,$Y19=1),\"BTS Result\",\"\")","v":""},{"$f":"IF(OR(D19=\"\",K19=\"\",K19=\"BTS Result\"),\"\",ABS(D19-K19))","v":""},"t-test p-value",{"$f":"IF(W19<3,\"\",TTEST($D$19:$D$21,$K$19:$K$21, 2, 1))","v":""},{"$f":"IF(OR(E19=\"\",K19=\"\",K19=\"BTS Result\"),\"\",ABS(E19-K19))","v":""},"t-test p-value",{"$f":"IF(W19<3,\"\",TTEST($E$19:$E$21,$K$19:$K$21, 2, 1))","v":""},{"$f":"IF(AND($T$23=12,$Y19=1),\"BTS Result\",\"\")","v":""},null,{"$f":"SUM(U19:V21)","v":0},{"$f":"IF(D19=\"\",0,1)","v":0},0,{"$f":"SUM(X19:X21)","v":0},{"$f":"IF(ISNUMBER(K19),1,0)","v":0},{"$f":"IF(OR($T$23<12,$U$26=TRUE),\"\",IF(AND($G$10=$Z$9,$I$11=\"Datasets Compare\",$G$20=$Z$9,$I$21=\"Datasets Compare\"),\"\",1))","v":""}]
[null,2,{"$f":"'Project Info & Instructions'!G30","v":0},null,null,{"$f":"IF(OR(D20=\"\",E20=\"\"),\"\",ABS(D20-E20))","v":""},{"$f":"IF(T19<6,\"\",IF(H18<T18,$Z$9,$Z$10))","v":""},null,null,null,{"$f":"IF(AND($T$23=12,$Y20=1),\"BTS Result\",\"\")","v":""},{"$f":"IF(OR(D20=\"\",K20=\"\",K20=\"BTS Result\"),\"\",ABS(D20-K20))","v":""},{"$f":"IF(W19<3,\"\",IF(N18<T18,$Z$9,$Z$10))","v":""},null,{"$f":"IF(OR(E20=\"\",K20=\"\",K20=\"BTS Result\"),\"\",ABS(E20-K20))","v":""},{"$f":"IF(W19<3,\"\",IF(Q18<T18,$Z$9,$Z$10))","v":""},null,{"$f":"IF(AND($T$23=12,$Y20=1),\"BTS Result\",\"\")","v":""},null,null,0,0,null,{"$f":"IF(ISNUMBER(K20),1,0)","v":0},{"$f":"IF(OR($T$23<12,$U$26=TRUE),\"\",IF(AND($G$10=$Z$9,$I$11=\"Datasets Compare\",$G$20=$Z$9,$I$21=\"Datasets Compare\"),\"\",1))","v":""}]
[null,3,{"$f":"'Project Info & Instructions'!G31","v":0},null,null,{"$f":"IF(OR(D21=\"\",E21=\"\"),\"\",ABS(D21-E21))","v":""},"Split Sample Results: ",null,{"$f":"IF(T19<6,\"\",IF(OR(H19<J19,H18>T18),\"Do not Compare\",\"Datasets Compare\"))","v":""},null,{"$f":"IF(AND($T$23=12,$Y21=1),\"BTS Result\",\"\")","v":""},"",{"$f":"IF(W19<3,\"\",IF(OR(N19<J19,N18>T18),\"Do not Compare\",\"Datasets Compare\"))","v":""},null,"",{"$f":"IF(W19<3,\"\",IF(OR(Q19<J19,Q18>T18),\"Do not Compare\",\"Datasets Compare\"))","v":""},null,{"$f":"IF(AND($T$23=12,$Y21=1),\"BTS Result\",\"\")","v":""},null,null,0,0,null,0,{"$f":"IF(OR($T$23<12,$U$26=TRUE),\"\",IF(AND($G$10=$Z$9,$I$11=\"Datasets Compare\",$G$20=$Z$9,$I$21=\"Datasets Compare\"),\"\",1))","v":""}]
[null,null,null,null,null,null,null,null,null,null,null,null,null,null,null,null,null,null,null,null,null,null,null,null,{"$f":"SUM(Y19:Y21,Y9:Y11)","v":0}]
[null,"Note:    ",null,null,null,null,null,null,null,null," Regional PWL Rep. Approving Split Sample Data",null,null,null,null,null,null,null,null,{"$f":"SUM(T19,T9)","v":0}]
[null,"This review is a check for reasonable test result differences between labs.  Due to the small sample size, <20, it is ",null,null,null,null,null,null,null,null,"Enter Regional PWL Rep Name"]
[null,"possible to have two sets of data that fail the t-test (p-value), but the \"test results are within testing tolerance\".  ",null,null,null,null,null,null,null,null,null,null,null,"Air Voids %"]
[null,"For such differences, if allowed by the engineer, asphalt mix production may resume as the test result differences are ",null,null,null,null,null,null,null,null,null,null,null,"Contractor","Department","BTS",null,null,null,null,false]
[null,"based on small sample sizes and consistent testing differences. In such case, if all Gmm are within Tolerance to JMF ",null,null,null,null,null,null,null,null,null,null,null,{"$f":"IF(OR(D9=\"\",D19=\"\"),\"\",ROUND((D9-D19)/D9*100,1))","v":""},{"$f":"IF(OR(E9=\"\",E19=\"\"),\"\",ROUND((E9-E19)/E9*100,1))","v":""},{"$f":"IF(OR(K9=\"\",K19=\"\"),\"\",IF(OR(K9=\"BTS Result\",K19=\"BTS Result\"),\"BTS Result\",ROUND((K9-K19)/K9*100,1)))","v":""}]
[null,"and both Xd Mean are within testing tolerance QC Gmm and Gmb data will be used for analysis if the box at the right ",null,null,null,null,null,null,null,null,null,null,null,{"$f":"IF(OR(D10=\"\",D20=\"\"),\"\",ROUND((D10-D20)/D10*100,1))","v":""},{"$f":"IF(OR(E10=\"\",E20=\"\"),\"\",ROUND((E10-E20)/E10*100,1))","v":""},{"$f":"IF(OR(K10=\"\",K20=\"\"),\"\",IF(OR(K10=\"BTS Result\",K20=\"BTS Result\"),\"BTS Result\",ROUND((K10-K20)/K10*100,1)))","v":""}]
[null,"is checked and the name of the Regional PWL Rep is entered in the box below. ",null,null,null,null,null,null,null,null,null,null,null,"","",""]
[]
[null,"It is also possible to have two-sets of test results that are so variable that the results pass the t-test (p-value), but the \"test  "]
[null,"differences exceed testing tolerance\".  The cause of this type testing variation needs to be resolved before production ",null,null,null,null,null,null,null,null,null,null,null,null,null,{"$f":"'Project Info & Instructions'!A6","v":"Revised 04-08-22"}]
[null,"of mix resumes."]

{"sheet":"Core Data","index":2,"n_rows":39,"n_cols":31,"rows_kept":39,"cut":false,"hidden":false,"merged":[[3,15,4,16],[25,11,26,20],[34,1,37,8],[16,16,16,20],[16,11,16,15],[6,5,6,6],[8,22,8,26],[6,1,6,3],[7,1,7,3],[8,11,8,15],[8,1,8,7],[8,16,8,20],[0,10,1,10],[3,5,3,6],[4,5,4,6],[5,5,5,6],[25,0,33,7],[3,1,3,3],[4,1,4,3],[5,1,5,3],[7,5,7,6],[2,5,2,8]]}
["Core Data",null,null,null,null,null,null,"Gmm Running Avg. for Density-Only Test Strip Analysis:"]
[null,null,null,null,null,null,null,"PWL Production Gmm OR Non-Random Dept. Gmm collected during  Density-Only Test Strip:",null,null,null,null,null,null,null,null,null,null,null,null,null,null,null,null,null,null,null,null,{"$f":"IF(OR(F8=\"Enter JMF Gmm\",I2=\"\"),\"\",(ABS(F8-I2)))","v":""}]
[null,null,null,null,null,{"$f":"IF(AC2=\"\",\"\",IF(AC2>0.024,\"Gmm During Test Strip Exceeds Acceptance Limits\",IF(AC2<=0.024,\"Gmm During Test Strip Within Acceptance Limits\")))","v":""},null,null,null,null,null,null,null,null,null,null,null,null,null,null,null,null,null,null,null,null,null,null,{"$f":"'Project Info & Instructions'!O9","v":1}]
["Date:",{"$f":"IF('Project Info & Instructions'!C10=\"\",\"\",'Project Info & Instructions'!C10)","v":""},null,null,"Test Strip #:",{"$f":"IF('Project Info & Instructions'!C11=\"\",\"\",'Project Info & Instructions'!C11)","v":""},null,null,null,null,null,null,null,null,null,"QC or QV Core Data \nUsed For Analysis?"]
["Project ID:",{"$f":"IF('Project Info & Instructions'!C13=\"\",\"\",'Project Info & Instructions'!C13)","v":""},null,null,"Route/Road:",{"$f":"IF('Project Info & Instructions'!C14=\"\",\"\",'Project Info & Instructions'!C14)","v":""},null,null,null,null,null,null,null,null,null,null,null,null,null,null,null,null,null,null,null,null,null,"QC=1, QV=2",1]
["Mix Type:",{"$f":"IF('Project Info & Instructions'!C21=\"\",\"\",'Project Info & Instructions'!C21)","v":"--"},null,null," Layer:",{"$f":"IF('Project Info & Instructions'!G16=\"\",\"\",'Project Info & Instructions'!G16)","v":""}]
["Gmm For Analysis :",{"$f":"IF(AND('Project Info & Instructions'!O9=2,'Core Data'!I1=\"\"),\"Enter Gmm Running Avg. Above\",IF('Project Info & Instructions'!O9=2,'Core Data'!I1,IF('Air Voids Pay Factor'!D11=\"\",\"\",'Air Voids Pay Factor'!D11)))","v":""},null,null,"LSL:",{"$f":"IF('Project Info & Instructions'!G18=\"\",\"\",'Project Info & Instructions'!G18)","v":"Enter Mix and Layer Info"}]
["Gmm Source:",{"$f":"IF('Split Sample Comparison'!Y22=0,\"QC\",\"BTS Referee\")","v":"QC"},null,null,"JMF Gmm:",{"$f":"IF('Project Info & Instructions'!G21=\"\",\"Enter JMF Gmm\",'Project Info & Instructions'!G21)","v":"Enter JMF Gmm"}]
[null,"Contractor Core Density Calculations",null,null,null,null,null,null,null,null,null,"Department Core Density Calculations",null,null,null,null,"Department Minus Contractor Density Data ",null,null,null,null,null,"Data Used for Analysis"]
["Label","Random Station","Offset from CL","Dry","SSD","Submerged","QC Core Bulk Density","QC Density % of Gmm","Location Comparison Result","Remove Core Data From Analysis?",null,"Dry","SSD","Submerged","QV Core Bulk Density","QV Density % of Gmm","Dry","SSD","Submerged","Core Bulk Density","Density %",null,"Dry","SSD","Submerged","Core Density Used for Analysis","Core Density %"]
[{"$f":"IF($F$6=\"Upper\",\"UL-1\",IF($F$6=\"Middle\",\"ML-1\",IF($F$6=\"Lower\",\"LL-1\",\"\")))","v":""},{"$f":"'QC-1 Density Worksheet'!B14","v":-100},{"$f":"'QC-1 Density Worksheet'!C14","v":""},null,null,null,{"$f":"IFERROR(ROUND(+D11/(E11-F11),3),\"\")","v":""},{"$f":"IF(AND('Project Info & Instructions'!$O$9=2,$I$1=\"\"),\"Enter Gmm\",IF(AND('Project Info & Instructions'!$O$9=2,G11=\"\"),\"\",IF('Project Info & Instructions'!$O$9=2,100*(G11/'Core Data'!$I$1),IF(OR('Air Voids Pay Factor'!$D$11=\"\",G11=\"\"),\"\",100*(G11/'Air Voids Pay Factor'!$D$11)))))","v":""},{"$f":"'Gauge-Core Variability'!I12","v":""},null,{"$f":"H11-$H$24","v":{"$error":"#VALUE!"}},null,null,null,{"$f":"IFERROR(ROUND(+L11/(M11-N11),3),\"\")","v":""},{"$f":"IF(AND('Project Info & Instructions'!$O$9=2,O11=\"\"),\"\",IF('Project Info & Instructions'!$O$9=2,100*(O11/'Core Data'!$I$1),IF(OR('Air Voids Pay Factor'!$D$11=\"\",O11=\"\"),\"\",100*(O11/'Air Voids Pay Factor'!$D$11))))","v":""},{"$f":"IF(L11=\"\",\"\",L11-D11)","v":""},{"$f":"IF(M11=\"\",\"\",M11-E11)","v":""},{"$f":"IF(N11=\"\",\"\",N11-F11)","v":""},{"$f":"IF(O11=\"\",\"\",O11-G11)","v":""},{"$f":"IF(P11=\"\",\"\",P11-H11)","v":""},null,{"$f":"IF($AC11=TRUE,\"\",IF(AND($AC$5=1,D11=\"\"),\"\",IF(AND($AC$5=2,L11=\"\"),\"\",IF($AC$5=1,D11,IF($AC$5=2,L11,\"\")))))","v":""},"","","","",null,false,{"$f":"IF(H11<1,\"\",$F$7-H11)","v":{"$error":"#VALUE!"}},{"$f":"IF(H11=\"\",\"\",IF(AD11>3,1,0))","v":""}]
[{"$f":"IF($F$6=\"Upper\",\"UL-2\",IF($F$6=\"Middle\",\"ML-2\",IF($F$6=\"Lower\",\"LL-2\",\"\")))","v":""},{"$f":"'QC-1 Density Worksheet'!B15","v":-50},{"$f":"'QC-1 Density Worksheet'!C15","v":""},null,null,null,{"$f":"IFERROR(ROUND(+D12/(E12-F12),3),\"\")","v":""},{"$f":"IF(AND('Project Info & Instructions'!$O$9=2,$I$1=\"\"),\"Enter Gmm\",IF(AND('Project Info & Instructions'!$O$9=2,G12=\"\"),\"\",IF('Project Info & Instructions'!$O$9=2,100*(G12/'Core Data'!$I$1),IF(OR('Air Voids Pay Factor'!$D$11=\"\",G12=\"\"),\"\",100*(G12/'Air Voids Pay Factor'!$D$11)))))","v":""},{"$f":"'Gauge-Core Variability'!I13","v":""},null,{"$f":"H12-$H$24","v":{"$error":"#VALUE!"}},null,null,null,{"$f":"IFERROR(ROUND(+L12/(M12-N12),3),\"\")","v":""},{"$f":"IF(AND('Project Info & Instructions'!$O$9=2,O12=\"\"),\"\",IF('Project Info & Instructions'!$O$9=2,100*(O12/'Core Data'!$I$1),IF(OR('Air Voids Pay Factor'!$D$11=\"\",O12=\"\"),\"\",100*(O12/'Air Voids Pay Factor'!$D$11))))","v":""},{"$f":"IF(L12=\"\",\"\",L12-D12)","v":""},{"$f":"IF(M12=\"\",\"\",M12-E12)","v":""},{"$f":"IF(N12=\"\",\"\",N12-F12)","v":""},{"$f":"IF(O12=\"\",\"\",O12-G12)","v":""},{"$f":"IF(P12=\"\",\"\",P12-H12)","v":""},null,"","","","","",null,false,{"$f":"IF(H12<1,\"\",$F$7-H12)","v":{"$error":"#VALUE!"}},{"$f":"IF(H12=\"\",\"\",IF(AD12>3,1,0))","v":""}]
[{"$f":"IF($F$6=\"Upper\",\"UL-3\",IF($F$6=\"Middle\",\"ML-3\",IF($F$6=\"Lower\",\"LL-3\",\"\")))","v":""},{"$f":"'QC-1 Density Worksheet'!B16","v":0},{"$f":"'QC-1 Density Worksheet'!C16","v":""},null,null,null,{"$f":"IFERROR(ROUND(+D13/(E13-F13),3),\"\")","v":""},{"$f":"IF(AND('Project Info & Instructions'!$O$9=2,$I$1=\"\"),\"Enter Gmm\",IF(AND('Project Info & Instructions'!$O$9=2,G13=\"\"),\"\",IF('Project Info & Instructions'!$O$9=2,100*(G13/'Core Data'!$I$1),IF(OR('Air Voids Pay Factor'!$D$11=\"\",G13=\"\"),\"\",100*(G13/'Air Voids Pay Factor'!$D$11)))))","v":""},{"$f":"'Gauge-Core Variability'!I14","v":""},null,{"$error":"#VALUE!"},null,null,null,{"$f":"IFERROR(ROUND(+L13/(M13-N13),3),\"\")","v":""},{"$f":"IF(AND('Project Info & Instructions'!$O$9=2,O13=\"\"),\"\",IF('Project Info & Instructions'!$O$9=2,100*(O13/'Core Data'!$I$1),IF(OR('Air Voids Pay Factor'!$D$11=\"\",O13=\"\"),\"\",100*(O13/'Air Voids Pay Factor'!$D$11))))","v":""},"","","","",{"$f":"IF(P13=\"\",\"\",P13-H13)","v":""},null,"","","","","",null,false,{"$f":"IF(H13<1,\"\",$F$7-H13)","v":{"$error":"#VALUE!"}},""]
[{"$f":"IF($F$6=\"Upper\",\"UL-4\",IF($F$6=\"Middle\",\"ML-4\",IF($F$6=\"Lower\",\"LL-4\",\"\")))","v":""},{"$f":"'QC-1 Density Worksheet'!B17","v":50},{"$f":"'QC-1 Density Worksheet'!C17","v":""},null,null,null,{"$f":"IFERROR(ROUND(+D14/(E14-F14),3),\"\")","v":""},{"$f":"IF(AND('Project Info & Instructions'!$O$9=2,$I$1=\"\"),\"Enter Gmm\",IF(AND('Project Info & Instructions'!$O$9=2,G14=\"\"),\"\",IF('Project Info & Instructions'!$O$9=2,100*(G14/'Core Data'!$I$1),IF(OR('Air Voids Pay Factor'!$D$11=\"\",G14=\"\"),\"\",100*(G14/'Air Voids Pay Factor'!$D$11)))))","v":""},{"$f":"'Gauge-Core Variability'!I15","v":""},null,{"$error":"#VALUE!"},null,null,null,{"$f":"IFERROR(ROUND(+L14/(M14-N14),3),\"\")","v":""},{"$f":"IF(AND('Project Info & Instructions'!$O$9=2,O14=\"\"),\"\",IF('Project Info & Instructions'!$O$9=2,100*(O14/'Core Data'!$I$1),IF(OR('Air Voids Pay Factor'!$D$11=\"\",O14=\"\"),\"\",100*(O14/'Air Voids Pay Factor'!$D$11))))","v":""},"","","","",{"$f":"IF(P14=\"\",\"\",P14-H14)","v":""},null,"","","","","",null,false,{"$error":"#VALUE!"},""]
[{"$f":"IF($F$6=\"Upper\",\"UL-5\",IF($F$6=\"Middle\",\"ML-5\",IF($F$6=\"Lower\",\"LL-5\",\"\")))","v":""},{"$f":"'QC-1 Density Worksheet'!B18","v":100},{"$f":"'QC-1 Density Worksheet'!C18","v":""},null,null,null,{"$f":"IFERROR(ROUND(+D15/(E15-F15),3),\"\")","v":""},{"$f":"IF(AND('Project Info & Instructions'!$O$9=2,$I$1=\"\"),\"Enter Gmm\",IF(AND('Project Info & Instructions'!$O$9=2,G15=\"\"),\"\",IF('Project Info & Instructions'!$O$9=2,100*(G15/'Core Data'!$I$1),IF(OR('Air Voids Pay Factor'!$D$11=\"\",G15=\"\"),\"\",100*(G15/'Air Voids Pay Factor'!$D$11)))))","v":""},{"$f":"'Gauge-Core Variability'!I16","v":""},null,{"$error":"#VALUE!"},null,null,null,{"$f":"IFERROR(ROUND(+L15/(M15-N15),3),\"\")","v":""},{"$f":"IF(AND('Project Info & Instructions'!$O$9=2,O15=\"\"),\"\",IF('Project Info & Instructions'!$O$9=2,100*(O15/'Core Data'!$I$1),IF(OR('Air Voids Pay Factor'!$D$11=\"\",O15=\"\"),\"\",100*(O15/'Air Voids Pay Factor'!$D$11))))","v":""},"","","","",{"$f":"IF(P15=\"\",\"\",P15-H15)","v":""},null,"","","","","",null,false,{"$error":"#VALUE!"},""]
[null,null,null,null,null,null,null,null,null,null,null,null,null,null,null,null,null,null,null,null,null,null,null,null,null,null,null,null,null,""]
[null,null,null,null,null,null,null,null,null,null,null,null,null,null,null,null,null,null,null,null,null,null,null,null,null,null,null,null,null,""]
[null,"Random Station","Offset from CL","Dry","SSD","Submerged","QC Core Bulk Density","QC Density % of Gmm","Location Comparison Result","Remove Core Data From Analysis?",null,"Dry","SSD","Submerged","QV Core Bulk Density","QV Density % of Gmm","Dry","SSD","Submerged","Core Bulk Density","Density %",null,"Dry","SSD","Submerged","Core Density Used for Analysis","Core Density %"]
[{"$f":"IF($F$6=\"Upper\",\"UL-6\",IF($F$6=\"Middle\",\"ML-6\",IF($F$6=\"Lower\",\"LL-6\",\"\")))","v":""},{"$f":"'QC-1 Density Worksheet'!B20","v":-100},{"$f":"'QC-1 Density Worksheet'!C20","v":""},null,null,null,{"$f":"IFERROR(ROUND(+D19/(E19-F19),3),\"\")","v":""},{"$f":"IF(AND('Project Info & Instructions'!$O$9=2,$I$1=\"\"),\"Enter Gmm\",IF(AND('Project Info & Instructions'!$O$9=2,G19=\"\"),\"\",IF('Project Info & Instructions'!$O$9=2,100*(G19/'Core Data'!$I$1),IF(OR('Air Voids Pay Factor'!$D$11=\"\",G19=\"\"),\"\",100*(G19/'Air Voids Pay Factor'!$D$11)))))","v":""},{"$f":"'Gauge-Core Variability'!I17","v":""},null,{"$f":"H19-$H$24","v":{"$error":"#VALUE!"}},null,null,null,{"$f":"IFERROR(ROUND(+L19/(M19-N19),3),\"\")","v":""},{"$f":"IF(AND('Project Info & Instructions'!$O$9=2,O19=\"\"),\"\",IF('Project Info & Instructions'!$O$9=2,100*(O19/'Core Data'!$I$1),IF(OR('Air Voids Pay Factor'!$D$11=\"\",O19=\"\"),\"\",100*(O19/'Air Voids Pay Factor'!$D$11))))","v":""},{"$f":"IF(L19=\"\",\"\",L19-D19)","v":""},{"$f":"IF(M19=\"\",\"\",M19-E19)","v":""},{"$f":"IF(N19=\"\",\"\",N19-F19)","v":""},{"$f":"IF(O19=\"\",\"\",O19-G19)","v":""},{"$f":"IF(P19=\"\",\"\",P19-H19)","v":""},null,{"$f":"IF($AC19=TRUE,\"\",IF(AND($AC$5=1,D19=\"\"),\"\",IF(AND($AC$5=2,L19=\"\"),\"\",IF($AC$5=1,D19,IF($AC$5=2,L19,\"\")))))","v":""},"","","","",null,false,{"$error":"#VALUE!"},""]
[{"$f":"IF($F$6=\"Upper\",\"UL-7\",IF($F$6=\"Middle\",\"ML-7\",IF($F$6=\"Lower\",\"LL-7\",\"\")))","v":""},{"$f":"'QC-1 Density Worksheet'!B21","v":-50},{"$f":"'QC-1 Density Worksheet'!C21","v":""},null,null,null,{"$f":"IFERROR(ROUND(+D20/(E20-F20),3),\"\")","v":""},{"$f":"IF(AND('Project Info & Instructions'!$O$9=2,$I$1=\"\"),\"Enter Gmm\",IF(AND('Project Info & Instructions'!$O$9=2,G20=\"\"),\"\",IF('Project Info & Instructions'!$O$9=2,100*(G20/'Core Data'!$I$1),IF(OR('Air Voids Pay Factor'!$D$11=\"\",G20=\"\"),\"\",100*(G20/'Air Voids Pay Factor'!$D$11)))))","v":""},{"$f":"'Gauge-Core Variability'!I18","v":""},null,{"$f":"H20-$H$24","v":{"$error":"#VALUE!"}},null,null,null,{"$f":"IFERROR(ROUND(+L20/(M20-N20),3),\"\")","v":""},{"$f":"IF(AND('Project Info & Instructions'!$O$9=2,O20=\"\"),\"\",IF('Project Info & Instructions'!$O$9=2,100*(O20/'Core Data'!$I$1),IF(OR('Air Voids Pay Factor'!$D$11=\"\",O20=\"\"),\"\",100*(O20/'Air Voids Pay Factor'!$D$11))))","v":""},{"$f":"IF(L20=\"\",\"\",L20-D20)","v":""},"","","",{"$f":"IF(P20=\"\",\"\",P20-H20)","v":""},null,"","","","","",null,false,{"$error":"#VALUE!"},""]
[{"$f":"IF($F$6=\"Upper\",\"UL-8\",IF($F$6=\"Middle\",\"ML-8\",IF($F$6=\"Lower\",\"LL-8\",\"\")))","v":""},{"$f":"'QC-1 Density Worksheet'!B22","v":0},{"$f":"'QC-1 Density Worksheet'!C22","v":""},null,null,null,{"$f":"IFERROR(ROUND(+D21/(E21-F21),3),\"\")","v":""},{"$f":"IF(AND('Project Info & Instructions'!$O$9=2,$I$1=\"\"),\"Enter Gmm\",IF(AND('Project Info & Instructions'!$O$9=2,G21=\"\"),\"\",IF('Project Info & Instructions'!$O$9=2,100*(G21/'Core Data'!$I$1),IF(OR('Air Voids Pay Factor'!$D$11=\"\",G21=\"\"),\"\",100*(G21/'Air Voids Pay Factor'!$D$11)))))","v":""},{"$f":"'Gauge-Core Variability'!I19","v":""},null,{"$error":"#VALUE!"},null,null,null,{"$f":"IFERROR(ROUND(+L21/(M21-N21),3),\"\")","v":""},{"$f":"IF(AND('Project Info & Instructions'!$O$9=2,O21=\"\"),\"\",IF('Project Info & Instructions'!$O$9=2,100*(O21/'Core Data'!$I$1),IF(OR('Air Voids Pay Factor'!$D$11=\"\",O21=\"\"),\"\",100*(O21/'Air Voids Pay Factor'!$D$11))))","v":""},{"$f":"IF(L21=\"\",\"\",L21-D21)","v":""},"","","",{"$f":"IF(P21=\"\",\"\",P21-H21)","v":""},null,"","","","","",null,false,{"$error":"#VALUE!"},""]
[{"$f":"IF($F$6=\"Upper\",\"UL-9\",IF($F$6=\"Middle\",\"ML-9\",IF($F$6=\"Lower\",\"LL-9\",\"\")))","v":""},{"$f":"'QC-1 Density Worksheet'!B23","v":50},{"$f":"'QC-1 Density Worksheet'!C23","v":""},null,null,null,{"$f":"IFERROR(ROUND(+D22/(E22-F22),3),\"\")","v":""},{"$f":"IF(AND('Project Info & Instructions'!$O$9=2,$I$1=\"\"),\"Enter Gmm\",IF(AND('Project Info & Instructions'!$O$9=2,G22=\"\"),\"\",IF('Project Info & Instructions'!$O$9=2,100*(G22/'Core Data'!$I$1),IF(OR('Air Voids Pay Factor'!$D$11=\"\",G22=\"\"),\"\",100*(G22/'Air Voids Pay Factor'!$D$11)))))","v":""},{"$f":"'Gauge-Core Variability'!I20","v":""},null,{"$error":"#VALUE!"},null,null,null,{"$f":"IFERROR(ROUND(+L22/(M22-N22),3),\"\")","v":""},{"$f":"IF(AND('Project Info & Instructions'!$O$9=2,O22=\"\"),\"\",IF('Project Info & Instructions'!$O$9=2,100*(O22/'Core Data'!$I$1),IF(OR('Air Voids Pay Factor'!$D$11=\"\",O22=\"\"),\"\",100*(O22/'Air Voids Pay Factor'!$D$11))))","v":""},{"$f":"IF(L22=\"\",\"\",L22-D22)","v":""},"","","",{"$f":"IF(P22=\"\",\"\",P22-H22)","v":""},null,"","","","","",null,false,{"$error":"#VALUE!"},""]
[{"$f":"IF($F$6=\"Upper\",\"UL-10\",IF($F$6=\"Middle\",\"ML-10\",IF($F$6=\"Lower\",\"LL-10\",\"\")))","v":""},{"$f":"'QC-1 Density Worksheet'!B24","v":100},{"$f":"'QC-1 Density Worksheet'!C24","v":""},null,null,null,{"$f":"IFERROR(ROUND(+D23/(E23-F23),3),\"\")","v":""},{"$f":"IF(AND('Project Info & Instructions'!$O$9=2,$I$1=\"\"),\"Enter Gmm\",IF(AND('Project Info & Instructions'!$O$9=2,G23=\"\"),\"\",IF('Project Info & Instructions'!$O$9=2,100*(G23/'Core Data'!$I$1),IF(OR('Air Voids Pay Factor'!$D$11=\"\",G23=\"\"),\"\",100*(G23/'Air Voids Pay Factor'!$D$11)))))","v":""},{"$f":"'Gauge-Core Variability'!I21","v":""},null,{"$error":"#VALUE!"},null,null,null,{"$f":"IFERROR(ROUND(+L23/(M23-N23),3),\"\")","v":""},{"$f":"IF(AND('Project Info & Instructions'!$O$9=2,O23=\"\"),\"\",IF('Project Info & Instructions'!$O$9=2,100*(O23/'Core Data'!$I$1),IF(OR('Air Voids Pay Factor'!$D$11=\"\",O23=\"\"),\"\",100*(O23/'Air Voids Pay Factor'!$D$11))))","v":""},{"$f":"IF(L23=\"\",\"\",L23-D23)","v":""},"","","",{"$f":"IF(P23=\"\",\"\",P23-H23)","v":""},null,"","","","","",null,false,{"$error":"#VALUE!"},""]
[null,null,null,null,null,"Avg",{"$f":"IF(SUM(G19:G23,G11:G15)<0.0001,\"\",AVERAGE(G19:G23,G11:G15))","v":""},"",null,null,null,null,null,"Avg",{"$f":"IF(SUM(O19:O23,O11:O15)<0.0001,\"\",AVERAGE(O19:O23,O11:O15))","v":""},{"$f":"IF(SUM(P11:P15,P19:P23)<1,\"\",AVERAGE(P19:P23,P11:P15))","v":""},null,null,null,"Difference in Average % Density",{"$f":"IF(SUM(U11:U15,U19:U23)=0,\"\",AVERAGE(U19:U23,U11:U15))","v":""}]
["Note:    "]
["The Location Comparison Result references values on the Gauge-Core Variability Tab comparing the core density data with each adjusted nuclear density gauge reading at each test location. \"Suspect Core\" is displayed under Location Comparison Result if the Location Comparison average is ≥ 1.0 or ≤ -1.0 this indicates a core that may be damaged. Contact the Regional PWL Representative when a \"Suspect Core\" is identified here or when core density values are considered questionable. ONLY THE REGIONAL PWL REPRESENTATIVE CAN REMOVE A CORE FROM ANALYSIS.",null,null,null,null,null,null,null,null,null,null,"If the difference between the QC and QV average densities is greater than 0.5%, consider using QV core densities in place of QC core densities."]
[]
[]
[]
[]
[]
[]
[]
[]
["Other/Notes:"]
[]
[]
[]
[null,null,null,null,null,null,null,null,{"$f":"'Project Info & Instructions'!A6","v":"Revised 04-08-22"}]

{"sheet":"AC % Data","index":3,"n_rows":27,"n_cols":17,"rows_kept":27,"cut":false,"hidden":false,"merged":[[25,25,25,27],[5,6,5,7],[2,2,2,3],[2,6,2,7],[3,2,3,3],[3,6,3,7],[4,2,4,3],[4,6,4,7],[16,1,18,6],[11,1,11,6]]}
[null,"Asphalt Content (AC) % Testing Data",null,null,null,null,null,null,null,null,null,null,"Conformance Limit","Acceptance Limit"]
[null,null,null,null,null,null,null,null,null,null,null,1,{"$f":"$G$6-0.3","v":{"$error":"#VALUE!"}},{"$f":"$G$6-0.5","v":{"$error":"#VALUE!"}}]
[null,"Date:",{"$f":"IF('Project Info & Instructions'!C10=\"\",\"\",'Project Info & Instructions'!C10)","v":""},null,null,"Test Strip #:",{"$f":"IF('Project Info & Instructions'!C11=\"\",\"\",'Project Info & Instructions'!C11)","v":""},null,null,"Test strip type",{"$f":"'Project Info & Instructions'!O9","v":1},2,{"$f":"$G$6-0.3","v":{"$error":"#VALUE!"}},{"$f":"$G$6-0.5","v":{"$error":"#VALUE!"}}]
[null,"Project ID:",{"$f":"IF('Project Info & Instructions'!C13=\"\",\"\",'Project Info & Instructions'!C13)","v":""},null,null,"Route/Road:",{"$f":"IF('Project Info & Instructions'!C14=\"\",\"\",'Project Info & Instructions'!C14)","v":""},null,null,null,null,3,{"$error":"#VALUE!"},{"$error":"#VALUE!"}]
[null,"Mix Type:",{"$f":"IF('Project Info & Instructions'!C21=\"\",\"\",'Project Info & Instructions'!C21)","v":"--"},null,null," Layer:",{"$f":"IF('Project Info & Instructions'!G16=\"\",\"\",'Project Info & Instructions'!G16)","v":""}]
[null,null,null,null,null,"JMF AC%:",{"$f":"IF('Project Info & Instructions'!G22=\"\",\"Enter JMF Binder AC%\",'Project Info & Instructions'!G22)","v":"Enter JMF Binder AC%"}]
[null,"AC Binder %",null,null,null,null,null,null,null,null,null,null,"QC & QV",null,null,"BTS"]
[null,"Split Sample Number","Tonnage","QC AC%","QV AC%","Difference QC & QV","BTS Referee AC%",null,null,null,"QC % Below JMF","QV % Below JMF","Unacceptable Material AC% (1 = yes)","split sample comparison requires BTS (1 = yes)","BTS % Below JMF","Unacceptable Material AC% (1 = yes)","BTS for Graph"]
[null,1,{"$f":"'Project Info & Instructions'!G29","v":0},null,null,{"$f":"IF(OR(D9=\"\",E9=\"\"),\"\",ABS(D9-E9))","v":""},{"$f":"IF(OR($M9=1,$N9=1),\"Enter BTS AC%\",\"\")","v":""},"","Gse: ",{"$f":"IF('Project Info & Instructions'!I23=\"\",\"\",'Project Info & Instructions'!I23)","v":""},{"$f":"IF(OR(D9=\"\",$J$9=\"\",$J$10=\"\"),\"\",D9-$G$6)","v":""},{"$f":"IF(OR(E9=\"\",$J$9=\"\",$J$10=\"\"),\"\",E9-$G$6)","v":""},{"$f":"IF(OR(K9<-0.55,L9<-0.55),1,0)","v":0},{"$f":"IF('Split Sample Comparison'!Y$22>0,1,0)","v":0},{"$f":"(IF(ISNUMBER(G9),G9-$G$6,\"\"))","v":""},{"$f":"IF(O9<-0.5,1,0)","v":0},{"$f":"IF(OR(G9=\"\",G9=\"Enter BTS AC%\"),#N/A,G9)","v":{"$error":"#N/A"}}]
[null,2,{"$f":"'Project Info & Instructions'!G30","v":0},null,null,{"$f":"IF(OR(D10=\"\",E10=\"\"),\"\",ABS(D10-E10))","v":""},"","","AC Sp Gr:",{"$f":"'Project Info & Instructions'!G23","v":0},{"$f":"IF(OR(D10=\"\",$J$9=\"\",$J$10=\"\"),\"\",D10-$G$6)","v":""},{"$f":"IF(OR(E10=\"\",$J$9=\"\",$J$10=\"\"),\"\",E10-$G$6)","v":""},{"$f":"IF(OR(K10<-0.55,L10<-0.55),1,0)","v":0},{"$f":"IF('Split Sample Comparison'!Y$22>0,1,0)","v":0},{"$f":"(IF(ISNUMBER(G10),G10-$G$6,\"\"))","v":""},{"$f":"IF(O10<-0.5,1,0)","v":0},{"$f":"IF(OR(G10=\"\",G10=\"Enter BTS AC%\"),#N/A,G10)","v":{"$error":"#N/A"}}]
[null,3,{"$f":"'Project Info & Instructions'!G31","v":0},null,null,{"$f":"IF(OR(D11=\"\",E11=\"\"),\"\",ABS(D11-E11))","v":""},"","",null,null,"","",{"$f":"IF(OR(K11<-0.55,L11<-0.55),1,0)","v":0},{"$f":"IF('Split Sample Comparison'!Y$22>0,1,0)","v":0},{"$f":"(IF(ISNUMBER(G11),G11-$G$6,\"\"))","v":""},0,{"$f":"IF(OR(G11=\"\",G11=\"Enter BTS AC%\"),#N/A,G11)","v":{"$error":"#N/A"}}]
[null,"AC% below calculated from the JMF Gse, JMF AC Sp Gr., and each Split Sample's GMM for reference only.",null,null,null,null,null,null,null,null,null,null,{"$f":"SUM(M9:M11)","v":0},null,{"$f":"COUNT(G9:G11)","v":0},{"$f":"IF(O12=0,0,SUM(P9:P11))","v":0}]
[null,"Split Sample Number","Tonnage","QC Calc AC%","QV Calc AC%","Difference QC & QV","BTS Calc AC%"]
[null,1,{"$f":"'Project Info & Instructions'!G29","v":0},{"$f":"IF(OR($K$3=2,$J$9=\"\",$J$10=\"\"),\"\",IF('Split Sample Comparison'!D9=\"\",\"\",100*('AC % Data'!$J$10/'Split Sample Comparison'!D9)*(('AC % Data'!$J$9-'Split Sample Comparison'!D9)/('AC % Data'!$J$9-'AC % Data'!$J$10))))","v":""},{"$f":"IF(OR($K$3=2,$J$9=\"\",$J$10=\"\"),\"\",IF('Split Sample Comparison'!E9=\"\",\"\",100*('AC % Data'!$J$10/'Split Sample Comparison'!E9)*(('AC % Data'!$J$9-'Split Sample Comparison'!E9)/('AC % Data'!$J$9-'AC % Data'!$J$10))))","v":""},{"$f":"IF(OR(D14=\"\",E14=\"\"),\"\",ABS(D14-E14))","v":""},{"$f":"IF(OR($J$9=\"\",$J$10=\"\"),\"\",IF('Split Sample Comparison'!K9=\"\",\"\",IF('Split Sample Comparison'!K9=\"BTS Result\",\"BTS Result\",100*('AC % Data'!$J$10/'Split Sample Comparison'!K9)*(('AC % Data'!$J$9-'Split Sample Comparison'!K9)/('AC % Data'!$J$9-'AC % Data'!$J$10)))))","v":""},null,null,null,null,null,null,"Pass/Fail"]
[null,2,{"$f":"'Project Info & Instructions'!G30","v":0},{"$f":"IF(OR($K$3=2,$J$9=\"\",$J$10=\"\"),\"\",IF('Split Sample Comparison'!D10=\"\",\"\",100*('AC % Data'!$J$10/'Split Sample Comparison'!D10)*(('AC % Data'!$J$9-'Split Sample Comparison'!D10)/('AC % Data'!$J$9-'AC % Data'!$J$10))))","v":""},{"$f":"IF(OR($K$3=2,$J$9=\"\",$J$10=\"\"),\"\",IF('Split Sample Comparison'!E10=\"\",\"\",100*('AC % Data'!$J$10/'Split Sample Comparison'!E10)*(('AC % Data'!$J$9-'Split Sample Comparison'!E10)/('AC % Data'!$J$9-'AC % Data'!$J$10))))","v":""},{"$f":"IF(OR(D15=\"\",E15=\"\"),\"\",ABS(D15-E15))","v":""},{"$f":"IF(OR($J$9=\"\",$J$10=\"\"),\"\",IF('Split Sample Comparison'!K10=\"\",\"\",IF('Split Sample Comparison'!K10=\"BTS Result\",\"BTS Result\",100*('AC % Data'!$J$10/'Split Sample Comparison'!K10)*(('AC % Data'!$J$9-'Split Sample Comparison'!K10)/('AC % Data'!$J$9-'AC % Data'!$J$10)))))","v":""},null,null,null,null,null,null,{"$f":"IF(AND(M12>0,O12=0),1,IF(AND(M12>0,P12>0),1,IF(AND(M12=0,P12>0),1,IF(AND(M12=0,P12=0),0,IF(AND(M12>0,P12=0),0,1)))))","v":0}]
[null,3,{"$f":"'Project Info & Instructions'!G31","v":0},{"$f":"IF(OR($K$3=2,$J$9=\"\",$J$10=\"\"),\"\",IF('Split Sample Comparison'!D11=\"\",\"\",100*('AC % Data'!$J$10/'Split Sample Comparison'!D11)*(('AC % Data'!$J$9-'Split Sample Comparison'!D11)/('AC % Data'!$J$9-'AC % Data'!$J$10))))","v":""},{"$f":"IF(OR($K$3=2,$J$9=\"\",$J$10=\"\"),\"\",IF('Split Sample Comparison'!E11=\"\",\"\",100*('AC % Data'!$J$10/'Split Sample Comparison'!E11)*(('AC % Data'!$J$9-'Split Sample Comparison'!E11)/('AC % Data'!$J$9-'AC % Data'!$J$10))))","v":""},{"$f":"IF(OR(D16=\"\",E16=\"\"),\"\",ABS(D16-E16))","v":""},{"$f":"IF(OR($J$9=\"\",$J$10=\"\"),\"\",IF('Split Sample Comparison'!K11=\"\",\"\",IF('Split Sample Comparison'!K11=\"BTS Result\",\"BTS Result\",100*('AC % Data'!$J$10/'Split Sample Comparison'!K11)*(('AC % Data'!$J$9-'Split Sample Comparison'!K11)/('AC % Data'!$J$9-'AC % Data'!$J$10)))))","v":""}]
[null,{"$f":"IF(K3=2,\"\",IF(OR(J9=\"\",J10=\"\"),\"Enter Gse and AC Sp Gr on Project Info & Instructions Tab!\",\"\"))","v":"Enter Gse and AC Sp Gr on Project Info & Instructions Tab!"}]
[]
[]
[null,"Note:    "]
[null,"Enter JMF AC  %, JMF Gse, and JMF AC Specific Gravity on the Project Info & Instructions tab. "]
[null,"No pay adjustment will be assessed based on AC % test results. However, results of AC % "]
[null,"testing will be referenced when determining test strip approval."]
[null,null,null,null,null,null,{"$f":"'Project Info & Instructions'!A6","v":"Revised 04-08-22"}]
[]
[]
[null,"of mix resumes."]

{"sheet":"Mix Acceptance","index":4,"n_rows":22,"n_cols":15,"rows_kept":22,"cut":false,"hidden":false,"merged":[[19,1,21,2],[1,0,3,1],[0,3,3,7],[21,14,21,16],[5,2,6,2],[4,3,6,3],[4,4,4,6],[4,8,4,10],[4,11,4,13],[13,14,15,15]]}
["Mix Acceptance Results",null,null,"Confirm that the mixture conforms to acceptance limits by checking the boxes below. "]
["Test strip HMA mixture shall conform to the following limits based on individual QC and QV test results (tolerances based on most recent JMF):"]
[]
[]
[null,null,null,null,"Split Sample ",null,null,null,"Split Sample Test Results",null,null,"Split Sample Test Results"]
[null,"Item","Acceptance Limits",null,1,2,3,null,1,2,3,1,2,3]
[]
[null,"% passing given Sieve:"]
[null,"37.5-mm","+/- 8.0",null,null,null,null,null,false,false,false,{"$f":"IF(I9=TRUE,1,0)","v":0},{"$f":"IF(J9=TRUE,1,0)","v":0},{"$f":"IF(K9=TRUE,1,0)","v":0}]
[null,"25.0-mm","+/- 8.0",null,null,null,null,null,false,false,false,{"$f":"IF(I10=TRUE,1,0)","v":0},0,0]
[null,"19.0-mm","+/- 7.5",null,null,null,null,null,false,false,false,{"$f":"IF(I11=TRUE,1,0)","v":0},0,0]
[null,"12.5-mm","+/- 7.5",null,null,null,null,null,false,false,false,0,0,0]
[null,"9.5-mm","+/- 7.5",null,null,null,null,null,false,false,false,0,0,0]
[null,"2.36-mm","+/- 7.0",null,null,null,null,null,false,false,false,0,0,0]
[null,"75-µm","+/- 3.0",null,null,null,null,null,false,false,false,0,0,0]
[null,"VMA in percent[2]",-1,null,null,null,null,null,false,false,false,0,0,0]
[]
[null,null,"Test Result",null,{"$f":"IF(L18=0,\"\",IF(L18=8,\"PASS\",\"FAIL\"))","v":""},{"$f":"IF(M18=0,\"\",IF(M18=8,\"PASS\",\"FAIL\"))","v":""},{"$f":"IF(N18=0,\"\",IF(N18=8,\"PASS\",\"FAIL\"))","v":""},null,null,null,null,{"$f":"SUM(L9:L16)","v":0},{"$f":"SUM(M9:M16)","v":0},{"$f":"SUM(N9:N16)","v":0}]
[null,null,null,null,null,null,null,null,null,null,null,null,null,{"$f":"SUM(L18:N18)","v":0}]
[null,"[2] VMA limits based on minimum requirement for mix design nominal maximum aggregate size in table 460‑1."]
[]
[null,null,null,null,null,null,null,null,null,null,null,null,null,null,{"$f":"'Project Info & Instructions'!A6","v":"Revised 04-08-22"}]

{"sheet":"Air Voids Pay Factor","index":5,"n_rows":13,"n_cols":28,"rows_kept":13,"cut":false,"hidden":false,"merged":[[10,3,10,5],[11,3,11,5],[12,22,12,23],[6,2,8,2],[6,0,8,0],[2,27,4,27],[3,2,3,3],[2,25,4,25],[2,26,4,26],[4,0,4,20],[1,22,4,22],[1,23,4,23],[1,2,1,3],[1,5,1,6],[2,5,2,6],[3,5,3,6],[2,2,2,3]]}
[null,"Air Voids Pay Factor"]
[null,"Date:",{"$f":"IF('Project Info & Instructions'!C10=\"\",\"\",'Project Info & Instructions'!C10)","v":""},null,"Test Strip #:",{"$f":"IF('Project Info & Instructions'!C11=\"\",\"\",'Project Info & Instructions'!C11)","v":""},null,null,null,null,null,null,null,null,null,null,null,"TargetVa:",3,null,null,null,"PWL Default Unit Price","Contract Unit Price"]
[null,"Project ID:",{"$f":"IF('Project Info & Instructions'!C13=\"\",\"\",'Project Info & Instructions'!C13)","v":""},null,"Route/Road:",{"$f":"IF('Project Info & Instructions'!C14=\"\",\"\",'Project Info & Instructions'!C14)","v":""},null,null,null,null,null,null,null,null,null,null,null,"LSLVa:",2,null,null,null,null,null,null,"LSL","Target","USL"]
[null,"Mix Type:",{"$f":"IF('Project Info & Instructions'!C21=\"\",\"\",'Project Info & Instructions'!C21)","v":"--"},null," Layer:",{"$f":"IF('Project Info & Instructions'!G16=\"\",\"\",'Project Info & Instructions'!G16)","v":""},null,null,null,null,null,null,null,null,null,null,null,"USLVa:",4.3]
["Air Voids"]
["Lot","Split Sample No.","Date","Gmm","Gmb","Air Voids","Standard Deviation","Mean","Number of Tests in Lot","Quality IndexUL","d2","x","PWLUL","Quality IndexLL","d2","x","PWLLL","PWLVa","PFVa","Lot Size (Ton)","Air Voids Pay Adjustment",null,65,{"$f":"IF('Project Info & Instructions'!C22=\"\",\"\",'Project Info & Instructions'!C22)","v":""},null,2,3,4.3]
["TS-",1,{"$f":"IF('Split Sample Comparison'!C3:D3=\"\",\"\",'Split Sample Comparison'!C3:D3)","v":""},{"$f":"IF('Split Sample Comparison'!D9=\"\",\"\",IF('Split Sample Comparison'!Y22=0,'Split Sample Comparison'!D9,IF('Split Sample Comparison'!K9=\"\",\"BTS Result\",'Split Sample Comparison'!K9)))","v":""},{"$f":"IF('Split Sample Comparison'!D19=\"\",\"\",IF('Split Sample Comparison'!Y22=0,'Split Sample Comparison'!D19,IF('Split Sample Comparison'!K19=\"\",\"BTS Result\",'Split Sample Comparison'!K19)))","v":""},{"$f":"IF(OR(D7=\"BTS Result\",E7=\"BTS Result\"),\"\",IF('Split Sample Comparison'!$T$23<12,\"\",ROUND(100*(D7-E7)/D7,3)))","v":""}]
[null,2,null,{"$f":"IF('Split Sample Comparison'!D10=\"\",\"\",IF('Split Sample Comparison'!Y22=0,'Split Sample Comparison'!D10,IF('Split Sample Comparison'!K10=\"\",\"BTS Result\",'Split Sample Comparison'!K10)))","v":""},{"$f":"IF('Split Sample Comparison'!D20=\"\",\"\",IF('Split Sample Comparison'!Y22=0,'Split Sample Comparison'!D20,IF('Split Sample Comparison'!K20=\"\",\"BTS Result\",'Split Sample Comparison'!K20)))","v":""},{"$f":"IF(OR(D8=\"BTS Result\",E8=\"BTS Result\"),\"\",IF('Split Sample Comparison'!$T$23<12,\"\",ROUND(100*(D8-E8)/D8,3)))","v":""}]
[null,3,null,{"$f":"IF('Split Sample Comparison'!D11=\"\",\"\",IF('Split Sample Comparison'!Y22=0,'Split Sample Comparison'!D11,IF('Split Sample Comparison'!K11=\"\",\"BTS Result\",'Split Sample Comparison'!K11)))","v":""},{"$f":"IF('Split Sample Comparison'!D21=\"\",\"\",IF('Split Sample Comparison'!Y22=0,'Split Sample Comparison'!D21,IF('Split Sample Comparison'!K21=\"\",\"BTS Result\",'Split Sample Comparison'!K21)))","v":""},{"$f":"IF(OR(D9=\"BTS Result\",E9=\"BTS Result\"),\"\",IF('Split Sample Comparison'!$T$23<12,\"\",ROUND(100*(D9-E9)/D9,3)))","v":""},{"$f":"IF(OR(F7=\"\",F8=\"\",F9=\"\"),\"\",IF('Split Sample Comparison'!T23<12,\"\",IF(STDEV(F7:F9)<0.001,0.001,STDEV(F7:F9))))","v":""},{"$f":"IF(OR(F7=\"\",F8=\"\",F9=\"\"),\"\",IF('Split Sample Comparison'!T23<12,\"\",AVERAGE(F7:F9)))","v":""},3,{"$f":"($AB$6-H9)/G9","v":{"$error":"#VALUE!"}},{"$f":"IF(D7=\"BTS Result\",\"\",SQRT($I9))","v":1.7320508075688772},{"$f":"IF(D7=0,\"\",IF(MAX(0,0.5-(J9*$K9/(2*($I9-1))))>1,1,MAX(0,0.5-(J9*$K9/(2*($I9-1))))))","v":{"$error":"#VALUE!"}},{"$f":"IF(D7=\"\",\"\",100-(BETADIST(L9,($I9/2)-1,($I9/2)-1)*100))","v":""},{"$f":"(H9-Z$6)/G9","v":{"$error":"#VALUE!"}},{"$f":"IF(D7=0,\"\",SQRT($I9))","v":1.7320508075688772},{"$f":"IF(D7=0,\"\",IF(MAX(0,0.5-(N9*$K9/(2*($I9-1))))>1,1,MAX(0,0.5-(N9*$K9/(2*($I9-1))))))","v":{"$error":"#VALUE!"}},{"$f":"IF(D7=\"\",\"\",100-(BETADIST(P9,($I9/2)-1,($I9/2)-1)*100))","v":""},{"$f":"IF(OR(F7=\"\",F8=\"\",F9=\"\"),\"\",IF('Split Sample Comparison'!T23<12,\"\",(M9+Q9)-100))","v":""},{"$f":"IF(OR(F7=\"\",F8=\"\",F9=\"\"),\"\",IF(R9<50,50,IF(R9<90,R9*0.5+55,(R9-90)*0.4+100)))","v":""},{"$f":"IF(OR(F7=\"\",F8=\"\",F9=\"\"),\"\",IF('Project Info & Instructions'!C23=\"\",\"Final Tonnage Needed\",'Project Info & Instructions'!C23))","v":""},{"$f":"IF(OR(F7=\"\",F8=\"\",F9=\"\",'Project Info & Instructions'!C23=\"\"),\"\",IF(S9=50,((S9-100)*(X6*$T9)/(100)),IF(T9=\"\",\"\",((S9-100)*W$6*$T9)/(2*100))))","v":""},{"$f":"IF(U9>0,\"460.2010 Incentive Air Voids HMA Pavement\",\"804.2015 Disincentive Air Voids HMA Pavement\")","v":"460.2010 Incentive Air Voids HMA Pavement"}]
[]
[null,null,"Average Gmm:",{"$f":"IF(SUM(D7:D9)<0.01,\"\",IF('Split Sample Comparison'!Y22=0,AVERAGE('Split Sample Comparison'!D9:D11),AVERAGE(D7:D9)))","v":""}]
[null,null,"Gmm Source:",{"$f":"IF('Split Sample Comparison'!Y22=0,\"QC\",\"BTS Referee\")","v":"QC"}]
["Acceptable Gmm & Gmb values carried in as determined from the Split Sample Comparison worksheet/tab",null,null,null,null,null,null,null,null,null,null,null,null,null,null,null,null,null,null,null,null,null,{"$f":"'Project Info & Instructions'!A6","v":"Revised 04-08-22"}]

{"sheet":"Density Pay Factor","index":6,"n_rows":27,"n_cols":16,"rows_kept":27,"cut":false,"hidden":false,"merged":[[18,3,18,4],[19,3,19,4],[20,3,20,4],[18,0,18,2],[1,15,4,15],[6,2,15,2],[1,2,1,3],[2,2,2,3],[3,2,3,3],[4,0,4,13],[1,5,1,6],[2,5,2,6],[3,5,3,6],[6,0,10,0],[11,0,15,0],[1,14,4,14]]}
[null,"Density Pay Factor"]
[null,"Date:",{"$f":"IF('Project Info & Instructions'!C10=\"\",\"\",'Project Info & Instructions'!C10)","v":""},null,"Test Strip #:",{"$f":"IF('Project Info & Instructions'!C11=\"\",\"\",'Project Info & Instructions'!C11)","v":""},null,null,null,null,null,null,"Lane Width(ft):",{"$f":"IF('Project Info & Instructions'!G11=\"\",\"\",'Project Info & Instructions'!G11)","v":""},"PWL Default Unit Price","Contract Unit Price"]
[null,"Project ID:",{"$f":"IF('Project Info & Instructions'!C13=\"\",\"\",'Project Info & Instructions'!C13)","v":""},null,"Route/Road:",{"$f":"IF('Project Info & Instructions'!C14=\"\",\"\",'Project Info & Instructions'!C14)","v":""},null,null,null,null,null,null,"Nominal Thickness(in):",{"$f":"IF('Project Info & Instructions'!G12=\"\",\"\",'Project Info & Instructions'!G12)","v":""}]
[null,"Mix Type:",{"$f":"IF('Project Info & Instructions'!C21=\"\",\"\",'Project Info & Instructions'!C21)","v":"--"},null," Layer:",{"$f":"IF('Project Info & Instructions'!G16=\"\",\"\",'Project Info & Instructions'!G16)","v":""},null,null,null,null,null,null,"LSL(%):",{"$f":"IF('Project Info & Instructions'!G18=\"\",\"Enter LSL\",'Project Info & Instructions'!G18)","v":"Enter Mix and Layer Info"}]
["Density"]
["Zone","Core No.","Date","Core Data (%Gmm)","Standard Deviation","Mean","Number of Tests in Lot","Quality Index","d2","x","PWLD","PFD","Lot Size (Ton)","Density Pay Adjustment",65,{"$f":"IF('Project Info & Instructions'!C22=\"\",\"\",'Project Info & Instructions'!C22)","v":""}]
["1-",{"$f":"'Core Data'!A11","v":""},{"$f":"'Split Sample Comparison'!C3:D3","v":""},{"$f":"'Core Data'!AA11","v":""}]
[null,{"$f":"'Core Data'!A12","v":""},null,{"$f":"'Core Data'!AA12","v":""}]
[null,{"$f":"'Core Data'!A13","v":""},null,{"$f":"'Core Data'!AA13","v":""}]
[null,{"$f":"'Core Data'!A14","v":""},null,{"$f":"'Core Data'!AA14","v":""}]
[null,{"$f":"'Core Data'!A15","v":""},null,{"$f":"'Core Data'!AA15","v":""}]
["2-",{"$f":"'Core Data'!A19","v":""},null,{"$f":"'Core Data'!AA19","v":""}]
[null,{"$f":"'Core Data'!A20","v":""},null,{"$f":"'Core Data'!AA20","v":""}]
[null,{"$f":"'Core Data'!A21","v":""},null,{"$f":"'Core Data'!AA21","v":""}]
[null,{"$f":"'Core Data'!A22","v":""},null,{"$f":"'Core Data'!AA22","v":""}]
[null,{"$f":"'Core Data'!A23","v":""},null,{"$f":"'Core Data'!AA23","v":""}]
[null,null,null,null,{"$f":"IF(SUM(D7:D16)=0,\"\",IF(STDEV(D7:D16)<0.001,0.001,STDEV(D7:D16)))","v":""},{"$f":"IF(SUM(D7:D16)=0,\"\",AVERAGE(D7:D16))","v":""},{"$f":"COUNT(D7:D16)","v":0},{"$f":"(F17-N4)/E17","v":{"$error":"#VALUE!"}},{"$f":"SQRT($G17)","v":0},{"$f":"IF(MAX(0,0.5-(H17*$I17/(2*($G17-1))))>1,1,MAX(0,0.5-(H17*$I17/(2*($G17-1)))))","v":{"$error":"#VALUE!"}},{"$f":"IF(SUM(D7:D16)=0,\"\",IF(N4=\"Enter LSL\",\"Enter LSL\",100-(BETADIST(J17,($G17/2)-1,($G17/2)-1)*100)))","v":""},{"$f":"IF(SUM(D7:D16)=0,\"\",IF(N4=\"Enter LSL\",\"Enter LSL\",IF(K17<50,50,IF(K17<90,K17*0.5+55,(K17-90)*0.4+100))))","v":""},{"$f":"IF(SUM(D7:D16)=0,\"\",IF('Project Info & Instructions'!C24=\"\",\"Final Length Needed\",IF(N4=\"Enter LSL\",\"Enter LSL\",((L27*$N$2)/9*112*$N$3/2000))))","v":""},{"$f":"IF(OR(SUM(D7:D16)=0,'Project Info & Instructions'!C24=\"\"),\"\",IF(L17=50,((L17-100)*(P6*$M17)/(100)),IF(L27=\"\",\"\",((L17-100)*O$6*$M17)/(2*100))))","v":""},{"$f":"IF(N17>0,\"460.2005 Incentive Density PWL HMA Pavement\",\"804.2010 Disincentive PWL HMA Pavement\")","v":"460.2005 Incentive Density PWL HMA Pavement"}]
[]
["Gmm Used for Core Density:",null,null,{"$f":"IF(AND('Project Info & Instructions'!O9=2,'Core Data'!I1=\"\"),\"Enter Gmm on Proj Info Tab\",IF('Project Info & Instructions'!O9=2,'Core Data'!I1,IF('Air Voids Pay Factor'!D11=\"\",\"\",'Air Voids Pay Factor'!D11)))","v":""}]
[null,null,"Gmm Data Used:",{"$f":"IF('Split Sample Comparison'!Y22=0,\"QC\",\"BTS Referee\")","v":"QC"}]
[null,null,"Core Data Used:",{"$f":"IF('Core Data'!$AC$5=1,\"QC\",\"QV\")","v":"QC"}]
[null,null,null,"Core data calculated from Contractor measured Gmb under Dept. supervision, "]
[null,null,null,"and Gmm values determined acceptable in accordance with the paired t-test"]
[]
[]
[]
[null,null,null,null,null,null,null,null,null,null,"Final Length:",{"$f":"IF('Project Info & Instructions'!C24=\"\",\"\",'Project Info & Instructions'!C24)","v":""},"Feet",null,{"$f":"'Project Info & Instructions'!A6","v":"Revised 04-08-22"}]

{"sheet":"Test Strip Summary","index":7,"n_rows":44,"n_cols":16,"rows_kept":44,"cut":false,"hidden":false,"merged":[[32,12,33,14],[11,1,11,7],[18,1,18,7],[20,1,20,3],[21,1,21,3],[16,1,16,7],[12,4,12,7],[13,4,13,7],[7,8,11,9],[7,12,7,14],[10,12,11,14],[17,12,18,14],[24,12,26,14],[19,4,19,7],[19,1,19,3],[17,1,17,7],[21,4,21,7],[22,4,22,7],[20,4,20,7],[29,1,29,3],[29,4,29,7],[22,1,22,3],[24,1,24,7],[23,4,23,7],[27,1,27,3],[27,4,27,7],[26,1,26,7],[28,1,28,3],[28,4,28,7],[23,1,23,3],[25,1,25,7],[1,2,1,3],[2,2,2,3],[3,2,3,3],[4,2,4,3],[2,6,2,7],[1,6,1,7],[3,6,3,7],[4,6,4,7],[14,4,14,7],[15,4,15,7],[12,1,12,3],[13,1,13,3],[7,1,7,7],[8,2,8,7],[9,2,9,7],[14,1,14,3],[15,1,15,3],[10,1,10,7],[30,1,30,3],[30,4,30,7],[37,1,37,9],[43,8,43,9],[38,4,38,5],[39,4,42,5],[31,1,31,7],[33,1,33,7],[34,1,34,3],[35,1,35,3],[34,4,34,7],[35,4,35,7],[32,1,32,7]]}
[null,"Test Strip Summary"]
[null,"Contract:",{"$f":"IF('Project Info & Instructions'!C12=\"\",\"\",'Project Info & Instructions'!C12)","v":""},null,null,"Test Strip #:",{"$f":"IF('Project Info & Instructions'!C11=\"\",\"\",'Project Info & Instructions'!C11)","v":""},null,"Paving Width(ft):",{"$f":"IF('Project Info & Instructions'!G10=\"\",\"\",'Project Info & Instructions'!G10)","v":""}]
[null,"Job No./Project ID:",{"$f":"IF('Project Info & Instructions'!C13=\"\",\"\",'Project Info & Instructions'!C13)","v":""},null,null,"Route/Road:",{"$f":"IF('Project Info & Instructions'!C14=\"\",\"\",'Project Info & Instructions'!C14)","v":""},null,"Lane Width(ft):",{"$f":"IF('Project Info & Instructions'!G11=\"\",\"\",'Project Info & Instructions'!G11)","v":""}]
[null,"WisDOT Mix No.:",{"$f":"IF('Project Info & Instructions'!C16=\"\",\"\",'Project Info & Instructions'!C16)","v":""},null,null,"Test Strip Layer:",{"$f":"IF('Project Info & Instructions'!G16=\"\",\"\",'Project Info & Instructions'!G16)","v":""},null,"Nominal Thickness(in):",{"$f":"IF('Project Info & Instructions'!G12=\"\",\"\",'Project Info & Instructions'!G12)","v":""}]
[null,"Mix Type:",{"$f":"IF('Project Info & Instructions'!C21=\"\",\"\",'Project Info & Instructions'!C21)","v":"--"},null,null,"Underlying Layer:",{"$f":"IF('Project Info & Instructions'!G17=\"\",\"\",'Project Info & Instructions'!G17)","v":""},null,"Contract Unit Price:",{"$f":"IF('Project Info & Instructions'!C22=\"\",\"\",'Project Info & Instructions'!C22)","v":""}]
[null,"File Name:",{"$f":"'Project Info & Instructions'!C35","v":"__--__PWL-TS--Combined"},null,null,"Test Strip Type:",{"$f":"'Project Info & Instructions'!O10","v":"Combined Density and Volumetrics Test Strip"},null,null,null,null,null,null,null,"Test strip type",{"$f":"'Project Info & Instructions'!O9","v":1}]
[]
[null,"Overall Test Strip Approval and Material Acceptance",null,null,null,null,null,null,"Save with Suggested File Name and send a copy of the completed Test Strip Excel file to the Regional PWL Rep. and BTS (Daniel.Kopacz@dot.wi.gov).",null,null,null,"Flags"]
[null,"Test Strip",{"$f":"IF(AND(P6=1,OR(B17=\"\",B25=\"\",B32=\"\",N35=\"\",N36=\"\")),\"\",IF(AND(P6=2,OR(B25=\"\",E24=\"Enter JMF Gmm on Project Info & Instructions Tab\",E24=\"Enter Non-Random Gmm on Core Data Tab\")),\"\",IF(AND(P6=3,OR(B17=\"\",B32=\"\",N35=\"\",N36=\"\",)),\"\",IF(AND(P6=1,(SUM(N24,N32,N35:N37)=0),N17>0),\"Approved; However, Consult Regional PWL Rep and BTS Prior to Proceeding with Production\",IF(AND(P6=1,(SUM(N24,N32,N35:N37,N17)=0)),\"Approved, Proceed With Production\",IF(AND(P6=2,N24=0),\"Approved, Proceed With Production\",IF(AND(P6=3,SUM(N32,N35:N37)=0),\"Approved, Proceed With Production\",IF(AND(P6=3,SUM(N32,N35:N37)=0,N17>0),\"Approved; However, Consult Regional PWL Rep and BTS Prior to Proceeding with Production\",\"Not Approved, Consult Regional PWL Rep. & BTS\"))))))))","v":""},null,null,null,null,null,null,null,null,null,"Data Filled (1 = yes, 0 = no)?","Fail (1 = yes, 0 = no)?","PWL<50 (1 = yes, 0 = no)?"]
[null,"Material",{"$f":"IF(AND(P6=1,OR(B17=\"\",B25=\"\",B32=\"\",N35=\"\",N36=\"\")),\"\",IF(AND(P6=2,B25=\"\"),\"\",IF(AND(P6=3,OR(B32=\"\",N35=\"\",N36=\"\", N37=\"\")),\"\",IF(AND(O10=0,SUM(N35:N37)=0),\"Conforming, Test Strip Material May Remain in Place\",\"Unacceptable, Consult Regional PWL Rep. & BTS.\"))))","v":""},null,null,null,null,null,null,null,null,"Sum:",{"$f":"_xlfn.AGGREGATE(9,6,M17,M24,M32)","v":0},{"$f":"_xlfn.AGGREGATE(9,6,N17,N24,N32)","v":0},{"$f":"_xlfn.AGGREGATE(9,6,O17,O24,O32)","v":0}]
[null,null,null,null,null,null,null,null,null,null,null,null,{"$f":"B12","v":"Split Sample Comparison"}]
[null,"Split Sample Comparison"]
[null,"Gmm Split Sample t-test Results",null,null,{"$f":"IF('Split Sample Comparison'!I11=\"\",\"\",'Split Sample Comparison'!I11)","v":""},null,null,null,null,null,null,null,{"$f":"IF(E13=\"\",0,1)","v":0},{"$f":"IF(E13=\"Datasets Compare\",0,1)","v":1},{"$f":"NA()","v":{"$error":"#N/A"}}]
[null,"Gmm Test Differences Within Tolerance?",null,null,{"$f":"IF('Split Sample Comparison'!G10=\"\",\"\",'Split Sample Comparison'!G10)","v":""},null,null,null,null,null,null,null,{"$f":"IF(E14=\"\",0,1)","v":0},{"$f":"IF(E14=\"Test differences within testing tolerance\",0,1)","v":1},{"$f":"NA()","v":{"$error":"#N/A"}}]
[null,"Gmb Split Sample t-test Results",null,null,{"$f":"IF('Split Sample Comparison'!I21=\"\",\"\",'Split Sample Comparison'!I21)","v":""},null,null,null,null,null,null,null,{"$f":"IF(E15=\"\",0,1)","v":0},{"$f":"IF(E15=\"Datasets Compare\",0,1)","v":1},{"$f":"NA()","v":{"$error":"#N/A"}}]
[null,"Gmb Test Differences Within Tolerance?",null,null,{"$f":"IF('Split Sample Comparison'!G20=\"\",\"\",'Split Sample Comparison'!G20)","v":""},null,null,null,null,null,null,null,{"$f":"IF(E16=\"\",0,1)","v":0},{"$f":"IF(E16=\"Test differences within testing tolerance\",0,1)","v":1},{"$f":"NA()","v":{"$error":"#N/A"}}]
[null,{"$f":"IF('Split Sample Comparison'!U26=TRUE,CONCATENATE(\"Failed T-test Only - No Referee Needed - \",'Split Sample Comparison'!K24),IF(N17=\"\",\"\",IF(N17>0,\"Split Samples do not Compare, Consult Regional PWL Rep. & BTS\",\"Pass\")))","v":""},null,null,null,null,null,null,null,null,null,"Sum:",{"$f":"SUM(M13:M16)","v":0},{"$f":"IF('Split Sample Comparison'!U26=TRUE,0,IF(M17<4,\"\",SUM(N13:N16)))","v":""},{"$f":"_xlfn.AGGREGATE(9,6,O13:O16)","v":0}]
[null,null,null,null,null,null,null,null,null,null,null,null,{"$f":"B19","v":"Density"}]
[null,"Density"]
[null,"Density Test Strip Tonnage",null,null,{"$f":"'Density Pay Factor'!M17","v":""},null,null,null,null,null,null,null,{"$f":"IF(E20=\"\",0,1)","v":0},{"$f":"NA()","v":{"$error":"#N/A"}},{"$f":"NA()","v":{"$error":"#N/A"}}]
[null,"PWL",null,null,{"$f":"'Density Pay Factor'!K17","v":""},null,null,null,null,null,null,null,{"$f":"IF(E21=\"\",0,1)","v":0},{"$f":"IF(E21>=75,0,1)","v":0},{"$f":"IF(E21<50,1,0)","v":0}]
[null,"Pay Factor",null,null,{"$f":"'Density Pay Factor'!L17","v":""},null,null,null,null,null,null,null,0,{"$f":"NA()","v":{"$error":"#N/A"}},{"$f":"NA()","v":{"$error":"#N/A"}}]
[null,"Density Net Pay Adjustment",null,null,{"$f":"'Density Pay Factor'!N17","v":""},null,null,null,{"$f":"IF(E23>0,\"460.2005 Incentive Density PWL HMA Pavement\",\"804.2010 Disincentive Density PWL HMA Pavement\")","v":"460.2005 Incentive Density PWL HMA Pavement"},null,null,null,{"$f":"IF(E23=\"\",0,1)","v":0},{"$f":"IF(AND(P6=2,E24=\"Non-Random Gmm Exceeds Acceptance Limits\"),1,0)","v":0},{"$f":"NA()","v":{"$error":"#N/A"}}]
[null,"Non-Random Gmm Test Result (Density Only Test Strip)",null,null,{"$f":"IF('Project Info & Instructions'!G21=\"\",\"Enter JMF Gmm on Project Info & Instructions Tab\",IF(AND(P6=2,'Core Data'!I2=\"\"),\"Enter Gmm Taken During Test Strip on Core Data Tab\",IF(P6=2,'Core Data'!F3,\"\")))","v":"Enter JMF Gmm on Project Info & Instructions Tab"},null,null,null,null,null,null,"Sum:",{"$f":"SUM(M20:M23)","v":0},{"$f":"IF(M24<3,\"\",_xlfn.AGGREGATE(9,6,N20:N23))","v":""},{"$f":"_xlfn.AGGREGATE(9,6,O20:O23)","v":0}]
[null,{"$f":"IF(N24=\"\",\"\",IF(N24>0,\"Fail\",\"Pass\"))","v":""},null,null,null,null,null,null,null,null,null,null,{"$f":"B27","v":"Air Voids"}]
[]
[null,"Air Voids"]
[null,"Air Voids Test Strip Tonnage",null,null,{"$f":"IF('Air Voids Pay Factor'!T9=\"\",\"\",'Air Voids Pay Factor'!T9)","v":""},null,null,null,null,null,null,null,{"$f":"IF(E28=\"\",0,1)","v":0},{"$f":"NA()","v":{"$error":"#N/A"}},{"$f":"NA()","v":{"$error":"#N/A"}}]
[null,"PWL",null,null,{"$f":"IF('Air Voids Pay Factor'!R9=\"\",\"\",'Air Voids Pay Factor'!R9)","v":""},null,null,null,null,null,null,null,{"$f":"IF(E29=\"\",0,1)","v":0},{"$f":"IF(E29>=75,0,1)","v":0},{"$f":"IF(E29<50,1,0)","v":0}]
[null,"Pay Factor",null,null,{"$f":"IF('Air Voids Pay Factor'!S9=\"\",\"\",'Air Voids Pay Factor'!S9)","v":""},null,null,null,null,null,null,null,{"$f":"IF(E30=\"\",0,1)","v":0},{"$f":"NA()","v":{"$error":"#N/A"}},{"$f":"NA()","v":{"$error":"#N/A"}}]
[null,"Air Voids Net Pay Adjustment",null,null,{"$f":"IF('Air Voids Pay Factor'!U9=\"\",\"\",'Air Voids Pay Factor'!U9)","v":""},null,null,null,{"$f":"IF(E31>0,\"460.2010 Incentive Air Voids HMA Pavement\",\"804.2015 Disincentive Air Voids HMA Pavement\")","v":"460.2010 Incentive Air Voids HMA Pavement"},null,null,null,{"$f":"IF(E31=\"\",0,1)","v":0},{"$f":"NA()","v":{"$error":"#N/A"}},{"$f":"NA()","v":{"$error":"#N/A"}}]
[null,{"$f":"IF(N32=\"\",\"\",IF(N32>0,\"Fail\",\"Pass\"))","v":""},null,null,null,null,null,null,null,null,null,"Sum:",{"$f":"SUM(M28:M31)","v":0},{"$f":"IF(M32<3,\"\",N29)","v":""},{"$f":"_xlfn.AGGREGATE(9,6,O28:O31)","v":0}]
[null,null,null,null,null,null,null,null,null,null,null,null,"Other Volumetric Checks"]
[null,"AC % and Mix Acceptance Results"]
[null,"AC %",null,null,{"$f":"IF(P6=2,\"\",IF(AND(P6<>2,N35=\"\"),\"Enter AC% Data\",IF(N35>0,\"AC Binder % Exceeds Acceptance Limits\",\"Pass\")))","v":"Enter AC% Data"},null,null,null,null,null,null,"AC",{"$f":"COUNT('AC % Data'!D9:E11)","v":0},{"$f":"IF(AND('AC % Data'!J9>0,'AC % Data'!J10>0,M35>5),'AC % Data'!N15,\"\")","v":""},{"$f":"NA()","v":{"$error":"#N/A"}}]
[null,"Mix Acceptance",null,null,{"$f":"IF(P6=2,\"\",IF(M36=0,\"Fill Out Mix Acceptance Tab\",IF(OR(N36=1,N37=1),\"One or More Mix Parameter Exceeds Acceptance Limits\",\"Pass\")))","v":"Fill Out Mix Acceptance Tab"},null,null,null,null,null,null,"Mix",{"$f":"IF(AND(P6<>2,'Mix Acceptance'!N19=0),0,1)","v":0},{"$f":"IF(P6=2,\"\",IF(AND(P6<>2,'Mix Acceptance'!N19=0),\"\",IF(AND(P6<>2,'Mix Acceptance'!N19<24),1,0)))","v":""},{"$f":"NA()","v":{"$error":"#N/A"}}]
[null,null,null,null,null,null,null,null,null,null,null,"Gmm",{"$f":"NA()","v":{"$error":"#N/A"}},{"$f":"'Split Sample Comparison'!M13","v":0},{"$f":"NA()","v":{"$error":"#N/A"}}]
[null,"Nuclear Density Gauge Correlation (Info from QC/QV Density, Correlation, and Gauge-Core Variability Worksheets) "]
[null,"Gauge ID","NUCDENSITYTEC","Gauge Serial #","Core Spread (%)",null,"Gauge Spread (%)","Gauge Comp. Avg.","Gauge Recommendation","Gauge Offset"]
[null,"QC-1",{"$f":"IF('QC-1 Density Worksheet'!I5=\"\",\"Enter Tech Info\",'QC-1 Density Worksheet'!I5)","v":"Enter Tech Info"},{"$f":"IF('QC-1 Correlation'!W14=\"\",\"Enter Serial #\",'QC-1 Correlation'!W14)","v":"Enter Serial #"},{"$f":"IF('QC-1 Correlation'!AA11=\"\",\"\",'QC-1 Correlation'!AA11)","v":""},null,{"$f":"IF('QC-1 Correlation'!AA14=\"\",\"\",'QC-1 Correlation'!AA14)","v":0},{"$f":"IF('Gauge-Core Variability'!B36=\"\",\"\",'Gauge-Core Variability'!B36)","v":""},{"$f":"IF(H40=\"\",\"\",IF(H40>0.94,\"SUSPECT GAUGE\",IF(H40<H41,\"Primary QC\",\"Secondary QC\")))","v":""},{"$f":"IF('QC-1 Correlation'!Y14=\"\",\"\",ROUND('QC-1 Correlation'!Y14,1))","v":""}]
[null,"QC-2",{"$f":"IF('QC-2 Density Worksheet'!I5=\"\",\"Enter Tech Info\",'QC-2 Density Worksheet'!I5)","v":"Enter Tech Info"},{"$f":"IF('QC-1 Correlation'!W15=\"\",\"Enter Serial #\",'QC-1 Correlation'!W15)","v":"Enter Serial #"},null,null,{"$f":"IF('QC-1 Correlation'!AA15=\"\",\"\",'QC-1 Correlation'!AA15)","v":0},{"$f":"IF('Gauge-Core Variability'!C36=\"\",\"\",'Gauge-Core Variability'!C36)","v":""},{"$f":"IF(H41=\"\",\"\",IF(H41>0.94,\"SUSPECT GAUGE\",IF(H41<H40,\"Primary QC\",\"Secondary QC\")))","v":""},{"$f":"IF('QC-1 Correlation'!Y15=\"\",\"\",ROUND('QC-1 Correlation'!Y15,1))","v":""}]
[null,"QV-1",{"$f":"IF('QV-1 Density Worksheet'!I6=\"\",\"Enter Tech Info\",'QV-1 Density Worksheet'!I6)","v":"Enter Tech Info"},{"$f":"IF('QC-1 Correlation'!W16=\"\",\"Enter Serial #\",'QC-1 Correlation'!W16)","v":"Enter Serial #"},null,null,{"$f":"IF('QC-1 Correlation'!AA16=\"\",\"\",'QC-1 Correlation'!AA16)","v":0},{"$f":"IF('Gauge-Core Variability'!D36=\"\",\"\",'Gauge-Core Variability'!D36)","v":""},{"$f":"IF(H42=\"\",\"\",IF(H42>0.94,\"SUSPECT GAUGE\",IF(H42<H43,\"Primary QV\",\"Secondary QV\")))","v":""},{"$f":"IF('QC-1 Correlation'!Y16=\"\",\"\",ROUND('QC-1 Correlation'!Y16,1))","v":""}]
[null,"QV-2",{"$f":"IF('QV-2 Density Worksheet'!I6=\"\",\"Enter Tech Info\",'QV-2 Density Worksheet'!I6)","v":"Enter Tech Info"},{"$f":"IF('QV-2 Correlation'!W17=\"\",\"Enter Serial #\",'QV-2 Correlation'!W17)","v":"Enter Serial #"},null,null,{"$f":"IF('QC-1 Correlation'!AA17=\"\",\"\",'QC-1 Correlation'!AA17)","v":0},{"$f":"IF('Gauge-Core Variability'!E36=\"\",\"\",'Gauge-Core Variability'!E36)","v":""},{"$f":"IF(H43=\"\",\"\",IF(H43>0.94,\"SUSPECT GAUGE\",IF(H43<H42,\"Primary QV\",\"Secondary QV\")))","v":""},{"$f":"IF('QC-1 Correlation'!Y17=\"\",\"\",ROUND('QC-1 Correlation'!Y17,1))","v":""}]
[null,null,null,null,null,null,null,null,{"$f":"'Project Info & Instructions'!$A$6","v":"Revised 04-08-22"}]

{"sheet":"Gauge-Core Variability","index":8,"n_rows":40,"n_cols":22,"rows_kept":40,"cut":false,"hidden":false,"merged":[[9,20,9,21],[1,9,1,10],[2,9,2,10],[3,9,3,10],[1,2,1,6],[6,13,6,22],[4,9,4,10],[4,2,4,6],[3,2,3,6],[2,2,2,6],[6,2,6,6],[39,4,39,6],[8,1,8,4],[22,1,22,4],[22,15,22,18],[8,15,8,18],[11,9,20,11],[9,6,9,7],[34,1,34,4],[23,6,36,10]]}
[null,"Gauge-Core Variability"]
[null,"Contract:",{"$f":"IF('Project Info & Instructions'!C12=\"\",\"\",'Project Info & Instructions'!C12)","v":""},null,null,null,null,null,"Test Strip #:",{"$f":"IF('Project Info & Instructions'!C11=\"\",\"\",'Project Info & Instructions'!C11)","v":""},null,"Paving Width(ft):",{"$f":"IF('Project Info & Instructions'!G10=\"\",\"\",'Project Info & Instructions'!G10)","v":""}]
[null,"Job No./Project ID:",{"$f":"IF('Project Info & Instructions'!C13=\"\",\"\",'Project Info & Instructions'!C13)","v":""},null,null,null,null,null,"Route/Road:",{"$f":"IF('Project Info & Instructions'!C14=\"\",\"\",'Project Info & Instructions'!C14)","v":""},null,"Lane Width(ft):",{"$f":"IF('Project Info & Instructions'!G11=\"\",\"\",'Project Info & Instructions'!G11)","v":""}]
[null,"WisDOT Mix No.:",{"$f":"IF('Project Info & Instructions'!C16=\"\",\"\",'Project Info & Instructions'!C16)","v":""},null,null,null,null,null,"Test Strip Layer:",{"$f":"IF('Project Info & Instructions'!G16=\"\",\"\",'Project Info & Instructions'!G16)","v":""},null,"Nominal Thickness(in):",{"$f":"IF('Project Info & Instructions'!G12=\"\",\"\",'Project Info & Instructions'!G12)","v":""}]
[null,"Mix Type:",{"$f":"IF('Project Info & Instructions'!C21=\"\",\"\",'Project Info & Instructions'!C21)","v":"--"},null,null,null,null,null,"Underlying Layer:",{"$f":"IF('Project Info & Instructions'!G17=\"\",\"\",'Project Info & Instructions'!G17)","v":""},null,"Contract Unit Price:",{"$f":"IF('Project Info & Instructions'!C22=\"\",\"\",'Project Info & Instructions'!C22)","v":""}]
[null,"File Name:",{"$f":"'Project Info & Instructions'!C35","v":"__--__PWL-TS--Combined"}]
[null,"Core Data Used:",{"$f":"IF('Core Data'!$AC$5=1,\"QC\",\"QV\")","v":"QC"},null,null,null,null,null,null,null,null,null,null,"Original Data Including Removed Cores"]
[]
[null,"Nuclear Density Gauge Adjusted Difference",null,null,null,null,null,null,null,null,null,null,null,null,null,"Nuclear Density Gauge Adjusted Difference"]
[null,"QC-1","QC-2","QV-1","QV-2",null,"Location Comparison",null,null,null,null,null,null,null,null,"QC-1","QC-2","QV-1","QV-2",null,"Location Comparison"]
["Core",{"$f":"'Test Strip Summary'!D40","v":"Enter Serial #"},{"$f":"'Test Strip Summary'!D41","v":"Enter Serial #"},{"$f":"'Test Strip Summary'!D42","v":"Enter Serial #"},{"$f":"'Test Strip Summary'!D43","v":"Enter Serial #"},null,"Avg.","Std.",null,null,null,null,null,null,"Core",{"$f":"'Test Strip Summary'!D40","v":"Enter Serial #"},{"$f":"'Test Strip Summary'!D41","v":"Enter Serial #"},{"$f":"'Test Strip Summary'!D42","v":"Enter Serial #"},{"$f":"'Test Strip Summary'!D43","v":"Enter Serial #"},null,"Avg.","Std."]
[{"$f":"'QC-1 Correlation'!A25","v":""},{"$f":"'QC-1 Correlation'!U25","v":""},{"$f":"'QC-2 Correlation'!U25","v":""},{"$f":"'QV-1 Correlation'!U25","v":""},{"$f":"'QV-2 Correlation'!U25","v":""},null,{"$f":"IF(COUNT(B12:E12)=0,\"\",AVERAGE(B12:E12))","v":""},{"$f":"IF(COUNT(B12:E12)=0,\"\",STDEV(B12:E12))","v":""},{"$f":"IF(G12=\"\",\"\",IF(OR(G12>=0.95,G12<=-0.95),\"Suspect Core\",\"\"))","v":""},"Location Comparison Averages (shown in cells G12 - G21) ≥ 1.0 or ≤ -1.0 indicate a core that may be damaged.  In such cases the individual core can be removed from the analysis by checking the \"Remove Core X\" box on the Core Data tab of this spreadsheet.   ",null,null,null,null,{"$f":"A12","v":""},{"$f":"'QC-1 Correlation'!AO25","v":""},{"$f":"'QC-2 Correlation'!AO25","v":""},{"$f":"'QV-1 Correlation'!AO25","v":""},{"$f":"'QV-2 Correlation'!AO25","v":""},null,{"$f":"IF(COUNT(P12:S12)=0,\"\",AVERAGE(P12:S12))","v":""},{"$f":"IF(COUNT(P12:S12)=0,\"\",STDEV(P12:S12))","v":""}]
[{"$f":"'QC-1 Correlation'!A26","v":""},{"$f":"'QC-1 Correlation'!U26","v":""},{"$f":"'QC-2 Correlation'!U26","v":""},{"$f":"'QV-1 Correlation'!U26","v":""},{"$f":"'QV-2 Correlation'!U26","v":""},null,{"$f":"IF(COUNT(B13:E13)=0,\"\",AVERAGE(B13:E13))","v":""},{"$f":"IF(COUNT(B13:E13)=0,\"\",STDEV(B13:E13))","v":""},{"$f":"IF(G13=\"\",\"\",IF(OR(G13>=0.95,G13<=-0.95),\"Suspect Core\",\"\"))","v":""},null,null,null,null,null,{"$f":"A13","v":""},{"$f":"'QC-1 Correlation'!AO26","v":""},{"$f":"'QC-2 Correlation'!AO26","v":""},{"$f":"'QV-1 Correlation'!AO26","v":""},{"$f":"'QV-2 Correlation'!AO26","v":""},null,{"$f":"IF(COUNT(P13:S13)=0,\"\",AVERAGE(P13:S13))","v":""},{"$f":"IF(COUNT(P13:S13)=0,\"\",STDEV(P13:S13))","v":""}]
[{"$f":"'QC-1 Correlation'!A27","v":""},{"$f":"'QC-1 Correlation'!U27","v":""},{"$f":"'QC-2 Correlation'!U27","v":""},{"$f":"'QV-1 Correlation'!U27","v":""},{"$f":"'QV-2 Correlation'!U27","v":""},null,{"$f":"IF(COUNT(B14:E14)=0,\"\",AVERAGE(B14:E14))","v":""},"","",null,null,null,null,null,"",{"$f":"'QC-1 Correlation'!AO27","v":""},{"$f":"'QC-2 Correlation'!AO27","v":""},{"$f":"'QV-1 Correlation'!AO27","v":""},{"$f":"'QV-2 Correlation'!AO27","v":""},null,{"$f":"IF(COUNT(P14:S14)=0,\"\",AVERAGE(P14:S14))","v":""},""]
[{"$f":"'QC-1 Correlation'!A28","v":""},{"$f":"'QC-1 Correlation'!U28","v":""},{"$f":"'QC-2 Correlation'!U28","v":""},{"$f":"'QV-1 Correlation'!U28","v":""},{"$f":"'QV-2 Correlation'!U28","v":""},null,"","","",null,null,null,null,null,"",{"$f":"'QC-1 Correlation'!AO28","v":""},{"$f":"'QC-2 Correlation'!AO28","v":""},{"$f":"'QV-1 Correlation'!AO28","v":""},{"$f":"'QV-2 Correlation'!AO28","v":""},null,"",""]
[{"$f":"'QC-1 Correlation'!A29","v":""},{"$f":"'QC-1 Correlation'!U29","v":""},{"$f":"'QC-2 Correlation'!U29","v":""},{"$f":"'QV-1 Correlation'!U29","v":""},{"$f":"'QV-2 Correlation'!U29","v":""},null,"","","",null,null,null,null,null,"",{"$f":"'QC-1 Correlation'!AO29","v":""},{"$f":"'QC-2 Correlation'!AO29","v":""},{"$f":"'QV-1 Correlation'!AO29","v":""},{"$f":"'QV-2 Correlation'!AO29","v":""},null,"",""]
[{"$f":"'QC-1 Correlation'!A35","v":""},{"$f":"'QC-1 Correlation'!U35","v":""},{"$f":"'QC-2 Correlation'!U35","v":""},{"$f":"'QV-1 Correlation'!U35","v":""},{"$f":"'QV-2 Correlation'!U35","v":""},null,"","","",null,null,null,null,null,"",{"$f":"'QC-1 Correlation'!AO35","v":""},{"$f":"'QC-2 Correlation'!AO35","v":""},{"$f":"'QV-1 Correlation'!AO35","v":""},{"$f":"'QV-2 Correlation'!AO35","v":""},null,"",""]
[{"$f":"'QC-1 Correlation'!A36","v":""},{"$f":"'QC-1 Correlation'!U36","v":""},{"$f":"'QC-2 Correlation'!U36","v":""},{"$f":"'QV-1 Correlation'!U36","v":""},{"$f":"'QV-2 Correlation'!U36","v":""},null,"","","",null,null,null,null,null,"",{"$f":"'QC-1 Correlation'!AO36","v":""},{"$f":"'QC-2 Correlation'!AO36","v":""},{"$f":"'QV-1 Correlation'!AO36","v":""},{"$f":"'QV-2 Correlation'!AO36","v":""},null,"",""]
[{"$f":"'QC-1 Correlation'!A37","v":""},{"$f":"'QC-1 Correlation'!U37","v":""},{"$f":"'QC-2 Correlation'!U37","v":""},{"$f":"'QV-1 Correlation'!U37","v":""},{"$f":"'QV-2 Correlation'!U37","v":""},null,"","",{"$f":"IF(G19=\"\",\"\",IF(OR(G19>=0.95,G19<=-0.95),\"Suspect Core\",\"\"))","v":""},null,null,null,null,null,"",{"$f":"'QC-1 Correlation'!AO37","v":""},{"$f":"'QC-2 Correlation'!AO37","v":""},{"$f":"'QV-1 Correlation'!AO37","v":""},{"$f":"'QV-2 Correlation'!AO37","v":""},null,"",""]
[{"$f":"'QC-1 Correlation'!A38","v":""},{"$f":"'QC-1 Correlation'!U38","v":""},{"$f":"'QC-2 Correlation'!U38","v":""},{"$f":"'QV-1 Correlation'!U38","v":""},{"$f":"'QV-2 Correlation'!U38","v":""},null,"","","",null,null,null,null,null,"",{"$f":"'QC-1 Correlation'!AO38","v":""},{"$f":"'QC-2 Correlation'!AO38","v":""},{"$f":"'QV-1 Correlation'!AO38","v":""},{"$f":"'QV-2 Correlation'!AO38","v":""},null,"",""]
[{"$f":"'QC-1 Correlation'!A39","v":""},{"$f":"'QC-1 Correlation'!U39","v":""},{"$f":"'QC-2 Correlation'!U39","v":""},{"$f":"'QV-1 Correlation'!U39","v":""},{"$f":"'QV-2 Correlation'!U39","v":""},null,"","","",null,null,null,null,null,"",{"$f":"'QC-1 Correlation'!AO39","v":""},{"$f":"'QC-2 Correlation'!AO39","v":""},{"$f":"'QV-1 Correlation'!AO39","v":""},{"$f":"'QV-2 Correlation'!AO39","v":""},null,"",""]
[]
["Core","Absolute Value",null,null,null,null,null,null,null,null,null,null,null,null,"Core","Absolute Value"]
[{"$f":"A12","v":""},{"$f":"IF(B12=\"\",\"\",ABS(B12))","v":""},{"$f":"IF(C12=\"\",\"\",ABS(C12))","v":""},"","",null,"A Gauge Comparison Average (shown in cells B36, C36, D36, and E36) ≥ 1.0 indicates a gauge that has erratic readings.  In such cases the gauge in question should be removed from the project and further diagnostics should be performed in coordination with the WisDOT Radiation Safety Officer (RSO). \nContact WisDOT RSO, Mike Bohn \nMichael.Bohn@dot.wi.gov\n(608) 516-6359, Primary\n(715) 421-8002, Wisconsin Rapids Office",null,null,null,null,null,null,null,{"$f":"O12","v":""},{"$f":"IF(P12=\"\",\"\",ABS(P12))","v":""},{"$f":"IF(Q12=\"\",\"\",ABS(Q12))","v":""},"",""]
[{"$f":"A13","v":""},{"$f":"IF(B13=\"\",\"\",ABS(B13))","v":""},"","","",null,null,null,null,null,null,null,null,null,{"$f":"O13","v":""},{"$f":"IF(P13=\"\",\"\",ABS(P13))","v":""},"","",""]
["",{"$f":"IF(B14=\"\",\"\",ABS(B14))","v":""},"","","",null,null,null,null,null,null,null,null,null,"",{"$f":"IF(P14=\"\",\"\",ABS(P14))","v":""},"","",""]
["",{"$f":"IF(B15=\"\",\"\",ABS(B15))","v":""},"","","",null,null,null,null,null,null,null,null,null,"",{"$f":"IF(P15=\"\",\"\",ABS(P15))","v":""},"","",""]
["",{"$f":"IF(B16=\"\",\"\",ABS(B16))","v":""},"","","",null,null,null,null,null,null,null,null,null,"",{"$f":"IF(P16=\"\",\"\",ABS(P16))","v":""},"","",""]
["",{"$f":"IF(B17=\"\",\"\",ABS(B17))","v":""},"","","",null,null,null,null,null,null,null,null,null,"",{"$f":"IF(P17=\"\",\"\",ABS(P17))","v":""},"","",""]
["",{"$f":"IF(B18=\"\",\"\",ABS(B18))","v":""},"","","",null,null,null,null,null,null,null,null,null,"",{"$f":"IF(P18=\"\",\"\",ABS(P18))","v":""},"","",""]
["",{"$f":"IF(B19=\"\",\"\",ABS(B19))","v":""},"","","",null,null,null,null,null,null,null,null,null,"",{"$f":"IF(P19=\"\",\"\",ABS(P19))","v":""},"","",""]
["",{"$f":"IF(B20=\"\",\"\",ABS(B20))","v":""},"","","",null,null,null,null,null,null,null,null,null,"",{"$f":"IF(P20=\"\",\"\",ABS(P20))","v":""},"","",""]
["",{"$f":"IF(B21=\"\",\"\",ABS(B21))","v":""},"","","",null,null,null,null,null,null,null,null,null,"",{"$f":"IF(P21=\"\",\"\",ABS(P21))","v":""},"","",""]
[]
[null,"Gauge Comparison",null,null,null,null,null,null,null,null,null,null,null,null,null,"Gauge Comparison"]
["Avg.",{"$f":"IF(SUM(B24:B33)<0.0001,\"\",AVERAGE(B24:B33))","v":""},{"$f":"IF(SUM(C24:C33)<0.0001,\"\",AVERAGE(C24:C33))","v":""},"","",null,null,null,null,null,null,null,null,null,"Avg.",{"$f":"IF(SUM(P24:P33)<0.0001,\"\",AVERAGE(P24:P33))","v":""},{"$f":"IF(SUM(Q24:Q33)<0.0001,\"\",AVERAGE(Q24:Q33))","v":""},"",""]
["Std.",{"$f":"IF(SUM(B24:B33)<0.0001,\"\",STDEV(B24:B33))","v":""},{"$f":"IF(SUM(C24:C33)<0.0001,\"\",STDEV(C24:C33))","v":""},"","",null,null,null,null,null,null,null,null,null,"Std.",{"$f":"IF(SUM(P24:P33)<0.0001,\"\",STDEV(P24:P33))","v":""},{"$f":"IF(SUM(Q24:Q33)<0.0001,\"\",STDEV(Q24:Q33))","v":""},"",""]
[null,{"$f":"IF(B36=\"\",\"\",IF(B36>=0.95,\"Suspect Gauge\",\"\"))","v":""},{"$f":"IF(C36=\"\",\"\",IF(C36>=0.95,\"Suspect Gauge\",\"\"))","v":""},"",""]
[]
[null,null,null,null,{"$f":"'Project Info & Instructions'!$A$6","v":"Revised 04-08-22"}]

{"sheet":"QC-1 Density Worksheet","index":9,"n_rows":25,"n_cols":30,"rows_kept":25,"cut":false,"hidden":false,"merged":[[11,26,11,28],[11,18,12,18],[11,29,12,29],[11,19,11,21],[1,8,1,9],[1,12,1,14],[12,13,12,14],[11,12,11,14],[10,12,10,14],[9,12,9,14],[8,12,8,14],[7,12,7,14],[6,12,6,14],[5,12,5,14],[2,12,2,14],[4,12,4,14],[3,12,3,14],[11,22,11,25],[4,5,4,6],[14,13,14,14],[13,13,13,14],[4,8,4,10],[3,5,3,6],[0,0,0,4],[3,8,3,10],[7,8,7,10],[11,9,11,11],[1,0,1,4],[5,8,5,10],[11,3,11,5],[11,6,11,8],[5,0,10,6],[8,8,8,10],[9,8,9,10],[10,8,10,10],[11,0,11,1],[3,1,3,3],[4,1,4,3],[2,8,2,9],[25,0,32,14],[23,13,23,14],[22,13,22,14],[21,13,21,14],[20,13,20,14],[24,0,24,14],[19,13,19,14],[18,13,18,14],[17,13,17,14],[16,13,16,14],[15,13,15,14]]}
["PWL DENSITY DATA FORM (LANE FOOT)",null,null,null,null,{"$f":"'Project Info & Instructions'!A6","v":"Revised 04-08-22"}]
["               Nuclear HMA Density QC/QV Testing Records",null,null,null,null,{"$f":"CONCATENATE(\"TEST STRIP #\",'Project Info & Instructions'!C11)","v":"TEST STRIP #"},"QC-1","LAYER:",{"$f":"IF('Project Info & Instructions'!G16=\"\",\"\",'Project Info & Instructions'!G16)","v":""},null,null,"Density\nStandard:"]
["Station Decreasing:",null,{"$f":"'Project Info & Instructions'!O14","v":false},null,null,null,null,null,null,null,null,"Moisture\nStandard: "]
["Project ID:",{"$f":"IF('Project Info & Instructions'!C13=\"\",\"\",'Project Info & Instructions'!C13)","v":""},null,null,"Road Name:",{"$f":"IF('Project Info & Instructions'!C14=\"\",\"\",'Project Info & Instructions'!C14)","v":""},null,"Contractor:",{"$f":"IF('Project Info & Instructions'!G20=\"\",\"\",'Project Info & Instructions'!G20)","v":""},null,null,"Gauge Serial #:",null,null,null,11]
["Project\nLeader:",{"$f":"IF('Project Info & Instructions'!G19=\"\",\"\",'Project Info & Instructions'!G19)","v":""},null,null,"County:",{"$f":"IF('Project Info & Instructions'!C15=\"\",\"\",'Project Info & Instructions'!C15)","v":""},null,"QC \nNUCDENSITYTEC:",null,null,null,"WisDOT Mix #:",{"$f":"IF('Project Info & Instructions'!C16=\"\",\"\",'Project Info & Instructions'!C16)","v":""}]
["TEST STRIP - Field Worksheet\n\nOffsets are predetermined according to layout in SPV\n\nGauge offset is locked at ZERO since Raw Gauge Readings are needed\n\nTarget Max Gmm is average from 3 split samples (locked)\n\nCalculated per CMM 815.10.4.",null,null,null,null,null,null,"QV \nNUCDENSITYTEC:","N/A",null,null,"Mix Type:",{"$f":"IF('Project Info & Instructions'!C21=\"\",\"\",'Project Info & Instructions'!C21)","v":"--"}]
[null,null,null,null,null,null,null,"Start:",{"$f":"IF('Project Info & Instructions'!G14=\"\",\"\",'Project Info & Instructions'!G14)","v":""},"End:",{"$f":"IF('Project Info & Instructions'!I14=\"\",\"\",'Project Info & Instructions'!I14)","v":""},"Target Gmm:",{"$f":"IF('Project Info & Instructions'!O9=2,'Core Data'!I1,'Air Voids Pay Factor'!D11)","v":""}]
[null,null,null,null,null,null,null,"Estimated\nLength (ft):",{"$f":"IF('Project Info & Instructions'!G15=\"\",\"\",'Project Info & Instructions'!G15)","v":""},null,null,"Target Max Density (PCF):",{"$f":"IF(M7=\"\",\"\",ROUND(M7*62.24,1))","v":""}]
[null,null,null,null,null,null,null,"Lane Width (ft):",{"$f":"IF('Project Info & Instructions'!G11=\"\",\"\",'Project Info & Instructions'!G11)","v":""},null,null,"Required\nDensity %:",{"$f":"IF('Project Info & Instructions'!G18=\"\",\"\",'Project Info & Instructions'!G18)","v":"Enter Mix and Layer Info"}]
[null,null,null,null,null,null,null,"Nominal \nThickness(in):",{"$f":"IF('Project Info & Instructions'!G12=\"\",\"\",'Project Info & Instructions'!G12)","v":""},null,null,"Date Placed:",{"$f":"IF('Project Info & Instructions'!C10=\"\",\"\",'Project Info & Instructions'!C10)","v":""}]
[null,null,null,null,null,null,null,"Gauge Offset","ZERO",null,null,"Date Tested:",{"$f":"IF('Project Info & Instructions'!C10=\"\",\"\",'Project Info & Instructions'!C10)","v":""}]
["Gauge/Core Spacing (ft)",null,{"$f":"IF('Project Info & Instructions'!M22=\"\",\"\",'Project Info & Instructions'!M22)","v":50},"Reading 1",null,null,"Reading  2 (rotate 180)",null,null,"Reading  3 (If Reading 1 & 2 are not within +/- 1.0 pcf of one another, collect Reading 3.)",null,null,"Average",null,null,null,null,null,"Lot/Sublot ID","Rounded Readings (0.1 pcf)",null,null,"Variation from Avg",null,null,null,"Filter Outlier",null,null,"Nuc Avg Excluding Outlier (pcf)"]
["Lot / Sub Lot ID","Station","Offset from CL","M Count / \nD Count","Wet Density 1             ","% Max Density 1","M Count / \nD Count","Wet Density 2            ","% Max Density 2","M Count / \nD Count","Wet Density 3             ","% Max Density 3","Average PCF","% Max Density",null,null,null,null,null,"Reading 1","Reading 2","Reading 3","Rounded Average of Readings (pcf)","Reading 1","Reading 2","Reading 3","Read 1","Read 2","Read 3"]
[{"$f":"'Core Data'!A11","v":""},{"$f":"IF(B16=\"\",\"\",IF($C$3=TRUE,B16+2*$C$12,B16-2*$C$12))","v":-100},{"$f":"IF('Project Info & Instructions'!G11=\"\",\"\",1.5)","v":""},null,null,{"$f":"IF(E14=\"\",\"\",ROUND((T14/$M$8),3))","v":""},null,null,{"$f":"IF(H14=\"\",\"\",ROUND((U14/$M$8),3))","v":""},null,null,{"$f":"IF(K14=\"\",\"\",ROUND((V14/$M$8),3))","v":""},{"$f":"IF(F14=\"\",\"\",AD14)","v":""},{"$f":"IF(F14=\"\",\"\",ROUND((M14/$M$8),3))","v":""},null,null,null,null,{"$f":"A14","v":""},{"$f":"IF(E14=\"\",\"\",ROUND(E14,1))","v":""},{"$f":"IF(H14=\"\",\"\",ROUND(H14,1))","v":""},{"$f":"IF(K14=\"\",\"\",ROUND(K14,1))","v":""},{"$f":"IFERROR(IF(ROUND(ABS(T14-U14),1)>1,ROUND(AVERAGE(T14:V14),1),ROUND(AVERAGE(T14:U14),1)),\"\")","v":""},{"$f":"IFERROR(ABS(ROUND(W14-T14,1)),NA())","v":{"$error":"#N/A"}},{"$f":"IFERROR(ABS(ROUND(W14-U14,1)),NA())","v":{"$error":"#N/A"}},{"$f":"IFERROR(ABS(ROUND(W14-V14,1)),NA())","v":{"$error":"#N/A"}},{"$f":"IF(X14=_xlfn.AGGREGATE(4,6,X14:Z14),0,T14)","v":{"$error":"#N/A"}},{"$f":"IF(Y14=_xlfn.AGGREGATE(4,6,X14:Z14),0,U14)","v":{"$error":"#N/A"}},{"$f":"IF(Z14=_xlfn.AGGREGATE(4,6,X14:Z14),0,V14)","v":{"$error":"#N/A"}},{"$f":"IFERROR(IF(OR(COUNT(T14:V14)<3,ROUND(ABS(T14-U14),1)<=1),ROUND(W14,1),IF(AND(COUNT(T14:V14)=3,OR(T14=W14,U14=W14,V14=W14)),ROUND(W14,1),IF(COUNTIF(AA14:AC14,\"=0\")=2,ROUND(W14,1),ROUND(AVERAGEIF(AA14:AC14,\">0\"),1)))),\"\")","v":""}]
[{"$f":"'Core Data'!A12","v":""},{"$f":"IF(B$16=\"\",\"\",IF($C$3=TRUE,B16+$C$12,B16-$C$12))","v":-50},{"$f":"IF('Project Info & Instructions'!G11=\"\",\"\",3.5)","v":""},null,null,{"$f":"IF(E15=\"\",\"\",ROUND((T15/$M$8),3))","v":""},null,null,{"$f":"IF(H15=\"\",\"\",ROUND((U15/$M$8),3))","v":""},null,null,{"$f":"IF(K15=\"\",\"\",ROUND((V15/$M$8),3))","v":""},{"$f":"IF(F15=\"\",\"\",AD15)","v":""},{"$f":"IF(F15=\"\",\"\",ROUND((M15/$M$8),3))","v":""},null,null,null,null,{"$f":"A15","v":""},{"$f":"IF(E15=\"\",\"\",ROUND(E15,1))","v":""},{"$f":"IF(H15=\"\",\"\",ROUND(H15,1))","v":""},{"$f":"IF(K15=\"\",\"\",ROUND(K15,1))","v":""},{"$f":"IFERROR(IF(ROUND(ABS(T15-U15),1)>1,ROUND(AVERAGE(T15:V15),1),ROUND(AVERAGE(T15:U15),1)),\"\")","v":""},{"$f":"IFERROR(ABS(ROUND(W15-T15,1)),NA())","v":{"$error":"#N/A"}},{"$f":"IFERROR(ABS(ROUND(W15-U15,1)),NA())","v":{"$error":"#N/A"}},{"$f":"IFERROR(ABS(ROUND(W15-V15,1)),NA())","v":{"$error":"#N/A"}},{"$f":"IF(X15=_xlfn.AGGREGATE(4,6,X15:Z15),0,T15)","v":{"$error":"#N/A"}},{"$f":"IF(Y15=_xlfn.AGGREGATE(4,6,X15:Z15),0,U15)","v":{"$error":"#N/A"}},{"$f":"IF(Z15=_xlfn.AGGREGATE(4,6,X15:Z15),0,V15)","v":{"$error":"#N/A"}},{"$f":"IFERROR(IF(OR(COUNT(T15:V15)<3,ROUND(ABS(T15-U15),1)<=1),ROUND(W15,1),IF(AND(COUNT(T15:V15)=3,OR(T15=W15,U15=W15,V15=W15)),ROUND(W15,1),IF(COUNTIF(AA15:AC15,\"=0\")=2,ROUND(W15,1),ROUND(AVERAGEIF(AA15:AC15,\">0\"),1)))),\"\")","v":""}]
[{"$f":"'Core Data'!A13","v":""},{"$f":"'Project Info & Instructions'!G26","v":0},{"$f":"IF('Project Info & Instructions'!G11=\"\",\"\",'Project Info & Instructions'!G11/2)","v":""},null,null,"",null,null,"",null,null,"","","",null,null,null,null,"",{"$f":"IF(E16=\"\",\"\",ROUND(E16,1))","v":""},{"$f":"IF(H16=\"\",\"\",ROUND(H16,1))","v":""},{"$f":"IF(K16=\"\",\"\",ROUND(K16,1))","v":""},"",{"$error":"#N/A"},{"$error":"#N/A"},{"$error":"#N/A"},{"$error":"#N/A"},{"$error":"#N/A"},{"$error":"#N/A"},""]
[{"$f":"'Core Data'!A14","v":""},{"$f":"IF(B$16=\"\",\"\",IF($C$3=TRUE,B16-$C$12,B16+$C$12))","v":50},{"$f":"IF('Project Info & Instructions'!G11=\"\",\"\",'Project Info & Instructions'!G11-3.5)","v":""},null,null,"",null,null,"",null,null,"","","",null,null,null,null,"",{"$f":"IF(E17=\"\",\"\",ROUND(E17,1))","v":""},{"$f":"IF(H17=\"\",\"\",ROUND(H17,1))","v":""},{"$f":"IF(K17=\"\",\"\",ROUND(K17,1))","v":""},"",{"$error":"#N/A"},{"$error":"#N/A"},{"$error":"#N/A"},{"$error":"#N/A"},{"$error":"#N/A"},{"$error":"#N/A"},""]
[{"$f":"'Core Data'!A15","v":""},{"$f":"IF(B16=\"\",\"\",IF($C$3=TRUE,B16-2*$C$12,B16+2*$C$12))","v":100},{"$f":"IF('Project Info & Instructions'!G11=\"\",\"\",'Project Info & Instructions'!G11-1.5)","v":""},null,null,"",null,null,"",null,null,"",{"$f":"IF(F18=\"\",\"\",AD18)","v":""},"",null,null,null,null,"",{"$f":"IF(E18=\"\",\"\",ROUND(E18,1))","v":""},{"$f":"IF(H18=\"\",\"\",ROUND(H18,1))","v":""},{"$f":"IF(K18=\"\",\"\",ROUND(K18,1))","v":""},"",{"$error":"#N/A"},{"$error":"#N/A"},{"$error":"#N/A"},{"$error":"#N/A"},{"$error":"#N/A"},{"$error":"#N/A"},""]
[]
[{"$f":"'Core Data'!A19","v":""},{"$f":"IF(B22=\"\",\"\",IF($C$3=TRUE,B22+2*$C$12,B22-2*$C$12))","v":-100},{"$f":"C14","v":""},null,null,{"$f":"IF(E20=\"\",\"\",ROUND((T20/$M$8),3))","v":""},null,null,"",null,null,"",{"$f":"IF(F20=\"\",\"\",AD20)","v":""},"",null,null,null,null,"",{"$f":"IF(E20=\"\",\"\",ROUND(E20,1))","v":""},{"$f":"IF(H20=\"\",\"\",ROUND(H20,1))","v":""},{"$f":"IF(K20=\"\",\"\",ROUND(K20,1))","v":""},"",{"$error":"#N/A"},{"$error":"#N/A"},{"$error":"#N/A"},{"$error":"#N/A"},{"$error":"#N/A"},{"$error":"#N/A"},""]
[{"$f":"'Core Data'!A20","v":""},{"$f":"IF(B$16=\"\",\"\",IF($C$3=TRUE,B22+$C$12,B22-$C$12))","v":-50},{"$f":"C15","v":""},null,null,"",null,null,"",null,null,"","","",null,null,null,null,"",{"$f":"IF(E21=\"\",\"\",ROUND(E21,1))","v":""},{"$f":"IF(H21=\"\",\"\",ROUND(H21,1))","v":""},{"$f":"IF(K21=\"\",\"\",ROUND(K21,1))","v":""},"",{"$error":"#N/A"},{"$error":"#N/A"},{"$error":"#N/A"},{"$error":"#N/A"},{"$error":"#N/A"},{"$error":"#N/A"},""]
[{"$f":"'Core Data'!A21","v":""},{"$f":"'Project Info & Instructions'!G27","v":0},{"$f":"C16","v":""},null,null,"",null,null,"",null,null,"","","",null,null,null,null,"",{"$f":"IF(E22=\"\",\"\",ROUND(E22,1))","v":""},{"$f":"IF(H22=\"\",\"\",ROUND(H22,1))","v":""},{"$f":"IF(K22=\"\",\"\",ROUND(K22,1))","v":""},"",{"$error":"#N/A"},{"$error":"#N/A"},{"$error":"#N/A"},{"$error":"#N/A"},{"$error":"#N/A"},{"$error":"#N/A"},""]
[{"$f":"'Core Data'!A22","v":""},{"$f":"IF(B$16=\"\",\"\",IF($C$3=TRUE,B22-$C$12,B22+$C$12))","v":50},{"$f":"C17","v":""},null,null,"",null,null,"",null,null,"","","",null,null,null,null,"",{"$f":"IF(E23=\"\",\"\",ROUND(E23,1))","v":""},{"$f":"IF(H23=\"\",\"\",ROUND(H23,1))","v":""},{"$f":"IF(K23=\"\",\"\",ROUND(K23,1))","v":""},"",{"$error":"#N/A"},{"$error":"#N/A"},{"$error":"#N/A"},{"$error":"#N/A"},{"$error":"#N/A"},{"$error":"#N/A"},""]
[{"$f":"'Core Data'!A23","v":""},{"$f":"IF(B22=\"\",\"\",IF($C$3=TRUE,B22-2*$C$12,B22+2*$C$12))","v":100},{"$f":"C18","v":""},null,null,"",null,null,"",null,null,"",{"$f":"IF(F24=\"\",\"\",AD24)","v":""},"",null,null,null,null,"",{"$f":"IF(E24=\"\",\"\",ROUND(E24,1))","v":""},{"$f":"IF(H24=\"\",\"\",ROUND(H24,1))","v":""},{"$f":"IF(K24=\"\",\"\",ROUND(K24,1))","v":""},"",{"$error":"#N/A"},{"$error":"#N/A"},{"$error":"#N/A"},{"$error":"#N/A"},{"$error":"#N/A"},{"$error":"#N/A"},""]
["Target Max Density = Gmm x 62.24                                                                                                                                                                                           Test Remarks"]

{"sheet":"QC-2 Density Worksheet","index":10,"n_rows":25,"n_cols":30,"rows_kept":25,"cut":false,"hidden":false,"merged":[[11,0,11,1],[1,8,1,9],[3,8,3,10],[4,8,4,10],[11,3,11,5],[11,6,11,8],[11,9,11,11],[3,12,3,14],[0,0,0,4],[1,0,1,4],[1,12,1,14],[2,12,2,14],[2,8,2,9],[3,1,3,3],[3,5,3,6],[4,12,4,14],[5,0,10,6],[5,8,5,10],[5,12,5,14],[6,12,6,14],[7,8,7,10],[7,12,7,14],[8,8,8,10],[8,12,8,14],[9,8,9,10],[9,12,9,14],[10,8,10,10],[10,12,10,14],[4,1,4,3],[4,5,4,6],[11,26,11,28],[11,29,12,29],[14,13,14,14],[12,13,12,14],[15,13,15,14],[11,12,11,14],[13,13,13,14],[11,18,12,18],[11,19,11,21],[11,22,11,25],[16,13,16,14],[17,13,17,14],[18,13,18,14],[19,13,19,14],[20,13,20,14],[24,0,24,14],[25,0,32,14],[21,13,21,14],[22,13,22,14],[23,13,23,14]]}
["PWL DENSITY DATA FORM (LANE FOOT)",null,null,null,null,{"$f":"'Project Info & Instructions'!A6","v":"Revised 04-08-22"}]
["               Nuclear HMA Density QC/QV Testing Records",null,null,null,null,{"$f":"CONCATENATE(\"TEST STRIP #\",'Project Info & Instructions'!C11)","v":"TEST STRIP #"},"QC-2","LAYER:",{"$f":"IF('Project Info & Instructions'!G16=\"\",\"\",'Project Info & Instructions'!G16)","v":""},null,null,"Density\nStandard:"]
["Station Decreasing:",null,{"$f":"'Project Info & Instructions'!O14","v":false},null,null,null,null,null,null,null,null,"Moisture\nStandard: "]
["Project ID:",{"$f":"IF('Project Info & Instructions'!C13=\"\",\"\",'Project Info & Instructions'!C13)","v":""},null,null,"Road Name:",{"$f":"IF('Project Info & Instructions'!C14=\"\",\"\",'Project Info & Instructions'!C14)","v":""},null,"Contractor:",{"$f":"IF('Project Info & Instructions'!G20=\"\",\"\",'Project Info & Instructions'!G20)","v":""},null,null,"Gauge Serial #:"]
["Project\nLeader:",{"$f":"IF('Project Info & Instructions'!G19=\"\",\"\",'Project Info & Instructions'!G19)","v":""},null,null,"County:",{"$f":"IF('Project Info & Instructions'!C15=\"\",\"\",'Project Info & Instructions'!C15)","v":""},null,"QC \nNUCDENSITYTEC:",null,null,null,"WisDOT Mix #:",{"$f":"IF('Project Info & Instructions'!C16=\"\",\"\",'Project Info & Instructions'!C16)","v":""}]
["TEST STRIP - Field Worksheet\n\nOffsets are predetermined according to layout in SPV\n\nGauge offset is locked at ZERO since Raw Gauge Readings are needed\n\nTarget Max Gmm is average from 3 split samples (locked)\n\nCalculated per CMM 815.10.4.",null,null,null,null,null,null,"QV \nNUCDENSITYTEC:","N/A",null,null,"Mix Type:",{"$f":"IF('Project Info & Instructions'!C21=\"\",\"\",'Project Info & Instructions'!C21)","v":"--"}]
[null,null,null,null,null,null,null,"Start:",{"$f":"IF('Project Info & Instructions'!G14=\"\",\"\",'Project Info & Instructions'!G14)","v":""},"End:",{"$f":"IF('Project Info & Instructions'!I14=\"\",\"\",'Project Info & Instructions'!I14)","v":""},"Target Gmm:",{"$f":"IF('Project Info & Instructions'!O9=2,'Core Data'!I1,'Air Voids Pay Factor'!D11)","v":""}]
[null,null,null,null,null,null,null,"Estimated\nLength (ft):",{"$f":"IF('Project Info & Instructions'!G15=\"\",\"\",'Project Info & Instructions'!G15)","v":""},null,null,"Target Max Density (PCF):",{"$f":"IF(M7=\"\",\"\",ROUND(M7*62.24,1))","v":""}]
[null,null,null,null,null,null,null,"Lane Width (ft):",{"$f":"IF('Project Info & Instructions'!G11=\"\",\"\",'Project Info & Instructions'!G11)","v":""},null,null,"Required\nDensity %:",{"$f":"IF('Project Info & Instructions'!G18=\"\",\"\",'Project Info & Instructions'!G18)","v":"Enter Mix and Layer Info"}]
[null,null,null,null,null,null,null,"Nominal \nThickness(in):",{"$f":"IF('Project Info & Instructions'!G12=\"\",\"\",'Project Info & Instructions'!G12)","v":""},null,null,"Date Placed:",{"$f":"IF('Project Info & Instructions'!C10=\"\",\"\",'Project Info & Instructions'!C10)","v":""}]
[null,null,null,null,null,null,null,"Gauge Offset","ZERO",null,null,"Date Tested:",{"$f":"IF('Project Info & Instructions'!C10=\"\",\"\",'Project Info & Instructions'!C10)","v":""}]
["Gauge/Core Spacing (ft)",null,{"$f":"'QC-1 Density Worksheet'!C12","v":50},"Reading 1",null,null,"Reading  2 (rotate 180)",null,null,"Reading  3 (If Reading 1 & 2 are not within +/- 1.0 pcf of one another, collect Reading 3.)",null,null,"Average",null,null,null,null,null,"Lot/Sublot ID","Rounded Readings (0.1 pcf)",null,null,"Variation from Avg",null,null,null,"Filter Outlier",null,null,"Nuc Avg Excluding Outlier (pcf)"]
["Lot / Sub Lot ID","Station","Offset from CL","M Count / \nD Count","Wet Density 1             ","% Max Density 1","M Count / \nD Count","Wet Density 2            ","% Max Density 2","M Count / \nD Count","Wet Density 3             ","% Max Density 3","Average PCF","% Max Density",null,null,null,null,null,"Reading 1","Reading 2","Reading 3","Rounded Average of Readings (pcf)","Reading 1","Reading 2","Reading 3","Read 1","Read 2","Read 3"]
[{"$f":"'Core Data'!A11","v":""},{"$f":"IF(B16=\"\",\"\",IF($C$3=TRUE,B16+2*$C$12,B16-2*$C$12))","v":-100},{"$f":"'QC-1 Density Worksheet'!C14","v":""},null,null,{"$f":"IF(E14=\"\",\"\",ROUND((T14/$M$8),3))","v":""},null,null,{"$f":"IF(H14=\"\",\"\",ROUND((U14/$M$8),3))","v":""},null,null,{"$f":"IF(K14=\"\",\"\",ROUND((V14/$M$8),3))","v":""},{"$f":"IF(F14=\"\",\"\",AD14)","v":""},{"$f":"IF(F14=\"\",\"\",ROUND((M14/$M$8),3))","v":""},null,null,null,null,{"$f":"A14","v":""},{"$f":"IF(E14=\"\",\"\",ROUND(E14,1))","v":""},{"$f":"IF(H14=\"\",\"\",ROUND(H14,1))","v":""},{"$f":"IF(K14=\"\",\"\",ROUND(K14,1))","v":""},{"$f":"IFERROR(IF(ROUND(ABS(T14-U14),1)>1,ROUND(AVERAGE(T14:V14),1),ROUND(AVERAGE(T14:U14),1)),\"\")","v":""},{"$f":"IFERROR(ABS(ROUND(W14-T14,1)),NA())","v":{"$error":"#N/A"}},{"$f":"IFERROR(ABS(ROUND(W14-U14,1)),NA())","v":{"$error":"#N/A"}},{"$f":"IFERROR(ABS(ROUND(W14-V14,1)),NA())","v":{"$error":"#N/A"}},{"$f":"IF(X14=_xlfn.AGGREGATE(4,6,X14:Z14),0,T14)","v":{"$error":"#N/A"}},{"$f":"IF(Y14=_xlfn.AGGREGATE(4,6,X14:Z14),0,U14)","v":{"$error":"#N/A"}},{"$f":"IF(Z14=_xlfn.AGGREGATE(4,6,X14:Z14),0,V14)","v":{"$error":"#N/A"}},{"$f":"IFERROR(IF(OR(COUNT(T14:V14)<3,ROUND(ABS(T14-U14),1)<=1),ROUND(W14,1),IF(AND(COUNT(T14:V14)=3,OR(T14=W14,U14=W14,V14=W14)),ROUND(W14,1),IF(COUNTIF(AA14:AC14,\"=0\")=2,ROUND(W14,1),ROUND(AVERAGEIF(AA14:AC14,\">0\"),1)))),\"\")","v":""}]
[{"$f":"'Core Data'!A12","v":""},{"$f":"IF(B$16=\"\",\"\",IF($C$3=TRUE,B16+$C$12,B16-$C$12))","v":-50},{"$f":"'QC-1 Density Worksheet'!C15","v":""},null,null,{"$f":"IF(E15=\"\",\"\",ROUND((T15/$M$8),3))","v":""},null,null,{"$f":"IF(H15=\"\",\"\",ROUND((U15/$M$8),3))","v":""},null,null,{"$f":"IF(K15=\"\",\"\",ROUND((V15/$M$8),3))","v":""},{"$f":"IF(F15=\"\",\"\",AD15)","v":""},{"$f":"IF(F15=\"\",\"\",ROUND((M15/$M$8),3))","v":""},null,null,null,null,{"$f":"A15","v":""},{"$f":"IF(E15=\"\",\"\",ROUND(E15,1))","v":""},{"$f":"IF(H15=\"\",\"\",ROUND(H15,1))","v":""},{"$f":"IF(K15=\"\",\"\",ROUND(K15,1))","v":""},{"$f":"IFERROR(IF(ROUND(ABS(T15-U15),1)>1,ROUND(AVERAGE(T15:V15),1),ROUND(AVERAGE(T15:U15),1)),\"\")","v":""},{"$f":"IFERROR(ABS(ROUND(W15-T15,1)),NA())","v":{"$error":"#N/A"}},{"$f":"IFERROR(ABS(ROUND(W15-U15,1)),NA())","v":{"$error":"#N/A"}},{"$f":"IFERROR(ABS(ROUND(W15-V15,1)),NA())","v":{"$error":"#N/A"}},{"$f":"IF(X15=_xlfn.AGGREGATE(4,6,X15:Z15),0,T15)","v":{"$error":"#N/A"}},{"$f":"IF(Y15=_xlfn.AGGREGATE(4,6,X15:Z15),0,U15)","v":{"$error":"#N/A"}},{"$f":"IF(Z15=_xlfn.AGGREGATE(4,6,X15:Z15),0,V15)","v":{"$error":"#N/A"}},{"$f":"IFERROR(IF(OR(COUNT(T15:V15)<3,ROUND(ABS(T15-U15),1)<=1),ROUND(W15,1),IF(AND(COUNT(T15:V15)=3,OR(T15=W15,U15=W15,V15=W15)),ROUND(W15,1),IF(COUNTIF(AA15:AC15,\"=0\")=2,ROUND(W15,1),ROUND(AVERAGEIF(AA15:AC15,\">0\"),1)))),\"\")","v":""}]
[{"$f":"'Core Data'!A13","v":""},{"$f":"'Project Info & Instructions'!G26","v":0},{"$f":"'QC-1 Density Worksheet'!C16","v":""},null,null,"",null,null,"",null,null,"","","",null,null,null,null,"",{"$f":"IF(E16=\"\",\"\",ROUND(E16,1))","v":""},{"$f":"IF(H16=\"\",\"\",ROUND(H16,1))","v":""},{"$f":"IF(K16=\"\",\"\",ROUND(K16,1))","v":""},"",{"$error":"#N/A"},{"$error":"#N/A"},{"$error":"#N/A"},{"$error":"#N/A"},{"$error":"#N/A"},{"$error":"#N/A"},""]
[{"$f":"'Core Data'!A14","v":""},{"$f":"IF(B$16=\"\",\"\",IF($C$3=TRUE,B16-$C$12,B16+$C$12))","v":50},{"$f":"'QC-1 Density Worksheet'!C17","v":""},null,null,"",null,null,"",null,null,"","","",null,null,null,null,"",{"$f":"IF(E17=\"\",\"\",ROUND(E17,1))","v":""},{"$f":"IF(H17=\"\",\"\",ROUND(H17,1))","v":""},{"$f":"IF(K17=\"\",\"\",ROUND(K17,1))","v":""},"",{"$error":"#N/A"},{"$error":"#N/A"},{"$error":"#N/A"},{"$error":"#N/A"},{"$error":"#N/A"},{"$error":"#N/A"},""]
[{"$f":"'Core Data'!A15","v":""},{"$f":"IF(B16=\"\",\"\",IF($C$3=TRUE,B16-2*$C$12,B16+2*$C$12))","v":100},{"$f":"'QC-1 Density Worksheet'!C18","v":""},null,null,"",null,null,"",null,null,"","","",null,null,null,null,"",{"$f":"IF(E18=\"\",\"\",ROUND(E18,1))","v":""},{"$f":"IF(H18=\"\",\"\",ROUND(H18,1))","v":""},{"$f":"IF(K18=\"\",\"\",ROUND(K18,1))","v":""},"",{"$error":"#N/A"},{"$error":"#N/A"},{"$error":"#N/A"},{"$error":"#N/A"},{"$error":"#N/A"},{"$error":"#N/A"},""]
[]
[{"$f":"'Core Data'!A19","v":""},{"$f":"IF(B22=\"\",\"\",IF($C$3=TRUE,B22+2*$C$12,B22-2*$C$12))","v":-100},{"$f":"'QC-1 Density Worksheet'!C20","v":""},null,null,"",null,null,"",null,null,"","","",null,null,null,null,"",{"$f":"IF(E20=\"\",\"\",ROUND(E20,1))","v":""},{"$f":"IF(H20=\"\",\"\",ROUND(H20,1))","v":""},{"$f":"IF(K20=\"\",\"\",ROUND(K20,1))","v":""},"",{"$error":"#N/A"},{"$error":"#N/A"},{"$error":"#N/A"},{"$error":"#N/A"},{"$error":"#N/A"},{"$error":"#N/A"},""]
[{"$f":"'Core Data'!A20","v":""},{"$f":"IF(B$16=\"\",\"\",IF($C$3=TRUE,B22+$C$12,B22-$C$12))","v":-50},{"$f":"'QC-1 Density Worksheet'!C21","v":""},null,null,"",null,null,"",null,null,"","","",null,null,null,null,"",{"$f":"IF(E21=\"\",\"\",ROUND(E21,1))","v":""},{"$f":"IF(H21=\"\",\"\",ROUND(H21,1))","v":""},{"$f":"IF(K21=\"\",\"\",ROUND(K21,1))","v":""},"",{"$error":"#N/A"},{"$error":"#N/A"},{"$error":"#N/A"},{"$error":"#N/A"},{"$error":"#N/A"},{"$error":"#N/A"},""]
[{"$f":"'Core Data'!A21","v":""},{"$f":"'Project Info & Instructions'!G27","v":0},{"$f":"'QC-1 Density Worksheet'!C22","v":""},null,null,"",null,null,"",null,null,"","","",null,null,null,null,"",{"$f":"IF(E22=\"\",\"\",ROUND(E22,1))","v":""},{"$f":"IF(H22=\"\",\"\",ROUND(H22,1))","v":""},{"$f":"IF(K22=\"\",\"\",ROUND(K22,1))","v":""},"",{"$error":"#N/A"},{"$error":"#N/A"},{"$error":"#N/A"},{"$error":"#N/A"},{"$error":"#N/A"},{"$error":"#N/A"},""]
[{"$f":"'Core Data'!A22","v":""},{"$f":"IF(B$16=\"\",\"\",IF($C$3=TRUE,B22-$C$12,B22+$C$12))","v":50},{"$f":"'QC-1 Density Worksheet'!C23","v":""},null,null,"",null,null,"",null,null,"","","",null,null,null,null,"",{"$f":"IF(E23=\"\",\"\",ROUND(E23,1))","v":""},{"$f":"IF(H23=\"\",\"\",ROUND(H23,1))","v":""},{"$f":"IF(K23=\"\",\"\",ROUND(K23,1))","v":""},"",{"$error":"#N/A"},{"$error":"#N/A"},{"$error":"#N/A"},{"$error":"#N/A"},{"$error":"#N/A"},{"$error":"#N/A"},""]
[{"$f":"'Core Data'!A23","v":""},{"$f":"IF(B22=\"\",\"\",IF($C$3=TRUE,B22-2*$C$12,B22+2*$C$12))","v":100},{"$f":"'QC-1 Density Worksheet'!C24","v":""},null,null,"",null,null,"",null,null,"","","",null,null,null,null,"",{"$f":"IF(E24=\"\",\"\",ROUND(E24,1))","v":""},{"$f":"IF(H24=\"\",\"\",ROUND(H24,1))","v":""},{"$f":"IF(K24=\"\",\"\",ROUND(K24,1))","v":""},"",{"$error":"#N/A"},{"$error":"#N/A"},{"$error":"#N/A"},{"$error":"#N/A"},{"$error":"#N/A"},{"$error":"#N/A"},""]
["Target Max Density = Gmm x 62.24                                                                                                                                                                                           Test Remarks"]

{"sheet":"QV-1 Density Worksheet","index":11,"n_rows":25,"n_cols":30,"rows_kept":25,"cut":false,"hidden":false,"merged":[[11,0,11,1],[1,8,1,9],[3,8,3,10],[4,8,4,10],[11,3,11,5],[11,6,11,8],[11,9,11,11],[3,12,3,14],[0,0,0,4],[1,0,1,4],[1,12,1,14],[2,12,2,14],[2,8,2,9],[3,1,3,3],[3,5,3,6],[4,12,4,14],[5,0,10,6],[5,8,5,10],[5,12,5,14],[6,12,6,14],[7,8,7,10],[7,12,7,14],[8,8,8,10],[8,12,8,14],[9,8,9,10],[9,12,9,14],[10,8,10,10],[10,12,10,14],[4,1,4,3],[4,5,4,6],[11,26,11,28],[11,29,12,29],[14,13,14,14],[12,13,12,14],[15,13,15,14],[11,12,11,14],[13,13,13,14],[11,18,12,18],[11,19,11,21],[11,22,11,25],[16,13,16,14],[17,13,17,14],[18,13,18,14],[19,13,19,14],[20,13,20,14],[24,0,24,14],[25,0,32,14],[21,13,21,14],[22,13,22,14],[23,13,23,14]]}
["PWL DENSITY DATA FORM (LANE FOOT)",null,null,null,null,{"$f":"'Project Info & Instructions'!A6","v":"Revised 04-08-22"}]
["               Nuclear HMA Density QC/QV Testing Records",null,null,null,null,{"$f":"CONCATENATE(\"TEST STRIP #\",'Project Info & Instructions'!C11)","v":"TEST STRIP #"},"QV-1","LAYER:",{"$f":"IF('Project Info & Instructions'!G16=\"\",\"\",'Project Info & Instructions'!G16)","v":""},null,null,"Density\nStandard:"]
["Station Decreasing:",null,{"$f":"'Project Info & Instructions'!O14","v":false},null,null,null,null,null,null,null,null,"Moisture\nStandard: "]
["Project ID:",{"$f":"IF('Project Info & Instructions'!C13=\"\",\"\",'Project Info & Instructions'!C13)","v":""},null,null,"Road Name:",{"$f":"IF('Project Info & Instructions'!C14=\"\",\"\",'Project Info & Instructions'!C14)","v":""},null,"Contractor:",{"$f":"IF('Project Info & Instructions'!G20=\"\",\"\",'Project Info & Instructions'!G20)","v":""},null,null,"Gauge Serial #:"]
["Project\nLeader:",{"$f":"IF('Project Info & Instructions'!G19=\"\",\"\",'Project Info & Instructions'!G19)","v":""},null,null,"County:",{"$f":"IF('Project Info & Instructions'!C15=\"\",\"\",'Project Info & Instructions'!C15)","v":""},null,"QC \nNUCDENSITYTEC:","N/A",null,null,"WisDOT Mix #:",{"$f":"IF('Project Info & Instructions'!C16=\"\",\"\",'Project Info & Instructions'!C16)","v":""}]
["TEST STRIP - Field Worksheet\n\nOffsets are predetermined according to layout in SPV\n\nGauge offset is locked at ZERO since Raw Gauge Readings are needed\n\nTarget Max Gmm is average from 3 split samples (locked)\n\nCalculated per CMM 815.10.4.",null,null,null,null,null,null,"QV \nNUCDENSITYTEC:",null,null,null,"Mix Type:",{"$f":"IF('Project Info & Instructions'!C21=\"\",\"\",'Project Info & Instructions'!C21)","v":"--"}]
[null,null,null,null,null,null,null,"Start:",{"$f":"IF('Project Info & Instructions'!G14=\"\",\"\",'Project Info & Instructions'!G14)","v":""},"End:",{"$f":"IF('Project Info & Instructions'!I14=\"\",\"\",'Project Info & Instructions'!I14)","v":""},"Target Gmm:",{"$f":"IF('Project Info & Instructions'!O9=2,'Core Data'!I1,'Air Voids Pay Factor'!D11)","v":""}]
[null,null,null,null,null,null,null,"Estimated\nLength (ft):",{"$f":"IF('Project Info & Instructions'!G15=\"\",\"\",'Project Info & Instructions'!G15)","v":""},null,null,"Target Max Density (PCF):",{"$f":"IF(M7=\"\",\"\",ROUND(M7*62.24,1))","v":""}]
[null,null,null,null,null,null,null,"Lane Width (ft):",{"$f":"IF('Project Info & Instructions'!G11=\"\",\"\",'Project Info & Instructions'!G11)","v":""},null,null,"Required\nDensity %:",{"$f":"IF('Project Info & Instructions'!G18=\"\",\"\",'Project Info & Instructions'!G18)","v":"Enter Mix and Layer Info"}]
[null,null,null,null,null,null,null,"Nominal \nThickness(in):",{"$f":"IF('Project Info & Instructions'!G12=\"\",\"\",'Project Info & Instructions'!G12)","v":""},null,null,"Date Placed:",{"$f":"IF('Project Info & Instructions'!C10=\"\",\"\",'Project Info & Instructions'!C10)","v":""}]
[null,null,null,null,null,null,null,"Gauge Offset","ZERO",null,null,"Date Tested:",{"$f":"IF('Project Info & Instructions'!C10=\"\",\"\",'Project Info & Instructions'!C10)","v":""}]
["Gauge/Core Spacing (ft)",null,{"$f":"'QC-1 Density Worksheet'!C12","v":50},"Reading 1",null,null,"Reading  2 (rotate 180)",null,null,"Reading  3 (If Reading 1 & 2 are not within +/- 1.0 pcf of one another, collect Reading 3.)",null,null,"Average",null,null,null,null,null,"Lot/Sublot ID","Rounded Readings (0.1 pcf)",null,null,"Variation from Avg",null,null,null,"Filter Outlier",null,null,"Nuc Avg Excluding Outlier (pcf)"]
["Lot / Sub Lot ID","Station","Offset from CL","M Count / \nD Count","Wet Density 1             ","% Max Density 1","M Count / \nD Count","Wet Density 2            ","% Max Density 2","M Count / \nD Count","Wet Density 3             ","% Max Density 3","Average PCF","% Max Density",null,null,null,null,null,"Reading 1","Reading 2","Reading 3","Rounded Average of Readings (pcf)","Reading 1","Reading 2","Reading 3","Read 1","Read 2","Read 3"]
[{"$f":"'Core Data'!A11","v":""},{"$f":"IF(B16=\"\",\"\",IF($C$3=TRUE,B16+2*$C$12,B16-2*$C$12))","v":-100},{"$f":"'QC-1 Density Worksheet'!C14","v":""},null,null,{"$f":"IF(E14=\"\",\"\",ROUND((T14/$M$8),3))","v":""},null,null,{"$f":"IF(H14=\"\",\"\",ROUND((U14/$M$8),3))","v":""},null,null,{"$f":"IF(K14=\"\",\"\",ROUND((V14/$M$8),3))","v":""},{"$f":"IF(F14=\"\",\"\",AD14)","v":""},{"$f":"IF(F14=\"\",\"\",ROUND((M14/$M$8),3))","v":""},null,null,null,null,{"$f":"A14","v":""},{"$f":"IF(E14=\"\",\"\",ROUND(E14,1))","v":""},{"$f":"IF(H14=\"\",\"\",ROUND(H14,1))","v":""},{"$f":"IF(K14=\"\",\"\",ROUND(K14,1))","v":""},{"$f":"IFERROR(IF(ROUND(ABS(T14-U14),1)>1,ROUND(AVERAGE(T14:V14),1),ROUND(AVERAGE(T14:U14),1)),\"\")","v":""},{"$f":"IFERROR(ABS(ROUND(W14-T14,1)),NA())","v":{"$error":"#N/A"}},{"$f":"IFERROR(ABS(ROUND(W14-U14,1)),NA())","v":{"$error":"#N/A"}},{"$f":"IFERROR(ABS(ROUND(W14-V14,1)),NA())","v":{"$error":"#N/A"}},{"$f":"IF(X14=_xlfn.AGGREGATE(4,6,X14:Z14),0,T14)","v":{"$error":"#N/A"}},{"$f":"IF(Y14=_xlfn.AGGREGATE(4,6,X14:Z14),0,U14)","v":{"$error":"#N/A"}},{"$f":"IF(Z14=_xlfn.AGGREGATE(4,6,X14:Z14),0,V14)","v":{"$error":"#N/A"}},{"$f":"IFERROR(IF(OR(COUNT(T14:V14)<3,ROUND(ABS(T14-U14),1)<=1),ROUND(W14,1),IF(AND(COUNT(T14:V14)=3,OR(T14=W14,U14=W14,V14=W14)),ROUND(W14,1),IF(COUNTIF(AA14:AC14,\"=0\")=2,ROUND(W14,1),ROUND(AVERAGEIF(AA14:AC14,\">0\"),1)))),\"\")","v":""}]
[{"$f":"'Core Data'!A12","v":""},{"$f":"IF(B$16=\"\",\"\",IF($C$3=TRUE,B16+$C$12,B16-$C$12))","v":-50},{"$f":"'QC-1 Density Worksheet'!C15","v":""},null,null,{"$f":"IF(E15=\"\",\"\",ROUND((T15/$M$8),3))","v":""},null,null,{"$f":"IF(H15=\"\",\"\",ROUND((U15/$M$8),3))","v":""},null,null,{"$f":"IF(K15=\"\",\"\",ROUND((V15/$M$8),3))","v":""},{"$f":"IF(F15=\"\",\"\",AD15)","v":""},{"$f":"IF(F15=\"\",\"\",ROUND((M15/$M$8),3))","v":""},null,null,null,null,{"$f":"A15","v":""},{"$f":"IF(E15=\"\",\"\",ROUND(E15,1))","v":""},{"$f":"IF(H15=\"\",\"\",ROUND(H15,1))","v":""},{"$f":"IF(K15=\"\",\"\",ROUND(K15,1))","v":""},{"$f":"IFERROR(IF(ROUND(ABS(T15-U15),1)>1,ROUND(AVERAGE(T15:V15),1),ROUND(AVERAGE(T15:U15),1)),\"\")","v":""},{"$f":"IFERROR(ABS(ROUND(W15-T15,1)),NA())","v":{"$error":"#N/A"}},{"$f":"IFERROR(ABS(ROUND(W15-U15,1)),NA())","v":{"$error":"#N/A"}},{"$f":"IFERROR(ABS(ROUND(W15-V15,1)),NA())","v":{"$error":"#N/A"}},{"$f":"IF(X15=_xlfn.AGGREGATE(4,6,X15:Z15),0,T15)","v":{"$error":"#N/A"}},{"$f":"IF(Y15=_xlfn.AGGREGATE(4,6,X15:Z15),0,U15)","v":{"$error":"#N/A"}},{"$f":"IF(Z15=_xlfn.AGGREGATE(4,6,X15:Z15),0,V15)","v":{"$error":"#N/A"}},{"$f":"IFERROR(IF(OR(COUNT(T15:V15)<3,ROUND(ABS(T15-U15),1)<=1),ROUND(W15,1),IF(AND(COUNT(T15:V15)=3,OR(T15=W15,U15=W15,V15=W15)),ROUND(W15,1),IF(COUNTIF(AA15:AC15,\"=0\")=2,ROUND(W15,1),ROUND(AVERAGEIF(AA15:AC15,\">0\"),1)))),\"\")","v":""}]
[{"$f":"'Core Data'!A13","v":""},{"$f":"'Project Info & Instructions'!G26","v":0},{"$f":"'QC-1 Density Worksheet'!C16","v":""},null,null,"",null,null,"",null,null,"","","",null,null,null,null,"",{"$f":"IF(E16=\"\",\"\",ROUND(E16,1))","v":""},{"$f":"IF(H16=\"\",\"\",ROUND(H16,1))","v":""},{"$f":"IF(K16=\"\",\"\",ROUND(K16,1))","v":""},"",{"$error":"#N/A"},{"$error":"#N/A"},{"$error":"#N/A"},{"$error":"#N/A"},{"$error":"#N/A"},{"$error":"#N/A"},""]
[{"$f":"'Core Data'!A14","v":""},{"$f":"IF(B$16=\"\",\"\",IF($C$3=TRUE,B16-$C$12,B16+$C$12))","v":50},{"$f":"'QC-1 Density Worksheet'!C17","v":""},null,null,"",null,null,"",null,null,"","","",null,null,null,null,"",{"$f":"IF(E17=\"\",\"\",ROUND(E17,1))","v":""},{"$f":"IF(H17=\"\",\"\",ROUND(H17,1))","v":""},{"$f":"IF(K17=\"\",\"\",ROUND(K17,1))","v":""},"",{"$error":"#N/A"},{"$error":"#N/A"},{"$error":"#N/A"},{"$error":"#N/A"},{"$error":"#N/A"},{"$error":"#N/A"},""]
[{"$f":"'Core Data'!A15","v":""},{"$f":"IF(B16=\"\",\"\",IF($C$3=TRUE,B16-2*$C$12,B16+2*$C$12))","v":100},{"$f":"'QC-1 Density Worksheet'!C18","v":""},null,null,"",null,null,"",null,null,"","","",null,null,null,null,"",{"$f":"IF(E18=\"\",\"\",ROUND(E18,1))","v":""},{"$f":"IF(H18=\"\",\"\",ROUND(H18,1))","v":""},{"$f":"IF(K18=\"\",\"\",ROUND(K18,1))","v":""},"",{"$error":"#N/A"},{"$error":"#N/A"},{"$error":"#N/A"},{"$error":"#N/A"},{"$error":"#N/A"},{"$error":"#N/A"},""]
[]
[{"$f":"'Core Data'!A19","v":""},{"$f":"IF(B22=\"\",\"\",IF($C$3=TRUE,B22+2*$C$12,B22-2*$C$12))","v":-100},{"$f":"'QC-1 Density Worksheet'!C20","v":""},null,null,"",null,null,"",null,null,"","","",null,null,null,null,"",{"$f":"IF(E20=\"\",\"\",ROUND(E20,1))","v":""},{"$f":"IF(H20=\"\",\"\",ROUND(H20,1))","v":""},{"$f":"IF(K20=\"\",\"\",ROUND(K20,1))","v":""},"",{"$error":"#N/A"},{"$error":"#N/A"},{"$error":"#N/A"},{"$error":"#N/A"},{"$error":"#N/A"},{"$error":"#N/A"},""]
[{"$f":"'Core Data'!A20","v":""},{"$f":"IF(B$16=\"\",\"\",IF($C$3=TRUE,B22+$C$12,B22-$C$12))","v":-50},{"$f":"'QC-1 Density Worksheet'!C21","v":""},null,null,"",null,null,"",null,null,"","","",null,null,null,null,"",{"$f":"IF(E21=\"\",\"\",ROUND(E21,1))","v":""},{"$f":"IF(H21=\"\",\"\",ROUND(H21,1))","v":""},{"$f":"IF(K21=\"\",\"\",ROUND(K21,1))","v":""},"",{"$error":"#N/A"},{"$error":"#N/A"},{"$error":"#N/A"},{"$error":"#N/A"},{"$error":"#N/A"},{"$error":"#N/A"},""]
[{"$f":"'Core Data'!A21","v":""},{"$f":"'Project Info & Instructions'!G27","v":0},{"$f":"'QC-1 Density Worksheet'!C22","v":""},null,null,"",null,null,"",null,null,"","","",null,null,null,null,"",{"$f":"IF(E22=\"\",\"\",ROUND(E22,1))","v":""},{"$f":"IF(H22=\"\",\"\",ROUND(H22,1))","v":""},{"$f":"IF(K22=\"\",\"\",ROUND(K22,1))","v":""},"",{"$error":"#N/A"},{"$error":"#N/A"},{"$error":"#N/A"},{"$error":"#N/A"},{"$error":"#N/A"},{"$error":"#N/A"},""]
[{"$f":"'Core Data'!A22","v":""},{"$f":"IF(B$16=\"\",\"\",IF($C$3=TRUE,B22-$C$12,B22+$C$12))","v":50},{"$f":"'QC-1 Density Worksheet'!C23","v":""},null,null,"",null,null,"",null,null,"","","",null,null,null,null,"",{"$f":"IF(E23=\"\",\"\",ROUND(E23,1))","v":""},{"$f":"IF(H23=\"\",\"\",ROUND(H23,1))","v":""},{"$f":"IF(K23=\"\",\"\",ROUND(K23,1))","v":""},"",{"$error":"#N/A"},{"$error":"#N/A"},{"$error":"#N/A"},{"$error":"#N/A"},{"$error":"#N/A"},{"$error":"#N/A"},""]
[{"$f":"'Core Data'!A23","v":""},{"$f":"IF(B22=\"\",\"\",IF($C$3=TRUE,B22-2*$C$12,B22+2*$C$12))","v":100},{"$f":"'QC-1 Density Worksheet'!C24","v":""},null,null,"",null,null,"",null,null,"","","",null,null,null,null,"",{"$f":"IF(E24=\"\",\"\",ROUND(E24,1))","v":""},{"$f":"IF(H24=\"\",\"\",ROUND(H24,1))","v":""},{"$f":"IF(K24=\"\",\"\",ROUND(K24,1))","v":""},"",{"$error":"#N/A"},{"$error":"#N/A"},{"$error":"#N/A"},{"$error":"#N/A"},{"$error":"#N/A"},{"$error":"#N/A"},""]
["Target Max Density = Gmm x 62.24                                                                                                                                                                                           Test Remarks"]

{"sheet":"QV-2 Density Worksheet","index":12,"n_rows":25,"n_cols":30,"rows_kept":25,"cut":false,"hidden":false,"merged":[[11,0,11,1],[1,8,1,9],[3,8,3,10],[4,8,4,10],[11,3,11,5],[11,6,11,8],[11,9,11,11],[3,12,3,14],[0,0,0,4],[1,0,1,4],[1,12,1,14],[2,12,2,14],[2,8,2,9],[3,1,3,3],[3,5,3,6],[4,12,4,14],[5,0,10,6],[5,8,5,10],[5,12,5,14],[6,12,6,14],[7,8,7,10],[7,12,7,14],[8,8,8,10],[8,12,8,14],[9,8,9,10],[9,12,9,14],[10,8,10,10],[10,12,10,14],[4,1,4,3],[4,5,4,6],[11,26,11,28],[11,29,12,29],[14,13,14,14],[12,13,12,14],[15,13,15,14],[11,12,11,14],[13,13,13,14],[11,18,12,18],[11,19,11,21],[11,22,11,25],[16,13,16,14],[17,13,17,14],[18,13,18,14],[19,13,19,14],[20,13,20,14],[24,0,24,14],[25,0,32,14],[21,13,21,14],[22,13,22,14],[23,13,23,14]]}
["PWL DENSITY DATA FORM (LANE FOOT)",null,null,null,null,{"$f":"'Project Info & Instructions'!A6","v":"Revised 04-08-22"}]
["               Nuclear HMA Density QC/QV Testing Records",null,null,null,null,{"$f":"CONCATENATE(\"TEST STRIP #\",'Project Info & Instructions'!C11)","v":"TEST STRIP #"},"QV-2","LAYER:",{"$f":"IF('Project Info & Instructions'!G16=\"\",\"\",'Project Info & Instructions'!G16)","v":""},null,null,"Density\nStandard:"]
["Station Decreasing:",null,{"$f":"'Project Info & Instructions'!O14","v":false},null,null,null,null,null,null,null,null,"Moisture\nStandard: "]
["Project ID:",{"$f":"IF('Project Info & Instructions'!C13=\"\",\"\",'Project Info & Instructions'!C13)","v":""},null,null,"Road Name:",{"$f":"IF('Project Info & Instructions'!C14=\"\",\"\",'Project Info & Instructions'!C14)","v":""},null,"Contractor:",{"$f":"IF('Project Info & Instructions'!G20=\"\",\"\",'Project Info & Instructions'!G20)","v":""},null,null,"Gauge Serial #:"]
["Project\nLeader:",{"$f":"IF('Project Info & Instructions'!G19=\"\",\"\",'Project Info & Instructions'!G19)","v":""},null,null,"County:",{"$f":"IF('Project Info & Instructions'!C15=\"\",\"\",'Project Info & Instructions'!C15)","v":""},null,"QC \nNUCDENSITYTEC:","N/A",null,null,"WisDOT Mix #:",{"$f":"IF('Project Info & Instructions'!C16=\"\",\"\",'Project Info & Instructions'!C16)","v":""}]
["TEST STRIP - Field Worksheet\n\nOffsets are predetermined according to layout in SPV\n\nGauge offset is locked at ZERO since Raw Gauge Readings are needed\n\nTarget Max Gmm is average from 3 split samples (locked)\n\nCalculated per CMM 815.10.4.",null,null,null,null,null,null,"QV \nNUCDENSITYTEC:",null,null,null,"Mix Type:",{"$f":"IF('Project Info & Instructions'!C21=\"\",\"\",'Project Info & Instructions'!C21)","v":"--"}]
[null,null,null,null,null,null,null,"Start:",{"$f":"IF('Project Info & Instructions'!G14=\"\",\"\",'Project Info & Instructions'!G14)","v":""},"End:",{"$f":"IF('Project Info & Instructions'!I14=\"\",\"\",'Project Info & Instructions'!I14)","v":""},"Target Gmm:",{"$f":"IF('Project Info & Instructions'!O9=2,'Core Data'!I1,'Air Voids Pay Factor'!D11)","v":""}]
[null,null,null,null,null,null,null,"Estimated\nLength (ft):",{"$f":"IF('Project Info & Instructions'!G15=\"\",\"\",'Project Info & Instructions'!G15)","v":""},null,null,"Target Max Density (PCF):",{"$f":"IF(M7=\"\",\"\",ROUND(M7*62.24,1))","v":""}]
[null,null,null,null,null,null,null,"Lane Width (ft):",{"$f":"IF('Project Info & Instructions'!G11=\"\",\"\",'Project Info & Instructions'!G11)","v":""},null,null,"Required\nDensity %:",{"$f":"IF('Project Info & Instructions'!G18=\"\",\"\",'Project Info & Instructions'!G18)","v":"Enter Mix and Layer Info"}]
[null,null,null,null,null,null,null,"Nominal \nThickness(in):",{"$f":"IF('Project Info & Instructions'!G12=\"\",\"\",'Project Info & Instructions'!G12)","v":""},null,null,"Date Placed:",{"$f":"IF('Project Info & Instructions'!C10=\"\",\"\",'Project Info & Instructions'!C10)","v":""}]
[null,null,null,null,null,null,null,"Gauge Offset","ZERO",null,null,"Date Tested:",{"$f":"IF('Project Info & Instructions'!C10=\"\",\"\",'Project Info & Instructions'!C10)","v":""}]
["Gauge/Core Spacing (ft)",null,{"$f":"'QC-1 Density Worksheet'!C12","v":50},"Reading 1",null,null,"Reading  2 (rotate 180)",null,null,"Reading  3 (If Reading 1 & 2 are not within +/- 1.0 pcf of one another, collect Reading 3.)",null,null,"Average",null,null,null,null,null,"Lot/Sublot ID","Rounded Readings (0.1 pcf)",null,null,"Variation from Avg",null,null,null,"Filter Outlier",null,null,"Nuc Avg Excluding Outlier (pcf)"]
["Lot / Sub Lot ID","Station","Offset from CL","M Count / \nD Count","Wet Density 1             ","% Max Density 1","M Count / \nD Count","Wet Density 2            ","% Max Density 2","M Count / \nD Count","Wet Density 3             ","% Max Density 3","Average PCF","% Max Density",null,null,null,null,null,"Reading 1","Reading 2","Reading 3","Rounded Average of Readings (pcf)","Reading 1","Reading 2","Reading 3","Read 1","Read 2","Read 3"]
[{"$f":"'Core Data'!A11","v":""},{"$f":"IF(B16=\"\",\"\",IF($C$3=TRUE,B16+2*$C$12,B16-2*$C$12))","v":-100},{"$f":"'QC-1 Density Worksheet'!C14","v":""},null,null,{"$f":"IF(E14=\"\",\"\",ROUND((T14/$M$8),3))","v":""},null,null,{"$f":"IF(H14=\"\",\"\",ROUND((U14/$M$8),3))","v":""},null,null,{"$f":"IF(K14=\"\",\"\",ROUND((V14/$M$8),3))","v":""},{"$f":"IF(F14=\"\",\"\",AD14)","v":""},{"$f":"IF(F14=\"\",\"\",ROUND((M14/$M$8),3))","v":""},null,null,null,null,{"$f":"A14","v":""},{"$f":"IF(E14=\"\",\"\",ROUND(E14,1))","v":""},{"$f":"IF(H14=\"\",\"\",ROUND(H14,1))","v":""},{"$f":"IF(K14=\"\",\"\",ROUND(K14,1))","v":""},{"$f":"IFERROR(IF(ROUND(ABS(T14-U14),1)>1,ROUND(AVERAGE(T14:V14),1),ROUND(AVERAGE(T14:U14),1)),\"\")","v":""},{"$f":"IFERROR(ABS(ROUND(W14-T14,1)),NA())","v":{"$error":"#N/A"}},{"$f":"IFERROR(ABS(ROUND(W14-U14,1)),NA())","v":{"$error":"#N/A"}},{"$f":"IFERROR(ABS(ROUND(W14-V14,1)),NA())","v":{"$error":"#N/A"}},{"$f":"IF(X14=_xlfn.AGGREGATE(4,6,X14:Z14),0,T14)","v":{"$error":"#N/A"}},{"$f":"IF(Y14=_xlfn.AGGREGATE(4,6,X14:Z14),0,U14)","v":{"$error":"#N/A"}},{"$f":"IF(Z14=_xlfn.AGGREGATE(4,6,X14:Z14),0,V14)","v":{"$error":"#N/A"}},{"$f":"IFERROR(IF(OR(COUNT(T14:V14)<3,ROUND(ABS(T14-U14),1)<=1),ROUND(W14,1),IF(AND(COUNT(T14:V14)=3,OR(T14=W14,U14=W14,V14=W14)),ROUND(W14,1),IF(COUNTIF(AA14:AC14,\"=0\")=2,ROUND(W14,1),ROUND(AVERAGEIF(AA14:AC14,\">0\"),1)))),\"\")","v":""}]
[{"$f":"'Core Data'!A12","v":""},{"$f":"IF(B$16=\"\",\"\",IF($C$3=TRUE,B16+$C$12,B16-$C$12))","v":-50},{"$f":"'QC-1 Density Worksheet'!C15","v":""},null,null,{"$f":"IF(E15=\"\",\"\",ROUND((T15/$M$8),3))","v":""},null,null,{"$f":"IF(H15=\"\",\"\",ROUND((U15/$M$8),3))","v":""},null,null,{"$f":"IF(K15=\"\",\"\",ROUND((V15/$M$8),3))","v":""},{"$f":"IF(F15=\"\",\"\",AD15)","v":""},{"$f":"IF(F15=\"\",\"\",ROUND((M15/$M$8),3))","v":""},null,null,null,null,{"$f":"A15","v":""},{"$f":"IF(E15=\"\",\"\",ROUND(E15,1))","v":""},{"$f":"IF(H15=\"\",\"\",ROUND(H15,1))","v":""},{"$f":"IF(K15=\"\",\"\",ROUND(K15,1))","v":""},{"$f":"IFERROR(IF(ROUND(ABS(T15-U15),1)>1,ROUND(AVERAGE(T15:V15),1),ROUND(AVERAGE(T15:U15),1)),\"\")","v":""},{"$f":"IFERROR(ABS(ROUND(W15-T15,1)),NA())","v":{"$error":"#N/A"}},{"$f":"IFERROR(ABS(ROUND(W15-U15,1)),NA())","v":{"$error":"#N/A"}},{"$f":"IFERROR(ABS(ROUND(W15-V15,1)),NA())","v":{"$error":"#N/A"}},{"$f":"IF(X15=_xlfn.AGGREGATE(4,6,X15:Z15),0,T15)","v":{"$error":"#N/A"}},{"$f":"IF(Y15=_xlfn.AGGREGATE(4,6,X15:Z15),0,U15)","v":{"$error":"#N/A"}},{"$f":"IF(Z15=_xlfn.AGGREGATE(4,6,X15:Z15),0,V15)","v":{"$error":"#N/A"}},{"$f":"IFERROR(IF(OR(COUNT(T15:V15)<3,ROUND(ABS(T15-U15),1)<=1),ROUND(W15,1),IF(AND(COUNT(T15:V15)=3,OR(T15=W15,U15=W15,V15=W15)),ROUND(W15,1),IF(COUNTIF(AA15:AC15,\"=0\")=2,ROUND(W15,1),ROUND(AVERAGEIF(AA15:AC15,\">0\"),1)))),\"\")","v":""}]
[{"$f":"'Core Data'!A13","v":""},{"$f":"'Project Info & Instructions'!G26","v":0},{"$f":"'QC-1 Density Worksheet'!C16","v":""},null,null,"",null,null,"",null,null,"","","",null,null,null,null,"",{"$f":"IF(E16=\"\",\"\",ROUND(E16,1))","v":""},{"$f":"IF(H16=\"\",\"\",ROUND(H16,1))","v":""},{"$f":"IF(K16=\"\",\"\",ROUND(K16,1))","v":""},"",{"$error":"#N/A"},{"$error":"#N/A"},{"$error":"#N/A"},{"$error":"#N/A"},{"$error":"#N/A"},{"$error":"#N/A"},""]
[{"$f":"'Core Data'!A14","v":""},{"$f":"IF(B$16=\"\",\"\",IF($C$3=TRUE,B16-$C$12,B16+$C$12))","v":50},{"$f":"'QC-1 Density Worksheet'!C17","v":""},null,null,"",null,null,"",null,null,"","","",null,null,null,null,"",{"$f":"IF(E17=\"\",\"\",ROUND(E17,1))","v":""},{"$f":"IF(H17=\"\",\"\",ROUND(H17,1))","v":""},{"$f":"IF(K17=\"\",\"\",ROUND(K17,1))","v":""},"",{"$error":"#N/A"},{"$error":"#N/A"},{"$error":"#N/A"},{"$error":"#N/A"},{"$error":"#N/A"},{"$error":"#N/A"},""]
[{"$f":"'Core Data'!A15","v":""},{"$f":"IF(B16=\"\",\"\",IF($C$3=TRUE,B16-2*$C$12,B16+2*$C$12))","v":100},{"$f":"'QC-1 Density Worksheet'!C18","v":""},null,null,"",null,null,"",null,null,"","","",null,null,null,null,"",{"$f":"IF(E18=\"\",\"\",ROUND(E18,1))","v":""},{"$f":"IF(H18=\"\",\"\",ROUND(H18,1))","v":""},{"$f":"IF(K18=\"\",\"\",ROUND(K18,1))","v":""},"",{"$error":"#N/A"},{"$error":"#N/A"},{"$error":"#N/A"},{"$error":"#N/A"},{"$error":"#N/A"},{"$error":"#N/A"},""]
[]
[{"$f":"'Core Data'!A19","v":""},{"$f":"IF(B22=\"\",\"\",IF($C$3=TRUE,B22+2*$C$12,B22-2*$C$12))","v":-100},{"$f":"'QC-1 Density Worksheet'!C20","v":""},null,null,"",null,null,"",null,null,"","",{"$f":"IF(F20=\"\",\"\",ROUND((M20/$M$8),3))","v":""},null,null,null,null,"",{"$f":"IF(E20=\"\",\"\",ROUND(E20,1))","v":""},{"$f":"IF(H20=\"\",\"\",ROUND(H20,1))","v":""},{"$f":"IF(K20=\"\",\"\",ROUND(K20,1))","v":""},"",{"$error":"#N/A"},{"$error":"#N/A"},{"$error":"#N/A"},{"$error":"#N/A"},{"$error":"#N/A"},{"$error":"#N/A"},""]
[{"$f":"'Core Data'!A20","v":""},{"$f":"IF(B$16=\"\",\"\",IF($C$3=TRUE,B22+$C$12,B22-$C$12))","v":-50},{"$f":"'QC-1 Density Worksheet'!C21","v":""},null,null,"",null,null,"",null,null,"","","",null,null,null,null,"",{"$f":"IF(E21=\"\",\"\",ROUND(E21,1))","v":""},{"$f":"IF(H21=\"\",\"\",ROUND(H21,1))","v":""},{"$f":"IF(K21=\"\",\"\",ROUND(K21,1))","v":""},"",{"$error":"#N/A"},{"$error":"#N/A"},{"$error":"#N/A"},{"$error":"#N/A"},{"$error":"#N/A"},{"$error":"#N/A"},""]
[{"$f":"'Core Data'!A21","v":""},{"$f":"'Project Info & Instructions'!G27","v":0},{"$f":"'QC-1 Density Worksheet'!C22","v":""},null,null,"",null,null,"",null,null,"","","",null,null,null,null,"",{"$f":"IF(E22=\"\",\"\",ROUND(E22,1))","v":""},{"$f":"IF(H22=\"\",\"\",ROUND(H22,1))","v":""},{"$f":"IF(K22=\"\",\"\",ROUND(K22,1))","v":""},"",{"$error":"#N/A"},{"$error":"#N/A"},{"$error":"#N/A"},{"$error":"#N/A"},{"$error":"#N/A"},{"$error":"#N/A"},""]
[{"$f":"'Core Data'!A22","v":""},{"$f":"IF(B$16=\"\",\"\",IF($C$3=TRUE,B22-$C$12,B22+$C$12))","v":50},{"$f":"'QC-1 Density Worksheet'!C23","v":""},null,null,"",null,null,"",null,null,"","","",null,null,null,null,"",{"$f":"IF(E23=\"\",\"\",ROUND(E23,1))","v":""},{"$f":"IF(H23=\"\",\"\",ROUND(H23,1))","v":""},{"$f":"IF(K23=\"\",\"\",ROUND(K23,1))","v":""},"",{"$error":"#N/A"},{"$error":"#N/A"},{"$error":"#N/A"},{"$error":"#N/A"},{"$error":"#N/A"},{"$error":"#N/A"},""]
[{"$f":"'Core Data'!A23","v":""},{"$f":"IF(B22=\"\",\"\",IF($C$3=TRUE,B22-2*$C$12,B22+2*$C$12))","v":100},{"$f":"'QC-1 Density Worksheet'!C24","v":""},null,null,"",null,null,"",null,null,"","","",null,null,null,null,"",{"$f":"IF(E24=\"\",\"\",ROUND(E24,1))","v":""},{"$f":"IF(H24=\"\",\"\",ROUND(H24,1))","v":""},{"$f":"IF(K24=\"\",\"\",ROUND(K24,1))","v":""},"",{"$error":"#N/A"},{"$error":"#N/A"},{"$error":"#N/A"},{"$error":"#N/A"},{"$error":"#N/A"},{"$error":"#N/A"},""]
["Target Max Density = Gmm x 62.24                                                                                                                                                                                           Test Remarks"]

{"sheet":"QC-1 Correlation","index":13,"n_rows":47,"n_cols":41,"rows_kept":47,"cut":false,"hidden":false,"merged":[[22,35,22,40],[21,4,21,6],[9,2,9,4],[10,2,10,4],[18,2,18,4],[15,2,15,8],[17,2,17,4],[11,7,11,8],[12,7,12,8],[14,7,14,8],[9,23,9,24],[13,7,13,8],[9,7,9,8],[1,31,2,31],[1,33,2,33],[0,3,4,8],[6,3,6,8],[0,23,0,24],[1,23,1,24],[2,23,2,24],[3,23,3,24],[4,23,4,24],[5,23,5,24],[0,12,0,14],[0,19,0,20],[6,23,6,24],[37,31,39,33],[40,18,40,19],[21,18,21,19],[21,23,21,26],[9,26,9,27],[10,26,10,27],[40,31,40,33],[7,23,7,27],[8,23,8,24],[31,4,31,6],[14,2,14,4],[10,7,10,8],[8,2,8,4],[11,2,11,4],[12,2,12,4],[13,2,13,4],[8,7,8,8]]}
[null,null,null,"Wisconsin Department \nof Transportation ",null,null,null,null,null,null,"Date:",null,{"$f":"IF(C9=\"\",\"\",C9)","v":""},null,null,null,null,null,"Gauge No.:",{"$f":"IF(C19=\"\",\"\",C19)","v":""},null,null,"Date:",{"$f":"IF(C9=\"\",\"\",C9)","v":""},null,null,"Layer:",{"$f":"IF('Project Info & Instructions'!G16=\"\",\"\",'Project Info & Instructions'!G16)","v":""}]
[null,null,null,null,null,null,null,null,null,null,null,null,null,null,null,null,null,null,"Nuclear / Core Correlation Worksheet     ",null,null,null,"Contract:",{"$f":"IF(C10=\"\",\"\",C10)","v":""},null,null,"Layer Thickness:",{"$f":"H13","v":""},null,null,null,"Ave Nuclear",null,"Core Density"]
[null,null,null,null,null,null,null,null,null,null,null,null,null,null,null,null,null,null,null,null,null,null,"Job No.:","",null,null,"Gmm:",{"$f":"H14","v":""}]
[null,null,null,null,null,null,null,null,null,null,null,null,null,null,null,null,null,null,null,null,null,null,"Route:","",null,null,null,null,null,null,null,{"$f":"IF(M25=\"\",#N/A,M25)","v":{"$error":"#N/A"}},null,{"$f":"IF(O25=\"\",#N/A,O25)","v":{"$error":"#N/A"}}]
[null,null,null,null,null,null,null,null,null,null,null,null,null,null,null,null,null,null,null,null,null,null,"Underlying Material:",{"$f":"IF(C13=\"\",\"\",C13)","v":""},null,null,null,null,null,null,null,{"$f":"IF(M26=\"\",#N/A,M26)","v":{"$error":"#N/A"}},null,{"$f":"IF(O26=\"\",#N/A,O26)","v":{"$error":"#N/A"}}]
[null,{"$f":"'Project Info & Instructions'!A6","v":"Revised 04-08-22"},null,null,null,null,null,null,null,null,null,null,null,null,null,null,null,null,null,null,null,null,"WisDOT Mix No.:",{"$f":"IF(C14=\"\",\"\",C14)","v":""},null,null,null,null,null,null,null,{"$error":"#N/A"},null,{"$error":"#N/A"}]
[null,null,null,"Nuclear / Core Correlation Worksheet",null,null,null,null,null,null,null,null,null,null,null,null,null,null,null,null,null,null,"Mixture Type:",{"$f":"IF('Project Info & Instructions'!C21=\"\",\"\",'Project Info & Instructions'!C21)","v":"--"},null,null,"Core Diameter:",{"$f":"H15","v":6},null,null,null,{"$error":"#N/A"},null,{"$error":"#N/A"}]
[null,null,null,null,null,null,null,null,null,null,null,null,null,null,null,null,null,null,null,null,null,null,"Test Strip Type:",{"$f":"'Project Info & Instructions'!O10","v":"Combined Density and Volumetrics Test Strip"},null,null,null,null,null,null,null,{"$error":"#N/A"},null,{"$error":"#N/A"}]
[null,"Date:",{"$f":"IF('Project Info & Instructions'!C10=\"\",\"\",'Project Info & Instructions'!C10)","v":""},null,null,null,"Test Strip #:",{"$f":"IF('Project Info & Instructions'!C11=\"\",\"\",'Project Info & Instructions'!C11)","v":""},null,null,null,null,null,null,null,null,null,null,null,null,null,null,"NUCDENSITYTEC:",{"$f":"IF('QC-1 Density Worksheet'!I5=\"\",\"\",'QC-1 Density Worksheet'!I5)","v":""},null,null,null,null,null,null,null,{"$f":"IF(M35=\"\",#N/A,M35)","v":{"$error":"#N/A"}},null,{"$f":"IF(O35=\"\",#N/A,O35)","v":{"$error":"#N/A"}}]
[null,"Contract:",{"$f":"IF('Project Info & Instructions'!C12=\"\",\"\",'Project Info & Instructions'!C12)","v":""},null,null,null,"Layer:",{"$f":"IF('Project Info & Instructions'!G16=\"\",\"\",'Project Info & Instructions'!G16)","v":""},null,null,null,null,null,null,null,null,null,null,null,null,null,null,"Gauge No.:",{"$f":"IF('QC-1 Density Worksheet'!M4=\"\",\"\",'QC-1 Density Worksheet'!M4)","v":""},null,null,"Spread of Cores (%)",null,null,null,null,{"$f":"IF(M36=\"\",#N/A,M36)","v":{"$error":"#N/A"}},null,{"$f":"IF(O36=\"\",#N/A,O36)","v":{"$error":"#N/A"}}]
[null,"Job No.:",{"$f":"IF('Project Info & Instructions'!C13=\"\",\"\",'Project Info & Instructions'!C13)","v":""},null,null,null,"Mixture Type:",{"$f":"IF('Project Info & Instructions'!C21=\"\",\"\",'Project Info & Instructions'!C21)","v":"--"},null,null,null,null,null,null,null,null,null,null,null,null,null,null,null,null,null,null,{"$f":"IF(Q44>0,Q44,\"\")","v":""},null,null,null,null,{"$error":"#N/A"},null,{"$error":"#N/A"}]
[null,"Route:",{"$f":"IF('Project Info & Instructions'!C14=\"\",\"\",'Project Info & Instructions'!C14)","v":""},null,null,null,null,null,null,null,null,null,null,null,null,null,null,null,null,null,null,null,null,null,null,null,null,null,null,null,null,{"$error":"#N/A"},null,{"$error":"#N/A"}]
[null,"Underlying Matl.:",{"$f":"IF('Project Info & Instructions'!G17=\"\",\"\",'Project Info & Instructions'!G17)","v":""},null,null,null,"Layer Thickness:",{"$f":"IF('Project Info & Instructions'!G12=\"\",\"\",'Project Info & Instructions'!G12)","v":""},null,null,null,null,null,null,null,null,null,null,null,null,null,null,"SN","Gauge ID","Offset","R-squared","Spread (%)",null,null,null,null,{"$error":"#N/A"},null,{"$error":"#N/A"}]
[null,"WisDOT Mix No.:",{"$f":"IF('Project Info & Instructions'!C16=\"\",\"\",'Project Info & Instructions'!C16)","v":""},null,null,null,"Gmm:",{"$f":"IF('Project Info & Instructions'!O9=2,'Core Data'!I1,'Air Voids Pay Factor'!D11)","v":""},null,null,null,null,null,null,null,null,null,null,null,null,null,null,{"$f":"IF('QC-1 Correlation'!C19=\"\",\"\",'QC-1 Correlation'!C19)","v":""},"QC-1",{"$f":"IF('QC-1 Correlation'!U41=\"\",\"\",'QC-1 Correlation'!U41)","v":""},{"$f":"IF('QC-1 Correlation'!U22=\"\",\"\",'QC-1 Correlation'!U22)","v":""},{"$f":"IF('QC-1 Correlation'!O44=\"\",\"\",'QC-1 Correlation'!O44)","v":0}]
[null,"Mix Type:",{"$f":"IF('Project Info & Instructions'!C21=\"\",\"\",'Project Info & Instructions'!C21)","v":"--"},null,null,null,"Core Diameter:",6,null,null,null,null,null,null,null,null,null,null,null,null,null,null,{"$f":"IF('QC-2 Correlation'!C19=\"\",\"\",'QC-2 Correlation'!C19)","v":""},"QC-2",{"$f":"IF('QC-2 Correlation'!U41=\"\",\"\",'QC-2 Correlation'!U41)","v":""},{"$f":"IF('QC-2 Correlation'!U22=\"\",\"\",'QC-2 Correlation'!U22)","v":""},{"$f":"IF('QC-2 Correlation'!O44=\"\",\"\",'QC-2 Correlation'!O44)","v":0},null,null,null,null,{"$f":"IF(ISNUMBER(AF4),AF4,\"\")","v":""},null,{"$f":"IF(ISNUMBER(AH4),AH4,\"\")","v":""}]
[null,"Test Strip Type:",{"$f":"'Project Info & Instructions'!O10","v":"Combined Density and Volumetrics Test Strip"},null,null,null,null,null,null,null,null,null,null,null,null,null,null,null,null,null,null,null,{"$f":"IF('QV-1 Correlation'!C19=\"\",\"\",'QV-1 Correlation'!C19)","v":""},"QV-1",{"$f":"IF('QV-1 Correlation'!U41=\"\",\"\",'QV-1 Correlation'!U41)","v":""},{"$f":"IF('QV-1 Correlation'!U22=\"\",\"\",'QV-1 Correlation'!U22)","v":""},{"$f":"IF('QV-1 Correlation'!O44=\"\",\"\",'QV-1 Correlation'!O44)","v":0},null,null,null,null,{"$f":"IF(ISNUMBER(AF5),AF5,\"\")","v":""},null,""]
[null,null,null,null,null,null,null,null,null,null,null,null,null,null,null,null,null,null,null,null,null,null,{"$f":"IF('QV-2 Correlation'!C19=\"\",\"\",'QV-2 Correlation'!C19)","v":""},"QV-2",{"$f":"IF('QV-2 Correlation'!U41=\"\",\"\",'QV-2 Correlation'!U41)","v":""},{"$f":"IF('QV-2 Correlation'!U22=\"\",\"\",'QV-2 Correlation'!U22)","v":""},{"$f":"IF('QV-2 Correlation'!O44=\"\",\"\",'QV-2 Correlation'!O44)","v":0},null,null,null,null,"",null,""]
[null,"NUCDENSITYTEC:",{"$f":"IF('QC-1 Density Worksheet'!I5=\"\",\"\",'QC-1 Density Worksheet'!I5)","v":""},null,null,null,null,null,null,null,null,null,null,null,null,null,null,null,null,null,null,null,null,null,null,null,null,null,null,null,null,"",null,""]
[null,"Gauge No.:",{"$f":"IF('QC-1 Density Worksheet'!M4=\"\",\"\",'QC-1 Density Worksheet'!M4)","v":""},null,null,null,null,null,null,null,null,null,null,null,null,null,null,null,null,null,null,null,null,null,null,null,null,null,null,null,null,"",null,""]
[null,null,null,null,null,null,null,null,null,null,null,null,null,null,null,null,null,null,null,null,null,null,null,null,null,null,null,null,null,null,null,"",null,""]
[null,"ZONE 1",null,null,null,null,null,null,null,null,null,null,null,null,null,null,null,null,null,null,null,null,null,null,null,null,null,null,null,null,null,"",null,""]
[null,"Station (@ center of Zone):",null,null,{"$f":"IF('QC-1 Density Worksheet'!B16=\"\",\"\",'QC-1 Density Worksheet'!B16)","v":0},null,null,null,null,null,null,null,"CALCULATIONS",null,null,null,null,null,"R-Squared",null,{"$f":"IFERROR(RSQ(AF15:AF24,AH15:AH24),\"\")","v":""},null,null,"Core Density Calculations",null,null,null,null,null,null,null,"",null,""]
[null,null,null,null,null,null,null,null,null,null,null,null,null,null,null,null,null,null,null,null,null,null,null,null,null,"Core Data Used:",{"$f":"IF('Core Data'!$AC$5=1,\"QC\",\"QV\")","v":"QC"},null,null,null,null,"",null,"",null,"All Values including removed cores"]
[null,"Reading 1\n(pcf)",null,"Reading 2\n(pcf)","Difference\n(pcf)",null,"Reading 3*            \n(pcf)",null,"Ave Nuclear\n(pcf)",null,"Core Gmb",null,"Ave Nuclear\n(%)",null,"Core Density (%)",null,"Difference\n(%)",null,"Adjusted Nuc. (%)",null,"Adj. Diff. (%)",null,null,"Dry weight","SSD","Submerged","Core Density",null,null,"Check for Removed Cores",null,"",null,"",null,"Core Density","Ave Nuclear","Core Density","Difference","Adjusted Nuc.","Adj. Diff."]
[{"$f":"'Core Data'!A11","v":""},{"$f":"'QC-1 Density Worksheet'!T14","v":""},null,{"$f":"'QC-1 Density Worksheet'!U14","v":""},{"$f":"IFERROR(ROUND(ABS(B25-D25),1),\"\")","v":""},null,{"$f":"'QC-1 Density Worksheet'!V14","v":""},null,{"$f":"IFERROR('QC-1 Density Worksheet'!AD14,\"\")","v":""},{"$f":"A25","v":""},{"$f":"IF(AD25=1,\"\",IFERROR(AA25,\"\"))","v":""},null,{"$f":"IF(AD25=1,\"\",IFERROR(ROUND(I25/ROUND($H$14*62.24,1)*100,1),\"\"))","v":""},null,{"$f":"IF(AD25=1,\"\",IFERROR(K25/$H$14*100,\"\"))","v":""},null,{"$f":"IFERROR(O25-M25,\"\")","v":""},null,{"$f":"IFERROR(M25+$U$41,\"\")","v":""},null,{"$f":"IFERROR(O25-S25,\"\")","v":""},null,{"$f":"A25","v":""},{"$f":"IF('Core Data'!$AC$5=1,'Core Data'!D11,'Core Data'!L11)","v":0},{"$f":"IF('Core Data'!$AC$5=1,'Core Data'!E11,'Core Data'!M11)","v":0},{"$f":"IF('Core Data'!$AC$5=1,'Core Data'!F11,'Core Data'!N11)","v":0},{"$f":"IF('Core Data'!$AC$5=1,'Core Data'!G11,'Core Data'!O11)","v":""},{"$f":"IF('Core Data'!AC11=TRUE,\"Removed\",\"\")","v":""},null,{"$f":"IF('Core Data'!AC11=TRUE,1,\"\")","v":""},null,null,null,null,null,{"$f":"IFERROR(AA25,\"\")","v":""},{"$f":"IFERROR(ROUND(I25/ROUND($H$14*62.24,1)*100,1),\"\")","v":""},{"$f":"IFERROR(AA25/$H$14*100,\"\")","v":""},{"$f":"IFERROR(AL25-AK25,\"\")","v":""},{"$f":"IFERROR(AK25+$AF$41,\"\")","v":""},{"$f":"IFERROR(AL25-AN25,\"\")","v":""}]
[{"$f":"'Core Data'!A12","v":""},{"$f":"'QC-1 Density Worksheet'!T15","v":""},null,{"$f":"'QC-1 Density Worksheet'!U15","v":""},{"$f":"IFERROR(ROUND(ABS(B26-D26),1),\"\")","v":""},null,{"$f":"'QC-1 Density Worksheet'!V15","v":""},null,{"$f":"IFERROR('QC-1 Density Worksheet'!AD15,\"\")","v":""},{"$f":"A26","v":""},{"$f":"IF(AD26=1,\"\",IFERROR(AA26,\"\"))","v":""},null,{"$f":"IF(AD26=1,\"\",IFERROR(ROUND(I26/ROUND($H$14*62.24,1)*100,1),\"\"))","v":""},null,{"$f":"IF(AD26=1,\"\",IFERROR(K26/$H$14*100,\"\"))","v":""},null,{"$f":"IFERROR(O26-M26,\"\")","v":""},null,{"$f":"IFERROR(M26+$U$41,\"\")","v":""},null,{"$f":"IFERROR(O26-S26,\"\")","v":""},null,{"$f":"A26","v":""},{"$f":"IF('Core Data'!$AC$5=1,'Core Data'!D12,'Core Data'!L12)","v":0},{"$f":"IF('Core Data'!$AC$5=1,'Core Data'!E12,'Core Data'!M12)","v":0},{"$f":"IF('Core Data'!$AC$5=1,'Core Data'!F12,'Core Data'!N12)","v":0},{"$f":"IF('Core Data'!$AC$5=1,'Core Data'!G12,'Core Data'!O12)","v":""},{"$f":"IF('Core Data'!AC12=TRUE,\"Removed\",\"\")","v":""},null,{"$f":"IF('Core Data'!AC12=TRUE,1,\"\")","v":""},null,null,null,null,null,{"$f":"IFERROR(AA26,\"\")","v":""},{"$f":"IFERROR(ROUND(I26/ROUND($H$14*62.24,1)*100,1),\"\")","v":""},{"$f":"IFERROR(AA26/$H$14*100,\"\")","v":""},{"$f":"IFERROR(AL26-AK26,\"\")","v":""},{"$f":"IFERROR(AK26+$AF$41,\"\")","v":""},{"$f":"IFERROR(AL26-AN26,\"\")","v":""}]
[{"$f":"'Core Data'!A13","v":""},{"$f":"'QC-1 Density Worksheet'!T16","v":""},null,{"$f":"'QC-1 Density Worksheet'!U16","v":""},{"$f":"IFERROR(ROUND(ABS(B27-D27),1),\"\")","v":""},null,{"$f":"'QC-1 Density Worksheet'!V16","v":""},null,{"$f":"IFERROR('QC-1 Density Worksheet'!AD16,\"\")","v":""},"","",null,"",null,"",null,"",null,{"$f":"IFERROR(M27+$U$41,\"\")","v":""},null,{"$f":"IFERROR(O27-S27,\"\")","v":""},null,"",{"$f":"IF('Core Data'!$AC$5=1,'Core Data'!D13,'Core Data'!L13)","v":0},{"$f":"IF('Core Data'!$AC$5=1,'Core Data'!E13,'Core Data'!M13)","v":0},{"$f":"IF('Core Data'!$AC$5=1,'Core Data'!F13,'Core Data'!N13)","v":0},{"$f":"IF('Core Data'!$AC$5=1,'Core Data'!G13,'Core Data'!O13)","v":""},{"$f":"IF('Core Data'!AC13=TRUE,\"Removed\",\"\")","v":""},null,{"$f":"IF('Core Data'!AC13=TRUE,1,\"\")","v":""},null,null,null,null,null,"","","","",{"$f":"IFERROR(AK27+$AF$41,\"\")","v":""},""]
[{"$f":"'Core Data'!A14","v":""},{"$f":"'QC-1 Density Worksheet'!T17","v":""},null,{"$f":"'QC-1 Density Worksheet'!U17","v":""},"",null,{"$f":"'QC-1 Density Worksheet'!V17","v":""},null,{"$f":"IFERROR('QC-1 Density Worksheet'!AD17,\"\")","v":""},"","",null,"",null,"",null,"",null,{"$f":"IFERROR(M28+$U$41,\"\")","v":""},null,{"$f":"IFERROR(O28-S28,\"\")","v":""},null,"",{"$f":"IF('Core Data'!$AC$5=1,'Core Data'!D14,'Core Data'!L14)","v":0},{"$f":"IF('Core Data'!$AC$5=1,'Core Data'!E14,'Core Data'!M14)","v":0},{"$f":"IF('Core Data'!$AC$5=1,'Core Data'!F14,'Core Data'!N14)","v":0},{"$f":"IF('Core Data'!$AC$5=1,'Core Data'!G14,'Core Data'!O14)","v":""},{"$f":"IF('Core Data'!AC14=TRUE,\"Removed\",\"\")","v":""},null,{"$f":"IF('Core Data'!AC14=TRUE,1,\"\")","v":""},null,null,null,null,null,"","","","",{"$f":"IFERROR(AK28+$AF$41,\"\")","v":""},""]
[{"$f":"'Core Data'!A15","v":""},{"$f":"'QC-1 Density Worksheet'!T18","v":""},null,{"$f":"'QC-1 Density Worksheet'!U18","v":""},"",null,{"$f":"'QC-1 Density Worksheet'!V18","v":""},null,{"$f":"IFERROR('QC-1 Density Worksheet'!AD18,\"\")","v":""},"","",null,"",null,"",null,"",null,{"$f":"IFERROR(M29+$U$41,\"\")","v":""},null,{"$f":"IFERROR(O29-S29,\"\")","v":""},null,"",{"$f":"IF('Core Data'!$AC$5=1,'Core Data'!D15,'Core Data'!L15)","v":0},{"$f":"IF('Core Data'!$AC$5=1,'Core Data'!E15,'Core Data'!M15)","v":0},{"$f":"IF('Core Data'!$AC$5=1,'Core Data'!F15,'Core Data'!N15)","v":0},{"$f":"IF('Core Data'!$AC$5=1,'Core Data'!G15,'Core Data'!O15)","v":""},{"$f":"IF('Core Data'!AC15=TRUE,\"Removed\",\"\")","v":""},null,{"$f":"IF('Core Data'!AC15=TRUE,1,\"\")","v":""},null,null,null,null,null,"","","","",{"$f":"IFERROR(AK29+$AF$41,\"\")","v":""},""]
[]
[null,"ZONE 2"]
[null,"Station (@ center of Zone):",null,null,{"$f":"IF('QC-1 Density Worksheet'!B22=\"\",\"\",'QC-1 Density Worksheet'!B22)","v":0}]
[]
[null,"Reading 1\n(pcf)",null,"Reading 2\n(pcf)","Difference\n(pcf)",null,"Reading 3*            \n(pcf)",null,"Ave Nuclear\n(pcf)",null,"Core Gmb",null,"Ave Nuclear\n(%)",null,"Core Density (%)",null,"Difference\n(%)",null,"Adjusted Nuc. (%)",null,"Adj. Diff. (%)",null,null,"Dry weight","SSD","Submerged","Core Density",null,null,null,null,null,null,null,null,"Core Density","Ave Nuclear","Core Density","Difference","Adjusted Nuc.","Adj. Diff."]
[{"$f":"'Core Data'!A19","v":""},{"$f":"'QC-1 Density Worksheet'!T20","v":""},null,{"$f":"'QC-1 Density Worksheet'!U20","v":""},{"$f":"IFERROR(ROUND(ABS(B35-D35),1),\"\")","v":""},null,{"$f":"'QC-1 Density Worksheet'!V20","v":""},null,{"$f":"IFERROR('QC-1 Density Worksheet'!AD20,\"\")","v":""},"",{"$f":"IF(AD35=1,\"\",IFERROR(AA35,\"\"))","v":""},null,{"$f":"IF(AD35=1,\"\",IFERROR(ROUND(I35/ROUND($H$14*62.24,1)*100,1),\"\"))","v":""},null,{"$f":"IF(AD35=1,\"\",IFERROR(K35/$H$14*100,\"\"))","v":""},null,{"$f":"IFERROR(O35-M35,\"\")","v":""},null,{"$f":"IFERROR(M35+$U$41,\"\")","v":""},null,{"$f":"IFERROR(O35-S35,\"\")","v":""},null,{"$f":"A35","v":""},{"$f":"IF('Core Data'!$AC$5=1,'Core Data'!D19,'Core Data'!L19)","v":0},{"$f":"IF('Core Data'!$AC$5=1,'Core Data'!E19,'Core Data'!M19)","v":0},{"$f":"IF('Core Data'!$AC$5=1,'Core Data'!F19,'Core Data'!N19)","v":0},{"$f":"IF('Core Data'!$AC$5=1,'Core Data'!G19,'Core Data'!O19)","v":""},{"$f":"IF('Core Data'!AC19=TRUE,\"Removed\",\"\")","v":""},null,{"$f":"IF('Core Data'!AC19=TRUE,1,\"\")","v":""},null,null,null,null,null,"",{"$f":"IFERROR(ROUND(I35/ROUND($H$14*62.24,1)*100,1),\"\")","v":""},{"$f":"IFERROR(AA35/$H$14*100,\"\")","v":""},{"$f":"IFERROR(AL35-AK35,\"\")","v":""},{"$f":"IFERROR(AK35+$AF$41,\"\")","v":""},{"$f":"IFERROR(AL35-AN35,\"\")","v":""}]
[{"$f":"'Core Data'!A20","v":""},{"$f":"'QC-1 Density Worksheet'!T21","v":""},null,{"$f":"'QC-1 Density Worksheet'!U21","v":""},{"$f":"IFERROR(ROUND(ABS(B36-D36),1),\"\")","v":""},null,{"$f":"'QC-1 Density Worksheet'!V21","v":""},null,{"$f":"IFERROR('QC-1 Density Worksheet'!AD21,\"\")","v":""},"",{"$f":"IF(AD36=1,\"\",IFERROR(AA36,\"\"))","v":""},null,"",null,{"$f":"IF(AD36=1,\"\",IFERROR(K36/$H$14*100,\"\"))","v":""},null,{"$f":"IFERROR(O36-M36,\"\")","v":""},null,{"$f":"IFERROR(M36+$U$41,\"\")","v":""},null,{"$f":"IFERROR(O36-S36,\"\")","v":""},null,{"$f":"A36","v":""},{"$f":"IF('Core Data'!$AC$5=1,'Core Data'!D20,'Core Data'!L20)","v":0},{"$f":"IF('Core Data'!$AC$5=1,'Core Data'!E20,'Core Data'!M20)","v":0},{"$f":"IF('Core Data'!$AC$5=1,'Core Data'!F20,'Core Data'!N20)","v":0},{"$f":"IF('Core Data'!$AC$5=1,'Core Data'!G20,'Core Data'!O20)","v":""},{"$f":"IF('Core Data'!AC20=TRUE,\"Removed\",\"\")","v":""},null,{"$f":"IF('Core Data'!AC20=TRUE,1,\"\")","v":""},null,null,null,null,null,"",{"$f":"IFERROR(ROUND(I36/ROUND($H$14*62.24,1)*100,1),\"\")","v":""},{"$f":"IFERROR(AA36/$H$14*100,\"\")","v":""},{"$f":"IFERROR(AL36-AK36,\"\")","v":""},{"$f":"IFERROR(AK36+$AF$41,\"\")","v":""},{"$f":"IFERROR(AL36-AN36,\"\")","v":""}]
[{"$f":"'Core Data'!A21","v":""},{"$f":"'QC-1 Density Worksheet'!T22","v":""},null,{"$f":"'QC-1 Density Worksheet'!U22","v":""},"",null,{"$f":"'QC-1 Density Worksheet'!V22","v":""},null,{"$f":"IFERROR('QC-1 Density Worksheet'!AD22,\"\")","v":""},"","",null,"",null,"",null,{"$f":"IFERROR(O37-M37,\"\")","v":""},null,{"$f":"IFERROR(M37+$U$41,\"\")","v":""},null,{"$f":"IFERROR(O37-S37,\"\")","v":""},null,"",{"$f":"IF('Core Data'!$AC$5=1,'Core Data'!D21,'Core Data'!L21)","v":0},{"$f":"IF('Core Data'!$AC$5=1,'Core Data'!E21,'Core Data'!M21)","v":0},{"$f":"IF('Core Data'!$AC$5=1,'Core Data'!F21,'Core Data'!N21)","v":0},{"$f":"IF('Core Data'!$AC$5=1,'Core Data'!G21,'Core Data'!O21)","v":""},{"$f":"IF('Core Data'!AC21=TRUE,\"Removed\",\"\")","v":""},null,{"$f":"IF('Core Data'!AC21=TRUE,1,\"\")","v":""},null,null,null,null,null,"","","","",{"$f":"IFERROR(AK37+$AF$41,\"\")","v":""},""]
[{"$f":"'Core Data'!A22","v":""},{"$f":"'QC-1 Density Worksheet'!T23","v":""},null,{"$f":"'QC-1 Density Worksheet'!U23","v":""},"",null,{"$f":"'QC-1 Density Worksheet'!V23","v":""},null,{"$f":"IFERROR('QC-1 Density Worksheet'!AD23,\"\")","v":""},"","",null,"",null,"",null,{"$f":"IFERROR(O38-M38,\"\")","v":""},null,{"$f":"IFERROR(M38+$U$41,\"\")","v":""},null,{"$f":"IFERROR(O38-S38,\"\")","v":""},null,"",{"$f":"IF('Core Data'!$AC$5=1,'Core Data'!D22,'Core Data'!L22)","v":0},{"$f":"IF('Core Data'!$AC$5=1,'Core Data'!E22,'Core Data'!M22)","v":0},{"$f":"IF('Core Data'!$AC$5=1,'Core Data'!F22,'Core Data'!N22)","v":0},{"$f":"IF('Core Data'!$AC$5=1,'Core Data'!G22,'Core Data'!O22)","v":""},{"$f":"IF('Core Data'!AC22=TRUE,\"Removed\",\"\")","v":""},null,{"$f":"IF('Core Data'!AC22=TRUE,1,\"\")","v":""},null,"OFFSET including removed cores",null,null,null,"","","","",{"$f":"IFERROR(AK38+$AF$41,\"\")","v":""},""]
[{"$f":"'Core Data'!A23","v":""},{"$f":"'QC-1 Density Worksheet'!T24","v":""},null,{"$f":"'QC-1 Density Worksheet'!U24","v":""},"",null,{"$f":"'QC-1 Density Worksheet'!V24","v":""},null,{"$f":"IFERROR('QC-1 Density Worksheet'!AD24,\"\")","v":""},"","",null,"",null,"",null,{"$f":"IFERROR(O39-M39,\"\")","v":""},null,{"$f":"IFERROR(M39+$U$41,\"\")","v":""},null,{"$f":"IFERROR(O39-S39,\"\")","v":""},null,"",{"$f":"IF('Core Data'!$AC$5=1,'Core Data'!D23,'Core Data'!L23)","v":0},{"$f":"IF('Core Data'!$AC$5=1,'Core Data'!E23,'Core Data'!M23)","v":0},{"$f":"IF('Core Data'!$AC$5=1,'Core Data'!F23,'Core Data'!N23)","v":0},{"$f":"IF('Core Data'!$AC$5=1,'Core Data'!G23,'Core Data'!O23)","v":""},{"$f":"IF('Core Data'!AC23=TRUE,\"Removed\",\"\")","v":""},null,{"$f":"IF('Core Data'!AC23=TRUE,1,\"\")","v":""},null,null,null,null,null,"","","","",{"$f":"IFERROR(AK39+$AF$41,\"\")","v":""},""]
[]
[null,null,null,null,null,null,null,null,null,null,null,null,null,null,null,null,null,null,"OFFSET",null,{"$f":"IFERROR(AVERAGE(Q25:Q29,Q35:Q39),\"\")","v":""},null,null,null,null,null,null,null,null,null,null,{"$f":"IFERROR(AVERAGE(AM25:AM29,AM35:AM39),\"\")","v":""}]
[null,null,null,null,null,null,null,null,null,null,null,null,null,null,null,null,null,null,null,null,null,null,null,null,null,null,"Nuclear / Core Correlation Worksheet     "]
[null,null,null,null,null,null,null,null,null,null,null,null,null,null,"Gauge",null,"Cores"]
[null,null,null,null,null,null,null,null,"page 1",null,null,null,"RANGE",null,{"$f":"O46-O47","v":0},"%",{"$f":"Q46-Q47","v":0},"%",null,null,"page 2",null,null,null,null,null,null,"page 3"]
[]
[null,null,null,null,null,null,null,null,null,null,null,null,"Max",null,{"$f":"MAX(M25:M29,M35:M39)","v":0},null,{"$f":"MAX(O25:O29,O35:O39)","v":0}]
[null,null,null,null,null,null,null,null,null,null,null,null,"Min",null,{"$f":"MIN(M25:M29,M35:M39)","v":0},null,{"$f":"MIN(O25:O29,O35:O39)","v":0}]

{"sheet":"QC-2 Correlation","index":14,"n_rows":47,"n_cols":41,"rows_kept":47,"cut":false,"hidden":false,"merged":[[0,3,4,8],[0,12,0,14],[0,19,0,20],[0,23,0,24],[3,23,3,24],[4,23,4,24],[1,23,1,24],[1,31,2,31],[1,33,2,33],[2,23,2,24],[6,23,6,24],[9,26,9,27],[10,26,10,27],[5,23,5,24],[6,3,6,8],[8,7,8,8],[7,23,7,27],[8,23,8,24],[8,2,8,4],[15,2,15,8],[18,2,18,4],[9,23,9,24],[14,2,14,4],[14,7,14,8],[9,2,9,4],[11,7,11,8],[10,2,10,4],[12,7,12,8],[13,7,13,8],[9,7,9,8],[10,7,10,8],[11,2,11,4],[12,2,12,4],[13,2,13,4],[40,18,40,19],[17,2,17,4],[21,4,21,6],[21,18,21,19],[22,35,22,40],[37,31,39,33],[31,4,31,6],[40,31,40,33]]}
[null,null,null,"Wisconsin Department \nof Transportation ",null,null,null,null,null,null,"Date:",null,{"$f":"IF(C9=\"\",\"\",C9)","v":""},null,null,null,null,null,"Gauge No.:",{"$f":"IF(C19=\"\",\"\",C19)","v":""},null,null,"Date:",{"$f":"IF(C9=\"\",\"\",C9)","v":""},null,null,"Layer:",{"$f":"IF('Project Info & Instructions'!G16=\"\",\"\",'Project Info & Instructions'!G16)","v":""}]
[null,null,null,null,null,null,null,null,null,null,null,null,null,null,null,null,null,null,"Nuclear / Core Correlation Worksheet     ",null,null,null,"Contract:",{"$f":"IF(C10=\"\",\"\",C10)","v":""},null,null,"Layer Thickness:",{"$f":"H13","v":""},null,null,null,"Ave Nuclear",null,"Core Density"]
[null,null,null,null,null,null,null,null,null,null,null,null,null,null,null,null,null,null,null,null,null,null,"Job No.:","",null,null,"Gmm:",{"$f":"H14","v":""}]
[null,null,null,null,null,null,null,null,null,null,null,null,null,null,null,null,null,null,null,null,null,null,"Route:","",null,null,null,null,null,null,null,{"$f":"IF(M25=\"\",#N/A,M25)","v":{"$error":"#N/A"}},null,{"$f":"IF(O25=\"\",#N/A,O25)","v":{"$error":"#N/A"}}]
[null,null,null,null,null,null,null,null,null,null,null,null,null,null,null,null,null,null,null,null,null,null,"Underlying Material:","",null,null,null,null,null,null,null,{"$f":"IF(M26=\"\",#N/A,M26)","v":{"$error":"#N/A"}},null,{"$f":"IF(O26=\"\",#N/A,O26)","v":{"$error":"#N/A"}}]
[null,{"$f":"'Project Info & Instructions'!A6","v":"Revised 04-08-22"},null,null,null,null,null,null,null,null,null,null,null,null,null,null,null,null,null,null,null,null,"WisDOT Mix No.:","",null,null,null,null,null,null,null,{"$error":"#N/A"},null,{"$error":"#N/A"}]
[null,null,null,"Nuclear / Core Correlation Worksheet",null,null,null,null,null,null,null,null,null,null,null,null,null,null,null,null,null,null,"Mixture Type:",{"$f":"IF('Project Info & Instructions'!C21=\"\",\"\",'Project Info & Instructions'!C21)","v":"--"},null,null,"Core Diameter:",{"$f":"H15","v":6},null,null,null,{"$error":"#N/A"},null,{"$error":"#N/A"}]
[null,null,null,null,null,null,null,null,null,null,null,null,null,null,null,null,null,null,null,null,null,null,"Test Strip Type:",{"$f":"'Project Info & Instructions'!O10","v":"Combined Density and Volumetrics Test Strip"},null,null,null,null,null,null,null,{"$error":"#N/A"},null,{"$error":"#N/A"}]
[null,"Date:",{"$f":"IF('Project Info & Instructions'!C10=\"\",\"\",'Project Info & Instructions'!C10)","v":""},null,null,null,"Test Strip #:",{"$f":"IF('Project Info & Instructions'!C11=\"\",\"\",'Project Info & Instructions'!C11)","v":""},null,null,null,null,null,null,null,null,null,null,null,null,null,null,"NUCDENSITYTEC:",{"$f":"IF('QC-2 Density Worksheet'!I5=\"\",\"\",'QC-2 Density Worksheet'!I5)","v":""},null,null,null,null,null,null,null,{"$f":"IF(M35=\"\",#N/A,M35)","v":{"$error":"#N/A"}},null,{"$f":"IF(O35=\"\",#N/A,O35)","v":{"$error":"#N/A"}}]
[null,"Contract:",{"$f":"IF('Project Info & Instructions'!C12=\"\",\"\",'Project Info & Instructions'!C12)","v":""},null,null,null,"Layer:",{"$f":"IF('Project Info & Instructions'!G16=\"\",\"\",'Project Info & Instructions'!G16)","v":""},null,null,null,null,null,null,null,null,null,null,null,null,null,null,"Gauge No.:",{"$f":"IF('QC-2 Density Worksheet'!M4=\"\",\"\",'QC-2 Density Worksheet'!M4)","v":""},null,null,"Spread of Cores (%)",null,null,null,null,{"$f":"IF(M36=\"\",#N/A,M36)","v":{"$error":"#N/A"}},null,{"$f":"IF(O36=\"\",#N/A,O36)","v":{"$error":"#N/A"}}]
[null,"Job No.:",{"$f":"IF('Project Info & Instructions'!C13=\"\",\"\",'Project Info & Instructions'!C13)","v":""},null,null,null,"Mixture Type:",{"$f":"IF('Project Info & Instructions'!C21=\"\",\"\",'Project Info & Instructions'!C21)","v":"--"},null,null,null,null,null,null,null,null,null,null,null,null,null,null,null,null,null,null,{"$f":"IF(Q44>0,Q44,\"\")","v":""},null,null,null,null,{"$error":"#N/A"},null,{"$error":"#N/A"}]
[null,"Route:",{"$f":"IF('Project Info & Instructions'!C14=\"\",\"\",'Project Info & Instructions'!C14)","v":""},null,null,null,null,null,null,null,null,null,null,null,null,null,null,null,null,null,null,null,null,null,null,null,null,null,null,null,null,{"$error":"#N/A"},null,{"$error":"#N/A"}]
[null,"Underlying Matl.:",{"$f":"IF('Project Info & Instructions'!G17=\"\",\"\",'Project Info & Instructions'!G17)","v":""},null,null,null,"Layer Thickness:",{"$f":"IF('Project Info & Instructions'!G12=\"\",\"\",'Project Info & Instructions'!G12)","v":""},null,null,null,null,null,null,null,null,null,null,null,null,null,null,"SN","Gauge ID","Offset","R-squared","Spread (%)",null,null,null,null,{"$error":"#N/A"},null,{"$error":"#N/A"}]
[null,"WisDOT Mix No.:",{"$f":"IF('Project Info & Instructions'!C16=\"\",\"\",'Project Info & Instructions'!C16)","v":""},null,null,null,"Gmm:",{"$f":"IF('Project Info & Instructions'!O9=2,'Core Data'!I1,'Air Voids Pay Factor'!D11)","v":""},null,null,null,null,null,null,null,null,null,null,null,null,null,null,{"$f":"IF('QC-1 Correlation'!C19=\"\",\"\",'QC-1 Correlation'!C19)","v":""},"QC-1",{"$f":"IF('QC-1 Correlation'!U41=\"\",\"\",'QC-1 Correlation'!U41)","v":""},{"$f":"IF('QC-1 Correlation'!U22=\"\",\"\",'QC-1 Correlation'!U22)","v":""},{"$f":"IF('QC-1 Correlation'!O44=\"\",\"\",'QC-1 Correlation'!O44)","v":0}]
[null,"Mix Type:",{"$f":"IF('Project Info & Instructions'!C21=\"\",\"\",'Project Info & Instructions'!C21)","v":"--"},null,null,null,"Core Diameter:",6,null,null,null,null,null,null,null,null,null,null,null,null,null,null,{"$f":"IF('QC-2 Correlation'!C19=\"\",\"\",'QC-2 Correlation'!C19)","v":""},"QC-2",{"$f":"IF('QC-2 Correlation'!U41=\"\",\"\",'QC-2 Correlation'!U41)","v":""},{"$f":"IF('QC-2 Correlation'!U22=\"\",\"\",'QC-2 Correlation'!U22)","v":""},{"$f":"IF('QC-2 Correlation'!O44=\"\",\"\",'QC-2 Correlation'!O44)","v":0},null,null,null,null,{"$f":"IF(ISNUMBER(AF4),AF4,\"\")","v":""},null,{"$f":"IF(ISNUMBER(AH4),AH4,\"\")","v":""}]
[null,"Test Strip Type:",{"$f":"'Project Info & Instructions'!O10","v":"Combined Density and Volumetrics Test Strip"},null,null,null,null,null,null,null,null,null,null,null,null,null,null,null,null,null,null,null,{"$f":"IF('QV-1 Correlation'!C19=\"\",\"\",'QV-1 Correlation'!C19)","v":""},"QV-1",{"$f":"IF('QV-1 Correlation'!U41=\"\",\"\",'QV-1 Correlation'!U41)","v":""},{"$f":"IF('QV-1 Correlation'!U22=\"\",\"\",'QV-1 Correlation'!U22)","v":""},{"$f":"IF('QV-1 Correlation'!O44=\"\",\"\",'QV-1 Correlation'!O44)","v":0},null,null,null,null,{"$f":"IF(ISNUMBER(AF5),AF5,\"\")","v":""},null,""]
[null,null,null,null,null,null,null,null,null,null,null,null,null,null,null,null,null,null,null,null,null,null,{"$f":"IF('QV-2 Correlation'!C19=\"\",\"\",'QV-2 Correlation'!C19)","v":""},"QV-2",{"$f":"IF('QV-2 Correlation'!U41=\"\",\"\",'QV-2 Correlation'!U41)","v":""},{"$f":"IF('QV-2 Correlation'!U22=\"\",\"\",'QV-2 Correlation'!U22)","v":""},{"$f":"IF('QV-2 Correlation'!O44=\"\",\"\",'QV-2 Correlation'!O44)","v":0},null,null,null,null,"",null,""]
[null,"NUCDENSITYTEC:",{"$f":"IF('QC-2 Density Worksheet'!I5=\"\",\"\",'QC-2 Density Worksheet'!I5)","v":""},null,null,null,null,null,null,null,null,null,null,null,null,null,null,null,null,null,null,null,null,null,null,null,null,null,null,null,null,"",null,""]
[null,"Gauge No.:",{"$f":"IF('QC-2 Density Worksheet'!M4=\"\",\"\",'QC-2 Density Worksheet'!M4)","v":""},null,null,null,null,null,null,null,null,null,null,null,null,null,null,null,null,null,null,null,null,null,null,null,null,null,null,null,null,"",null,""]
[null,null,null,null,null,null,null,null,null,null,null,null,null,null,null,null,null,null,null,null,null,null,null,null,null,null,null,null,null,null,null,"",null,""]
[null,"ZONE 1",null,null,null,null,null,null,null,null,null,null,null,null,null,null,null,null,null,null,null,null,null,null,null,null,null,null,null,null,null,"",null,""]
[null,"Station (@ center of Zone):",null,null,{"$f":"IF('QC-1 Density Worksheet'!B16=\"\",\"\",'QC-1 Density Worksheet'!B16)","v":0},null,null,null,null,null,null,null,"CALCULATIONS",null,null,null,null,null,"R-Squared",null,{"$f":"IFERROR(RSQ(AF15:AF24,AH15:AH24),\"\")","v":""},null,null,null,"Core Density Calculations",null,null,null,null,null,null,"",null,""]
[null,null,null,null,null,null,null,null,null,null,null,null,null,null,null,null,null,null,null,null,null,null,null,null,null,"Core Data Used:",{"$f":"IF('Core Data'!$AC$5=1,\"QC\",\"QV\")","v":"QC"},null,null,null,null,"",null,"",null,"All Values including removed cores"]
[null,"Reading 1\n(pcf)",null,"Reading 2\n(pcf)","Difference\n(pcf)",null,"Reading 3*            \n(pcf)",null,"Ave Nuclear\n(pcf)",null,"Core Gmb",null,"Ave Nuclear\n(%)",null,"Core Density (%)",null,"Difference\n(%)",null,"Adjusted Nuc. (%)",null,"Adj. Diff. (%)",null,null,"Dry weight","SSD","Submerged","Core Density",null,null,"Check for Removed Cores",null,"",null,"",null,"Core Density","Ave Nuclear","Core Density","Difference","Adjusted Nuc.","Adj. Diff."]
[{"$f":"'Core Data'!A11","v":""},{"$f":"'QC-2 Density Worksheet'!T14","v":""},null,{"$f":"'QC-2 Density Worksheet'!U14","v":""},{"$f":"IFERROR(ROUND(ABS(B25-D25),1),\"\")","v":""},null,{"$f":"'QC-2 Density Worksheet'!V14","v":""},null,{"$f":"IFERROR('QC-2 Density Worksheet'!AD14,\"\")","v":""},{"$f":"A25","v":""},{"$f":"IFERROR(AA25,\"\")","v":""},null,{"$f":"IF(AD25=1,\"\",IFERROR(ROUND(I25/ROUND($H$14*62.24,1)*100,1),\"\"))","v":""},null,{"$f":"IF(AD25=1,\"\",IFERROR(K25/$H$14*100,\"\"))","v":""},null,{"$f":"IFERROR(O25-M25,\"\")","v":""},null,{"$f":"IFERROR(M25+$U$41,\"\")","v":""},null,{"$f":"IFERROR(O25-S25,\"\")","v":""},null,{"$f":"A25","v":""},{"$f":"IF('Core Data'!$AC$5=1,'Core Data'!D11,'Core Data'!L11)","v":0},{"$f":"IF('Core Data'!$AC$5=1,'Core Data'!E11,'Core Data'!M11)","v":0},{"$f":"IF('Core Data'!$AC$5=1,'Core Data'!F11,'Core Data'!N11)","v":0},{"$f":"IF('Core Data'!$AC$5=1,'Core Data'!G11,'Core Data'!O11)","v":""},{"$f":"IF('Core Data'!AC11=TRUE,\"Removed\",\"\")","v":""},null,{"$f":"IF('Core Data'!AC11=TRUE,1,\"\")","v":""},null,null,null,null,null,{"$f":"IFERROR(AA25,\"\")","v":""},{"$f":"IFERROR(ROUND(I25/ROUND($H$14*62.24,1)*100,1),\"\")","v":""},{"$f":"IFERROR(AA25/$H$14*100,\"\")","v":""},{"$f":"IFERROR(AL25-AK25,\"\")","v":""},{"$f":"IFERROR(AK25+$AF$41,\"\")","v":""},{"$f":"IFERROR(AL25-AN25,\"\")","v":""}]
[{"$f":"'Core Data'!A12","v":""},{"$f":"'QC-2 Density Worksheet'!T15","v":""},null,{"$f":"'QC-2 Density Worksheet'!U15","v":""},{"$f":"IFERROR(ROUND(ABS(B26-D26),1),\"\")","v":""},null,{"$f":"'QC-2 Density Worksheet'!V15","v":""},null,{"$f":"IFERROR('QC-2 Density Worksheet'!AD15,\"\")","v":""},{"$f":"A26","v":""},{"$f":"IFERROR(AA26,\"\")","v":""},null,{"$f":"IF(AD26=1,\"\",IFERROR(ROUND(I26/ROUND($H$14*62.24,1)*100,1),\"\"))","v":""},null,{"$f":"IF(AD26=1,\"\",IFERROR(K26/$H$14*100,\"\"))","v":""},null,{"$f":"IFERROR(O26-M26,\"\")","v":""},null,{"$f":"IFERROR(M26+$U$41,\"\")","v":""},null,{"$f":"IFERROR(O26-S26,\"\")","v":""},null,{"$f":"A26","v":""},{"$f":"IF('Core Data'!$AC$5=1,'Core Data'!D12,'Core Data'!L12)","v":0},{"$f":"IF('Core Data'!$AC$5=1,'Core Data'!E12,'Core Data'!M12)","v":0},{"$f":"IF('Core Data'!$AC$5=1,'Core Data'!F12,'Core Data'!N12)","v":0},{"$f":"IF('Core Data'!$AC$5=1,'Core Data'!G12,'Core Data'!O12)","v":""},{"$f":"IF('Core Data'!AC12=TRUE,\"Removed\",\"\")","v":""},null,{"$f":"IF('Core Data'!AC12=TRUE,1,\"\")","v":""},null,null,null,null,null,{"$f":"IFERROR(AA26,\"\")","v":""},{"$f":"IFERROR(ROUND(I26/ROUND($H$14*62.24,1)*100,1),\"\")","v":""},{"$f":"IFERROR(AA26/$H$14*100,\"\")","v":""},{"$f":"IFERROR(AL26-AK26,\"\")","v":""},{"$f":"IFERROR(AK26+$AF$41,\"\")","v":""},{"$f":"IFERROR(AL26-AN26,\"\")","v":""}]
[{"$f":"'Core Data'!A13","v":""},{"$f":"'QC-2 Density Worksheet'!T16","v":""},null,{"$f":"'QC-2 Density Worksheet'!U16","v":""},"",null,{"$f":"'QC-2 Density Worksheet'!V16","v":""},null,{"$f":"IFERROR('QC-2 Density Worksheet'!AD16,\"\")","v":""},"",{"$f":"IFERROR(AA27,\"\")","v":""},null,"",null,"",null,{"$f":"IFERROR(O27-M27,\"\")","v":""},null,{"$f":"IFERROR(M27+$U$41,\"\")","v":""},null,{"$f":"IFERROR(O27-S27,\"\")","v":""},null,"",{"$f":"IF('Core Data'!$AC$5=1,'Core Data'!D13,'Core Data'!L13)","v":0},{"$f":"IF('Core Data'!$AC$5=1,'Core Data'!E13,'Core Data'!M13)","v":0},{"$f":"IF('Core Data'!$AC$5=1,'Core Data'!F13,'Core Data'!N13)","v":0},{"$f":"IF('Core Data'!$AC$5=1,'Core Data'!G13,'Core Data'!O13)","v":""},{"$f":"IF('Core Data'!AC13=TRUE,\"Removed\",\"\")","v":""},null,{"$f":"IF('Core Data'!AC13=TRUE,1,\"\")","v":""},null,null,null,null,null,"","","","",{"$f":"IFERROR(AK27+$AF$41,\"\")","v":""},""]
[{"$f":"'Core Data'!A14","v":""},{"$f":"'QC-2 Density Worksheet'!T17","v":""},null,{"$f":"'QC-2 Density Worksheet'!U17","v":""},"",null,{"$f":"'QC-2 Density Worksheet'!V17","v":""},null,{"$f":"IFERROR('QC-2 Density Worksheet'!AD17,\"\")","v":""},"",{"$f":"IFERROR(AA28,\"\")","v":""},null,"",null,"",null,{"$f":"IFERROR(O28-M28,\"\")","v":""},null,{"$f":"IFERROR(M28+$U$41,\"\")","v":""},null,{"$f":"IFERROR(O28-S28,\"\")","v":""},null,"",{"$f":"IF('Core Data'!$AC$5=1,'Core Data'!D14,'Core Data'!L14)","v":0},{"$f":"IF('Core Data'!$AC$5=1,'Core Data'!E14,'Core Data'!M14)","v":0},{"$f":"IF('Core Data'!$AC$5=1,'Core Data'!F14,'Core Data'!N14)","v":0},{"$f":"IF('Core Data'!$AC$5=1,'Core Data'!G14,'Core Data'!O14)","v":""},{"$f":"IF('Core Data'!AC14=TRUE,\"Removed\",\"\")","v":""},null,{"$f":"IF('Core Data'!AC14=TRUE,1,\"\")","v":""},null,null,null,null,null,"","","","",{"$f":"IFERROR(AK28+$AF$41,\"\")","v":""},""]
[{"$f":"'Core Data'!A15","v":""},{"$f":"'QC-2 Density Worksheet'!T18","v":""},null,{"$f":"'QC-2 Density Worksheet'!U18","v":""},"",null,{"$f":"'QC-2 Density Worksheet'!V18","v":""},null,{"$f":"IFERROR('QC-2 Density Worksheet'!AD18,\"\")","v":""},"",{"$f":"IFERROR(AA29,\"\")","v":""},null,"",null,"",null,{"$f":"IFERROR(O29-M29,\"\")","v":""},null,{"$f":"IFERROR(M29+$U$41,\"\")","v":""},null,{"$f":"IFERROR(O29-S29,\"\")","v":""},null,"",{"$f":"IF('Core Data'!$AC$5=1,'Core Data'!D15,'Core Data'!L15)","v":0},{"$f":"IF('Core Data'!$AC$5=1,'Core Data'!E15,'Core Data'!M15)","v":0},{"$f":"IF('Core Data'!$AC$5=1,'Core Data'!F15,'Core Data'!N15)","v":0},{"$f":"IF('Core Data'!$AC$5=1,'Core Data'!G15,'Core Data'!O15)","v":""},{"$f":"IF('Core Data'!AC15=TRUE,\"Removed\",\"\")","v":""},null,{"$f":"IF('Core Data'!AC15=TRUE,1,\"\")","v":""},null,null,null,null,null,"","","","",{"$f":"IFERROR(AK29+$AF$41,\"\")","v":""},""]
[]
[null,"ZONE 2"]
[null,"Station (@ center of Zone):",null,null,{"$f":"IF('QC-1 Density Worksheet'!B22=\"\",\"\",'QC-1 Density Worksheet'!B22)","v":0}]
[]
[null,"Reading 1\n(pcf)",null,"Reading 2\n(pcf)","Difference\n(pcf)",null,"Reading 3*            \n(pcf)",null,"Ave Nuclear\n(pcf)",null,"Core Gmb",null,"Ave Nuclear\n(%)",null,"Core Density (%)",null,"Difference\n(%)",null,"Adjusted Nuc. (%)",null,"Adj. Diff. (%)",null,null,"Dry weight","SSD","Submerged","Core Density",null,null,null,null,null,null,null,null,"Core Density","Ave Nuclear","Core Density","Difference","Adjusted Nuc.","Adj. Diff."]
[{"$f":"'Core Data'!A19","v":""},{"$f":"'QC-2 Density Worksheet'!T20","v":""},null,{"$f":"'QC-2 Density Worksheet'!U20","v":""},{"$f":"IFERROR(ROUND(ABS(B35-D35),1),\"\")","v":""},null,{"$f":"'QC-2 Density Worksheet'!V20","v":""},null,{"$f":"IFERROR('QC-2 Density Worksheet'!AD20,\"\")","v":""},"",{"$f":"IFERROR(AA35,\"\")","v":""},null,{"$f":"IF(AD35=1,\"\",IFERROR(ROUND(I35/ROUND($H$14*62.24,1)*100,1),\"\"))","v":""},null,{"$f":"IF(AD35=1,\"\",IFERROR(K35/$H$14*100,\"\"))","v":""},null,{"$f":"IFERROR(O35-M35,\"\")","v":""},null,{"$f":"IFERROR(M35+$U$41,\"\")","v":""},null,{"$f":"IFERROR(O35-S35,\"\")","v":""},null,{"$f":"A35","v":""},{"$f":"IF('Core Data'!$AC$5=1,'Core Data'!D19,'Core Data'!L19)","v":0},{"$f":"IF('Core Data'!$AC$5=1,'Core Data'!E19,'Core Data'!M19)","v":0},{"$f":"IF('Core Data'!$AC$5=1,'Core Data'!F19,'Core Data'!N19)","v":0},{"$f":"IF('Core Data'!$AC$5=1,'Core Data'!G19,'Core Data'!O19)","v":""},{"$f":"IF('Core Data'!AC19=TRUE,\"Removed\",\"\")","v":""},null,{"$f":"IF('Core Data'!AC19=TRUE,1,\"\")","v":""},null,null,null,null,null,"",{"$f":"IFERROR(ROUND(I35/ROUND($H$14*62.24,1)*100,1),\"\")","v":""},{"$f":"IFERROR(AA35/$H$14*100,\"\")","v":""},{"$f":"IFERROR(AL35-AK35,\"\")","v":""},{"$f":"IFERROR(AK35+$AF$41,\"\")","v":""},{"$f":"IFERROR(AL35-AN35,\"\")","v":""}]
[{"$f":"'Core Data'!A20","v":""},{"$f":"'QC-2 Density Worksheet'!T21","v":""},null,{"$f":"'QC-2 Density Worksheet'!U21","v":""},{"$f":"IFERROR(ROUND(ABS(B36-D36),1),\"\")","v":""},null,{"$f":"'QC-2 Density Worksheet'!V21","v":""},null,{"$f":"IFERROR('QC-2 Density Worksheet'!AD21,\"\")","v":""},"",{"$f":"IFERROR(AA36,\"\")","v":""},null,"",null,{"$f":"IF(AD36=1,\"\",IFERROR(K36/$H$14*100,\"\"))","v":""},null,{"$f":"IFERROR(O36-M36,\"\")","v":""},null,{"$f":"IFERROR(M36+$U$41,\"\")","v":""},null,{"$f":"IFERROR(O36-S36,\"\")","v":""},null,{"$f":"A36","v":""},{"$f":"IF('Core Data'!$AC$5=1,'Core Data'!D20,'Core Data'!L20)","v":0},{"$f":"IF('Core Data'!$AC$5=1,'Core Data'!E20,'Core Data'!M20)","v":0},{"$f":"IF('Core Data'!$AC$5=1,'Core Data'!F20,'Core Data'!N20)","v":0},{"$f":"IF('Core Data'!$AC$5=1,'Core Data'!G20,'Core Data'!O20)","v":""},{"$f":"IF('Core Data'!AC20=TRUE,\"Removed\",\"\")","v":""},null,{"$f":"IF('Core Data'!AC20=TRUE,1,\"\")","v":""},null,null,null,null,null,"",{"$f":"IFERROR(ROUND(I36/ROUND($H$14*62.24,1)*100,1),\"\")","v":""},{"$f":"IFERROR(AA36/$H$14*100,\"\")","v":""},{"$f":"IFERROR(AL36-AK36,\"\")","v":""},{"$f":"IFERROR(AK36+$AF$41,\"\")","v":""},{"$f":"IFERROR(AL36-AN36,\"\")","v":""}]
[{"$f":"'Core Data'!A21","v":""},{"$f":"'QC-2 Density Worksheet'!T22","v":""},null,{"$f":"'QC-2 Density Worksheet'!U22","v":""},"",null,{"$f":"'QC-2 Density Worksheet'!V22","v":""},null,{"$f":"IFERROR('QC-2 Density Worksheet'!AD22,\"\")","v":""},"",{"$f":"IFERROR(AA37,\"\")","v":""},null,"",null,"",null,{"$f":"IFERROR(O37-M37,\"\")","v":""},null,{"$f":"IFERROR(M37+$U$41,\"\")","v":""},null,{"$f":"IFERROR(O37-S37,\"\")","v":""},null,"",{"$f":"IF('Core Data'!$AC$5=1,'Core Data'!D21,'Core Data'!L21)","v":0},{"$f":"IF('Core Data'!$AC$5=1,'Core Data'!E21,'Core Data'!M21)","v":0},{"$f":"IF('Core Data'!$AC$5=1,'Core Data'!F21,'Core Data'!N21)","v":0},{"$f":"IF('Core Data'!$AC$5=1,'Core Data'!G21,'Core Data'!O21)","v":""},{"$f":"IF('Core Data'!AC21=TRUE,\"Removed\",\"\")","v":""},null,{"$f":"IF('Core Data'!AC21=TRUE,1,\"\")","v":""},null,null,null,null,null,"","","","",{"$f":"IFERROR(AK37+$AF$41,\"\")","v":""},""]
[{"$f":"'Core Data'!A22","v":""},{"$f":"'QC-2 Density Worksheet'!T23","v":""},null,{"$f":"'QC-2 Density Worksheet'!U23","v":""},"",null,{"$f":"'QC-2 Density Worksheet'!V23","v":""},null,{"$f":"IFERROR('QC-2 Density Worksheet'!AD23,\"\")","v":""},"",{"$f":"IFERROR(AA38,\"\")","v":""},null,"",null,"",null,{"$f":"IFERROR(O38-M38,\"\")","v":""},null,{"$f":"IFERROR(M38+$U$41,\"\")","v":""},null,{"$f":"IFERROR(O38-S38,\"\")","v":""},null,"",{"$f":"IF('Core Data'!$AC$5=1,'Core Data'!D22,'Core Data'!L22)","v":0},{"$f":"IF('Core Data'!$AC$5=1,'Core Data'!E22,'Core Data'!M22)","v":0},{"$f":"IF('Core Data'!$AC$5=1,'Core Data'!F22,'Core Data'!N22)","v":0},{"$f":"IF('Core Data'!$AC$5=1,'Core Data'!G22,'Core Data'!O22)","v":""},{"$f":"IF('Core Data'!AC22=TRUE,\"Removed\",\"\")","v":""},null,{"$f":"IF('Core Data'!AC22=TRUE,1,\"\")","v":""},null,"OFFSET including removed cores",null,null,null,"","","","",{"$f":"IFERROR(AK38+$AF$41,\"\")","v":""},""]
[{"$f":"'Core Data'!A23","v":""},{"$f":"'QC-2 Density Worksheet'!T24","v":""},null,{"$f":"'QC-2 Density Worksheet'!U24","v":""},"",null,{"$f":"'QC-2 Density Worksheet'!V24","v":""},null,{"$f":"IFERROR('QC-2 Density Worksheet'!AD24,\"\")","v":""},"",{"$f":"IFERROR(AA39,\"\")","v":""},null,"",null,"",null,{"$f":"IFERROR(O39-M39,\"\")","v":""},null,{"$f":"IFERROR(M39+$U$41,\"\")","v":""},null,{"$f":"IFERROR(O39-S39,\"\")","v":""},null,"",{"$f":"IF('Core Data'!$AC$5=1,'Core Data'!D23,'Core Data'!L23)","v":0},{"$f":"IF('Core Data'!$AC$5=1,'Core Data'!E23,'Core Data'!M23)","v":0},{"$f":"IF('Core Data'!$AC$5=1,'Core Data'!F23,'Core Data'!N23)","v":0},{"$f":"IF('Core Data'!$AC$5=1,'Core Data'!G23,'Core Data'!O23)","v":""},{"$f":"IF('Core Data'!AC23=TRUE,\"Removed\",\"\")","v":""},null,{"$f":"IF('Core Data'!AC23=TRUE,1,\"\")","v":""},null,null,null,null,null,"","","","",{"$f":"IFERROR(AK39+$AF$41,\"\")","v":""},""]
[]
[null,null,null,null,null,null,null,null,null,null,null,null,null,null,null,null,null,null,"OFFSET",null,{"$f":"IFERROR(AVERAGE(Q25:Q29,Q35:Q39),\"\")","v":""},null,null,null,null,null,null,null,null,null,null,{"$f":"IFERROR(AVERAGE(AM25:AM29,AM35:AM39),\"\")","v":""}]
[null,null,null,null,null,null,null,null,null,null,null,null,null,null,null,null,null,null,null,null,null,null,null,null,null,null,"Nuclear / Core Correlation Worksheet     "]
[null,null,null,null,null,null,null,null,null,null,null,null,null,null,"Gauge",null,"Cores"]
[null,null,null,null,null,null,null,null,"page 1",null,null,null,"RANGE",null,{"$f":"O46-O47","v":0},"%",{"$f":"Q46-Q47","v":0},"%",null,null,"page 2",null,null,null,null,null,null,"page 3"]
[]
[null,null,null,null,null,null,null,null,null,null,null,null,"Max",null,{"$f":"MAX(M25:M29,M35:M39)","v":0},null,{"$f":"MAX(O25:O29,O35:O39)","v":0}]
[null,null,null,null,null,null,null,null,null,null,null,null,"Min",null,{"$f":"MIN(M25:M29,M35:M39)","v":0},null,{"$f":"MIN(O25:O29,O35:O39)","v":0}]

{"sheet":"QV-1 Correlation","index":15,"n_rows":47,"n_cols":41,"rows_kept":47,"cut":false,"hidden":false,"merged":[[9,23,9,24],[8,2,8,4],[13,7,13,8],[9,7,9,8],[10,7,10,8],[17,2,17,4],[21,4,21,6],[21,18,21,19],[1,33,2,33],[2,23,2,24],[0,3,4,8],[0,12,0,14],[0,19,0,20],[0,23,0,24],[3,23,3,24],[4,23,4,24],[1,23,1,24],[1,31,2,31],[15,2,15,8],[18,2,18,4],[8,23,8,24],[5,23,5,24],[6,3,6,8],[6,23,6,24],[8,7,8,8],[14,2,14,4],[14,7,14,8],[9,2,9,4],[11,7,11,8],[10,2,10,4],[12,7,12,8],[11,2,11,4],[12,2,12,4],[13,2,13,4],[7,23,7,27],[9,26,9,27],[10,26,10,27],[22,35,22,40],[37,31,39,33],[40,31,40,33],[31,4,31,6],[40,18,40,19]]}
[null,null,null,"Wisconsin Department \nof Transportation ",null,null,null,null,null,null,"Date:",null,{"$f":"IF(C9=\"\",\"\",C9)","v":""},null,null,null,null,null,"Gauge No.:",{"$f":"IF(C19=\"\",\"\",C19)","v":""},null,null,"Date:",{"$f":"IF(C9=\"\",\"\",C9)","v":""},null,null,"Layer:",{"$f":"IF('Project Info & Instructions'!G16=\"\",\"\",'Project Info & Instructions'!G16)","v":""}]
[null,null,null,null,null,null,null,null,null,null,null,null,null,null,null,null,null,null,"Nuclear / Core Correlation Worksheet     ",null,null,null,"Contract:",{"$f":"IF(C10=\"\",\"\",C10)","v":""},null,null,"Layer Thickness:",{"$f":"H13","v":""},null,null,null,"Ave Nuclear",null,"Core Density"]
[null,null,null,null,null,null,null,null,null,null,null,null,null,null,null,null,null,null,null,null,null,null,"Job No.:","",null,null,"Gmm:",{"$f":"H14","v":""}]
[null,null,null,null,null,null,null,null,null,null,null,null,null,null,null,null,null,null,null,null,null,null,"Route:","",null,null,null,null,null,null,null,{"$f":"IF(M25=\"\",#N/A,M25)","v":{"$error":"#N/A"}},null,{"$f":"IF(O25=\"\",#N/A,O25)","v":{"$error":"#N/A"}}]
[null,null,null,null,null,null,null,null,null,null,null,null,null,null,null,null,null,null,null,null,null,null,"Underlying Material:","",null,null,null,null,null,null,null,{"$f":"IF(M26=\"\",#N/A,M26)","v":{"$error":"#N/A"}},null,{"$f":"IF(O26=\"\",#N/A,O26)","v":{"$error":"#N/A"}}]
[null,{"$f":"'Project Info & Instructions'!A6","v":"Revised 04-08-22"},null,null,null,null,null,null,null,null,null,null,null,null,null,null,null,null,null,null,null,null,"WisDOT Mix No.:","",null,null,null,null,null,null,null,{"$error":"#N/A"},null,{"$error":"#N/A"}]
[null,null,null,"Nuclear / Core Correlation Worksheet",null,null,null,null,null,null,null,null,null,null,null,null,null,null,null,null,null,null,"Mix Type:","--",null,null,"Core Diameter:",{"$f":"H15","v":6},null,null,null,{"$error":"#N/A"},null,{"$error":"#N/A"}]
[null,null,null,null,null,null,null,null,null,null,null,null,null,null,null,null,null,null,null,null,null,null,"Test Strip Type:",{"$f":"'Project Info & Instructions'!O10","v":"Combined Density and Volumetrics Test Strip"},null,null,null,null,null,null,null,{"$error":"#N/A"},null,{"$error":"#N/A"}]
[null,"Date:",{"$f":"IF('Project Info & Instructions'!C10=\"\",\"\",'Project Info & Instructions'!C10)","v":""},null,null,null,"Test Strip #:",{"$f":"IF('Project Info & Instructions'!C11=\"\",\"\",'Project Info & Instructions'!C11)","v":""},null,null,null,null,null,null,null,null,null,null,null,null,null,null,"NUCDENSITYTEC:",{"$f":"IF('QV-1 Density Worksheet'!I6=\"\",\"\",'QV-1 Density Worksheet'!I6)","v":""},null,null,null,null,null,null,null,{"$f":"IF(M35=\"\",#N/A,M35)","v":{"$error":"#N/A"}},null,{"$f":"IF(O35=\"\",#N/A,O35)","v":{"$error":"#N/A"}}]
[null,"Contract:",{"$f":"IF('Project Info & Instructions'!C12=\"\",\"\",'Project Info & Instructions'!C12)","v":""},null,null,null,"Layer:",{"$f":"IF('Project Info & Instructions'!G16=\"\",\"\",'Project Info & Instructions'!G16)","v":""},null,null,null,null,null,null,null,null,null,null,null,null,null,null,"Gauge No.:",{"$f":"IF('QV-1 Density Worksheet'!M4=\"\",\"\",'QV-1 Density Worksheet'!M4)","v":""},null,null,"Spread of Cores (%)",null,null,null,null,{"$f":"IF(M36=\"\",#N/A,M36)","v":{"$error":"#N/A"}},null,{"$f":"IF(O36=\"\",#N/A,O36)","v":{"$error":"#N/A"}}]
[null,"Job No.:",{"$f":"IF('Project Info & Instructions'!C13=\"\",\"\",'Project Info & Instructions'!C13)","v":""},null,null,null,"Mixture Type:",{"$f":"IF('Project Info & Instructions'!C21=\"\",\"\",'Project Info & Instructions'!C21)","v":"--"},null,null,null,null,null,null,null,null,null,null,null,null,null,null,null,null,null,null,{"$f":"IF(Q44>0,Q44,\"\")","v":""},null,null,null,null,{"$error":"#N/A"},null,{"$error":"#N/A"}]
[null,"Route:",{"$f":"IF('Project Info & Instructions'!C14=\"\",\"\",'Project Info & Instructions'!C14)","v":""},null,null,null,null,null,null,null,null,null,null,null,null,null,null,null,null,null,null,null,null,null,null,null,null,null,null,null,null,{"$error":"#N/A"},null,{"$error":"#N/A"}]
[null,"Underlying Matl.:",{"$f":"IF('Project Info & Instructions'!G17=\"\",\"\",'Project Info & Instructions'!G17)","v":""},null,null,null,"Layer Thickness:",{"$f":"IF('Project Info & Instructions'!G12=\"\",\"\",'Project Info & Instructions'!G12)","v":""},null,null,null,null,null,null,null,null,null,null,null,null,null,null,"SN","Gauge ID","Offset","R-squared","Spread (%)",null,null,null,null,{"$error":"#N/A"},null,{"$error":"#N/A"}]
[null,"WisDOT Mix No.:",{"$f":"IF('Project Info & Instructions'!C16=\"\",\"\",'Project Info & Instructions'!C16)","v":""},null,null,null,"Gmm:",{"$f":"IF('Project Info & Instructions'!O9=2,'Core Data'!I1,'Air Voids Pay Factor'!D11)","v":""},null,null,null,null,null,null,null,null,null,null,null,null,null,null,{"$f":"IF('QC-1 Correlation'!C19=\"\",\"\",'QC-1 Correlation'!C19)","v":""},"QC-1",{"$f":"IF('QC-1 Correlation'!U41=\"\",\"\",'QC-1 Correlation'!U41)","v":""},{"$f":"IF('QC-1 Correlation'!U22=\"\",\"\",'QC-1 Correlation'!U22)","v":""},{"$f":"IF('QC-1 Correlation'!O44=\"\",\"\",'QC-1 Correlation'!O44)","v":0}]
[null,"Mix Type:",{"$f":"IF('Project Info & Instructions'!C21=\"\",\"\",'Project Info & Instructions'!C21)","v":"--"},null,null,null,"Core Diameter:",6,null,null,null,null,null,null,null,null,null,null,null,null,null,null,{"$f":"IF('QC-2 Correlation'!C19=\"\",\"\",'QC-2 Correlation'!C19)","v":""},"QC-2",{"$f":"IF('QC-2 Correlation'!U41=\"\",\"\",'QC-2 Correlation'!U41)","v":""},{"$f":"IF('QC-2 Correlation'!U22=\"\",\"\",'QC-2 Correlation'!U22)","v":""},{"$f":"IF('QC-2 Correlation'!O44=\"\",\"\",'QC-2 Correlation'!O44)","v":0},null,null,null,null,{"$f":"IF(ISNUMBER(AF4),AF4,\"\")","v":""},null,{"$f":"IF(ISNUMBER(AH4),AH4,\"\")","v":""}]
[null,"Test Strip Type:",{"$f":"'Project Info & Instructions'!O10","v":"Combined Density and Volumetrics Test Strip"},null,null,null,null,null,null,null,null,null,null,null,null,null,null,null,null,null,null,null,{"$f":"IF('QV-1 Correlation'!C19=\"\",\"\",'QV-1 Correlation'!C19)","v":""},"QV-1",{"$f":"IF('QV-1 Correlation'!U41=\"\",\"\",'QV-1 Correlation'!U41)","v":""},{"$f":"IF('QV-1 Correlation'!U22=\"\",\"\",'QV-1 Correlation'!U22)","v":""},{"$f":"IF('QV-1 Correlation'!O44=\"\",\"\",'QV-1 Correlation'!O44)","v":0},null,null,null,null,{"$f":"IF(ISNUMBER(AF5),AF5,\"\")","v":""},null,""]
[null,null,null,null,null,null,null,null,null,null,null,null,null,null,null,null,null,null,null,null,null,null,{"$f":"IF('QV-2 Correlation'!C19=\"\",\"\",'QV-2 Correlation'!C19)","v":""},"QV-2",{"$f":"IF('QV-2 Correlation'!U41=\"\",\"\",'QV-2 Correlation'!U41)","v":""},{"$f":"IF('QV-2 Correlation'!U22=\"\",\"\",'QV-2 Correlation'!U22)","v":""},{"$f":"IF('QV-2 Correlation'!O44=\"\",\"\",'QV-2 Correlation'!O44)","v":0},null,null,null,null,"",null,""]
[null,"NUCDENSITYTEC:",{"$f":"IF('QV-1 Density Worksheet'!I6=\"\",\"\",'QV-1 Density Worksheet'!I6)","v":""},null,null,null,null,null,null,null,null,null,null,null,null,null,null,null,null,null,null,null,null,null,null,null,null,null,null,null,null,"",null,""]
[null,"Gauge No.:",{"$f":"IF('QV-1 Density Worksheet'!M4=\"\",\"\",'QV-1 Density Worksheet'!M4)","v":""},null,null,null,null,null,null,null,null,null,null,null,null,null,null,null,null,null,null,null,null,null,null,null,null,null,null,null,null,"",null,""]
[null,null,null,null,null,null,null,null,null,null,null,null,null,null,null,null,null,null,null,null,null,null,null,null,null,null,null,null,null,null,null,"",null,""]
[null,"ZONE 1",null,null,null,null,null,null,null,null,null,null,null,null,null,null,null,null,null,null,null,null,null,null,null,null,null,null,null,null,null,"",null,""]
[null,"Station (@ center of Zone):",null,null,{"$f":"IF('QC-1 Density Worksheet'!B16=\"\",\"\",'QC-1 Density Worksheet'!B16)","v":0},null,null,null,null,null,null,null,"CALCULATIONS",null,null,null,null,null,"R-Squared",null,{"$f":"IFERROR(RSQ(AF15:AF24,AH15:AH24),\"\")","v":""},null,null,null,"Core Density Calculations",null,null,null,null,null,null,"",null,""]
[null,null,null,null,null,null,null,null,null,null,null,null,null,null,null,null,null,null,null,null,null,null,null,null,null,"Core Data Used:",{"$f":"IF('Core Data'!$AC$5=1,\"QC\",\"QV\")","v":"QC"},null,null,null,null,"",null,"",null,"All Values including removed cores"]
[null,"Reading 1\n(pcf)",null,"Reading 2\n(pcf)","Difference\n(pcf)",null,"Reading 3*            \n(pcf)",null,"Ave Nuclear\n(pcf)",null,"Core Gmb",null,"Ave Nuclear\n(%)",null,"Core Density (%)",null,"Difference\n(%)",null,"Adjusted Nuc. (%)",null,"Adj. Diff. (%)",null,null,"Dry weight","SSD","Submerged","Core Density",null,null,"Check for Removed Cores",null,"",null,"",null,"Core Density","Ave Nuclear","Core Density","Difference","Adjusted Nuc.","Adj. Diff."]
[{"$f":"'Core Data'!A11","v":""},{"$f":"'QV-1 Density Worksheet'!T14","v":""},null,{"$f":"'QV-1 Density Worksheet'!U14","v":""},{"$f":"IFERROR(ROUND(ABS(B25-D25),1),\"\")","v":""},null,{"$f":"'QV-1 Density Worksheet'!V14","v":""},null,{"$f":"IFERROR('QV-1 Density Worksheet'!AD14,\"\")","v":""},{"$f":"A25","v":""},{"$f":"IFERROR(AA25,\"\")","v":""},null,{"$f":"IF(AD25=1,\"\",IFERROR(ROUND(I25/ROUND($H$14*62.24,1)*100,1),\"\"))","v":""},null,{"$f":"IF(AD25=1,\"\",IFERROR(K25/$H$14*100,\"\"))","v":""},null,{"$f":"IFERROR(O25-M25,\"\")","v":""},null,{"$f":"IFERROR(M25+$U$41,\"\")","v":""},null,{"$f":"IFERROR(O25-S25,\"\")","v":""},null,{"$f":"A25","v":""},{"$f":"IF('Core Data'!$AC$5=1,'Core Data'!D11,'Core Data'!L11)","v":0},{"$f":"IF('Core Data'!$AC$5=1,'Core Data'!E11,'Core Data'!M11)","v":0},{"$f":"IF('Core Data'!$AC$5=1,'Core Data'!F11,'Core Data'!N11)","v":0},{"$f":"IF('Core Data'!$AC$5=1,'Core Data'!G11,'Core Data'!O11)","v":""},{"$f":"IF('Core Data'!AC11=TRUE,\"Removed\",\"\")","v":""},null,{"$f":"IF('Core Data'!AC11=TRUE,1,\"\")","v":""},null,null,null,null,null,{"$f":"IFERROR(AA25,\"\")","v":""},{"$f":"IFERROR(ROUND(I25/ROUND($H$14*62.24,1)*100,1),\"\")","v":""},{"$f":"IFERROR(AA25/$H$14*100,\"\")","v":""},{"$f":"IFERROR(AL25-AK25,\"\")","v":""},{"$f":"IFERROR(AK25+$AF$41,\"\")","v":""},{"$f":"IFERROR(AL25-AN25,\"\")","v":""}]
[{"$f":"'Core Data'!A12","v":""},{"$f":"'QV-1 Density Worksheet'!T15","v":""},null,{"$f":"'QV-1 Density Worksheet'!U15","v":""},{"$f":"IFERROR(ROUND(ABS(B26-D26),1),\"\")","v":""},null,{"$f":"'QV-1 Density Worksheet'!V15","v":""},null,{"$f":"IFERROR('QV-1 Density Worksheet'!AD15,\"\")","v":""},{"$f":"A26","v":""},{"$f":"IFERROR(AA26,\"\")","v":""},null,{"$f":"IF(AD26=1,\"\",IFERROR(ROUND(I26/ROUND($H$14*62.24,1)*100,1),\"\"))","v":""},null,{"$f":"IF(AD26=1,\"\",IFERROR(K26/$H$14*100,\"\"))","v":""},null,{"$f":"IFERROR(O26-M26,\"\")","v":""},null,{"$f":"IFERROR(M26+$U$41,\"\")","v":""},null,{"$f":"IFERROR(O26-S26,\"\")","v":""},null,{"$f":"A26","v":""},{"$f":"IF('Core Data'!$AC$5=1,'Core Data'!D12,'Core Data'!L12)","v":0},{"$f":"IF('Core Data'!$AC$5=1,'Core Data'!E12,'Core Data'!M12)","v":0},{"$f":"IF('Core Data'!$AC$5=1,'Core Data'!F12,'Core Data'!N12)","v":0},{"$f":"IF('Core Data'!$AC$5=1,'Core Data'!G12,'Core Data'!O12)","v":""},{"$f":"IF('Core Data'!AC12=TRUE,\"Removed\",\"\")","v":""},null,{"$f":"IF('Core Data'!AC12=TRUE,1,\"\")","v":""},null,null,null,null,null,{"$f":"IFERROR(AA26,\"\")","v":""},{"$f":"IFERROR(ROUND(I26/ROUND($H$14*62.24,1)*100,1),\"\")","v":""},{"$f":"IFERROR(AA26/$H$14*100,\"\")","v":""},{"$f":"IFERROR(AL26-AK26,\"\")","v":""},{"$f":"IFERROR(AK26+$AF$41,\"\")","v":""},{"$f":"IFERROR(AL26-AN26,\"\")","v":""}]
[{"$f":"'Core Data'!A13","v":""},{"$f":"'QV-1 Density Worksheet'!T16","v":""},null,{"$f":"'QV-1 Density Worksheet'!U16","v":""},"",null,{"$f":"'QV-1 Density Worksheet'!V16","v":""},null,{"$f":"IFERROR('QV-1 Density Worksheet'!AD16,\"\")","v":""},"",{"$f":"IFERROR(AA27,\"\")","v":""},null,"",null,"",null,{"$f":"IFERROR(O27-M27,\"\")","v":""},null,{"$f":"IFERROR(M27+$U$41,\"\")","v":""},null,{"$f":"IFERROR(O27-S27,\"\")","v":""},null,"",{"$f":"IF('Core Data'!$AC$5=1,'Core Data'!D13,'Core Data'!L13)","v":0},{"$f":"IF('Core Data'!$AC$5=1,'Core Data'!E13,'Core Data'!M13)","v":0},{"$f":"IF('Core Data'!$AC$5=1,'Core Data'!F13,'Core Data'!N13)","v":0},{"$f":"IF('Core Data'!$AC$5=1,'Core Data'!G13,'Core Data'!O13)","v":""},{"$f":"IF('Core Data'!AC13=TRUE,\"Removed\",\"\")","v":""},null,{"$f":"IF('Core Data'!AC13=TRUE,1,\"\")","v":""},null,null,null,null,null,"","","","",{"$f":"IFERROR(AK27+$AF$41,\"\")","v":""},""]
[{"$f":"'Core Data'!A14","v":""},{"$f":"'QV-1 Density Worksheet'!T17","v":""},null,{"$f":"'QV-1 Density Worksheet'!U17","v":""},"",null,{"$f":"'QV-1 Density Worksheet'!V17","v":""},null,{"$f":"IFERROR('QV-1 Density Worksheet'!AD17,\"\")","v":""},"",{"$f":"IFERROR(AA28,\"\")","v":""},null,"",null,"",null,{"$f":"IFERROR(O28-M28,\"\")","v":""},null,{"$f":"IFERROR(M28+$U$41,\"\")","v":""},null,{"$f":"IFERROR(O28-S28,\"\")","v":""},null,"",{"$f":"IF('Core Data'!$AC$5=1,'Core Data'!D14,'Core Data'!L14)","v":0},{"$f":"IF('Core Data'!$AC$5=1,'Core Data'!E14,'Core Data'!M14)","v":0},{"$f":"IF('Core Data'!$AC$5=1,'Core Data'!F14,'Core Data'!N14)","v":0},{"$f":"IF('Core Data'!$AC$5=1,'Core Data'!G14,'Core Data'!O14)","v":""},{"$f":"IF('Core Data'!AC14=TRUE,\"Removed\",\"\")","v":""},null,{"$f":"IF('Core Data'!AC14=TRUE,1,\"\")","v":""},null,null,null,null,null,"","","","",{"$f":"IFERROR(AK28+$AF$41,\"\")","v":""},""]
[{"$f":"'Core Data'!A15","v":""},{"$f":"'QV-1 Density Worksheet'!T18","v":""},null,{"$f":"'QV-1 Density Worksheet'!U18","v":""},"",null,{"$f":"'QV-1 Density Worksheet'!V18","v":""},null,{"$f":"IFERROR('QV-1 Density Worksheet'!AD18,\"\")","v":""},"",{"$f":"IFERROR(AA29,\"\")","v":""},null,"",null,"",null,{"$f":"IFERROR(O29-M29,\"\")","v":""},null,{"$f":"IFERROR(M29+$U$41,\"\")","v":""},null,{"$f":"IFERROR(O29-S29,\"\")","v":""},null,"",{"$f":"IF('Core Data'!$AC$5=1,'Core Data'!D15,'Core Data'!L15)","v":0},{"$f":"IF('Core Data'!$AC$5=1,'Core Data'!E15,'Core Data'!M15)","v":0},{"$f":"IF('Core Data'!$AC$5=1,'Core Data'!F15,'Core Data'!N15)","v":0},{"$f":"IF('Core Data'!$AC$5=1,'Core Data'!G15,'Core Data'!O15)","v":""},{"$f":"IF('Core Data'!AC15=TRUE,\"Removed\",\"\")","v":""},null,{"$f":"IF('Core Data'!AC15=TRUE,1,\"\")","v":""},null,null,null,null,null,"","","","",{"$f":"IFERROR(AK29+$AF$41,\"\")","v":""},""]
[]
[null,"ZONE 2"]
[null,"Station (@ center of Zone):",null,null,{"$f":"IF('QC-1 Density Worksheet'!B22=\"\",\"\",'QC-1 Density Worksheet'!B22)","v":0}]
[]
[null,"Reading 1\n(pcf)",null,"Reading 2\n(pcf)","Difference\n(pcf)",null,"Reading 3*            \n(pcf)",null,"Ave Nuclear\n(pcf)",null,"Core Gmb",null,"Ave Nuclear\n(%)",null,"Core Density (%)",null,"Difference\n(%)",null,"Adjusted Nuc. (%)",null,"Adj. Diff. (%)",null,null,"Dry weight","SSD","Submerged","Core Density",null,null,null,null,null,null,null,null,"Core Density","Ave Nuclear","Core Density","Difference","Adjusted Nuc.","Adj. Diff."]
[{"$f":"'Core Data'!A19","v":""},{"$f":"'QV-1 Density Worksheet'!T20","v":""},null,{"$f":"'QV-1 Density Worksheet'!U20","v":""},{"$f":"IFERROR(ROUND(ABS(B35-D35),1),\"\")","v":""},null,{"$f":"'QV-1 Density Worksheet'!V20","v":""},null,{"$f":"IFERROR('QV-1 Density Worksheet'!AD20,\"\")","v":""},"",{"$f":"IFERROR(AA35,\"\")","v":""},null,{"$f":"IF(AD35=1,\"\",IFERROR(ROUND(I35/ROUND($H$14*62.24,1)*100,1),\"\"))","v":""},null,{"$f":"IF(AD35=1,\"\",IFERROR(K35/$H$14*100,\"\"))","v":""},null,{"$f":"IFERROR(O35-M35,\"\")","v":""},null,{"$f":"IFERROR(M35+$U$41,\"\")","v":""},null,{"$f":"IFERROR(O35-S35,\"\")","v":""},null,{"$f":"A35","v":""},{"$f":"IF('Core Data'!$AC$5=1,'Core Data'!D19,'Core Data'!L19)","v":0},{"$f":"IF('Core Data'!$AC$5=1,'Core Data'!E19,'Core Data'!M19)","v":0},{"$f":"IF('Core Data'!$AC$5=1,'Core Data'!F19,'Core Data'!N19)","v":0},{"$f":"IF('Core Data'!$AC$5=1,'Core Data'!G19,'Core Data'!O19)","v":""},{"$f":"IF('Core Data'!AC19=TRUE,\"Removed\",\"\")","v":""},null,{"$f":"IF('Core Data'!AC19=TRUE,1,\"\")","v":""},null,null,null,null,null,"",{"$f":"IFERROR(ROUND(I35/ROUND($H$14*62.24,1)*100,1),\"\")","v":""},{"$f":"IFERROR(AA35/$H$14*100,\"\")","v":""},{"$f":"IFERROR(AL35-AK35,\"\")","v":""},{"$f":"IFERROR(AK35+$AF$41,\"\")","v":""},{"$f":"IFERROR(AL35-AN35,\"\")","v":""}]
[{"$f":"'Core Data'!A20","v":""},{"$f":"'QV-1 Density Worksheet'!T21","v":""},null,{"$f":"'QV-1 Density Worksheet'!U21","v":""},{"$f":"IFERROR(ROUND(ABS(B36-D36),1),\"\")","v":""},null,{"$f":"'QV-1 Density Worksheet'!V21","v":""},null,{"$f":"IFERROR('QV-1 Density Worksheet'!AD21,\"\")","v":""},"",{"$f":"IFERROR(AA36,\"\")","v":""},null,"",null,{"$f":"IF(AD36=1,\"\",IFERROR(K36/$H$14*100,\"\"))","v":""},null,{"$f":"IFERROR(O36-M36,\"\")","v":""},null,{"$f":"IFERROR(M36+$U$41,\"\")","v":""},null,{"$f":"IFERROR(O36-S36,\"\")","v":""},null,{"$f":"A36","v":""},{"$f":"IF('Core Data'!$AC$5=1,'Core Data'!D20,'Core Data'!L20)","v":0},{"$f":"IF('Core Data'!$AC$5=1,'Core Data'!E20,'Core Data'!M20)","v":0},{"$f":"IF('Core Data'!$AC$5=1,'Core Data'!F20,'Core Data'!N20)","v":0},{"$f":"IF('Core Data'!$AC$5=1,'Core Data'!G20,'Core Data'!O20)","v":""},{"$f":"IF('Core Data'!AC20=TRUE,\"Removed\",\"\")","v":""},null,{"$f":"IF('Core Data'!AC20=TRUE,1,\"\")","v":""},null,null,null,null,null,"",{"$f":"IFERROR(ROUND(I36/ROUND($H$14*62.24,1)*100,1),\"\")","v":""},{"$f":"IFERROR(AA36/$H$14*100,\"\")","v":""},{"$f":"IFERROR(AL36-AK36,\"\")","v":""},{"$f":"IFERROR(AK36+$AF$41,\"\")","v":""},{"$f":"IFERROR(AL36-AN36,\"\")","v":""}]
[{"$f":"'Core Data'!A21","v":""},{"$f":"'QV-1 Density Worksheet'!T22","v":""},null,{"$f":"'QV-1 Density Worksheet'!U22","v":""},"",null,{"$f":"'QV-1 Density Worksheet'!V22","v":""},null,{"$f":"IFERROR('QV-1 Density Worksheet'!AD22,\"\")","v":""},"",{"$f":"IFERROR(AA37,\"\")","v":""},null,"",null,"",null,{"$f":"IFERROR(O37-M37,\"\")","v":""},null,{"$f":"IFERROR(M37+$U$41,\"\")","v":""},null,{"$f":"IFERROR(O37-S37,\"\")","v":""},null,"",{"$f":"IF('Core Data'!$AC$5=1,'Core Data'!D21,'Core Data'!L21)","v":0},{"$f":"IF('Core Data'!$AC$5=1,'Core Data'!E21,'Core Data'!M21)","v":0},{"$f":"IF('Core Data'!$AC$5=1,'Core Data'!F21,'Core Data'!N21)","v":0},{"$f":"IF('Core Data'!$AC$5=1,'Core Data'!G21,'Core Data'!O21)","v":""},{"$f":"IF('Core Data'!AC21=TRUE,\"Removed\",\"\")","v":""},null,{"$f":"IF('Core Data'!AC21=TRUE,1,\"\")","v":""},null,null,null,null,null,"","","","",{"$f":"IFERROR(AK37+$AF$41,\"\")","v":""},""]
[{"$f":"'Core Data'!A22","v":""},{"$f":"'QV-1 Density Worksheet'!T23","v":""},null,{"$f":"'QV-1 Density Worksheet'!U23","v":""},"",null,{"$f":"'QV-1 Density Worksheet'!V23","v":""},null,{"$f":"IFERROR('QV-1 Density Worksheet'!AD23,\"\")","v":""},"",{"$f":"IFERROR(AA38,\"\")","v":""},null,"",null,"",null,{"$f":"IFERROR(O38-M38,\"\")","v":""},null,{"$f":"IFERROR(M38+$U$41,\"\")","v":""},null,{"$f":"IFERROR(O38-S38,\"\")","v":""},null,"",{"$f":"IF('Core Data'!$AC$5=1,'Core Data'!D22,'Core Data'!L22)","v":0},{"$f":"IF('Core Data'!$AC$5=1,'Core Data'!E22,'Core Data'!M22)","v":0},{"$f":"IF('Core Data'!$AC$5=1,'Core Data'!F22,'Core Data'!N22)","v":0},{"$f":"IF('Core Data'!$AC$5=1,'Core Data'!G22,'Core Data'!O22)","v":""},{"$f":"IF('Core Data'!AC22=TRUE,\"Removed\",\"\")","v":""},null,{"$f":"IF('Core Data'!AC22=TRUE,1,\"\")","v":""},null,"OFFSET including removed cores",null,null,null,"","","","",{"$f":"IFERROR(AK38+$AF$41,\"\")","v":""},""]
[{"$f":"'Core Data'!A23","v":""},{"$f":"'QV-1 Density Worksheet'!T24","v":""},null,{"$f":"'QV-1 Density Worksheet'!U24","v":""},"",null,{"$f":"'QV-1 Density Worksheet'!V24","v":""},null,{"$f":"IFERROR('QV-1 Density Worksheet'!AD24,\"\")","v":""},"",{"$f":"IFERROR(AA39,\"\")","v":""},null,"",null,"",null,{"$f":"IFERROR(O39-M39,\"\")","v":""},null,{"$f":"IFERROR(M39+$U$41,\"\")","v":""},null,{"$f":"IFERROR(O39-S39,\"\")","v":""},null,"",{"$f":"IF('Core Data'!$AC$5=1,'Core Data'!D23,'Core Data'!L23)","v":0},{"$f":"IF('Core Data'!$AC$5=1,'Core Data'!E23,'Core Data'!M23)","v":0},{"$f":"IF('Core Data'!$AC$5=1,'Core Data'!F23,'Core Data'!N23)","v":0},{"$f":"IF('Core Data'!$AC$5=1,'Core Data'!G23,'Core Data'!O23)","v":""},{"$f":"IF('Core Data'!AC23=TRUE,\"Removed\",\"\")","v":""},null,{"$f":"IF('Core Data'!AC23=TRUE,1,\"\")","v":""},null,null,null,null,null,"","","","",{"$f":"IFERROR(AK39+$AF$41,\"\")","v":""},""]
[]
[null,null,null,null,null,null,null,null,null,null,null,null,null,null,null,null,null,null,"OFFSET",null,{"$f":"IFERROR(AVERAGE(Q25:Q29,Q35:Q39),\"\")","v":""},null,null,null,null,null,null,null,null,null,null,{"$f":"IFERROR(AVERAGE(AM25:AM29,AM35:AM39),\"\")","v":""}]
[null,null,null,null,null,null,null,null,null,null,null,null,null,null,null,null,null,null,null,null,null,null,null,null,null,null,"Nuclear / Core Correlation Worksheet     "]
[null,null,null,null,null,null,null,null,null,null,null,null,null,null,"Gauge",null,"Cores"]
[null,null,null,null,null,null,null,null,"page 1",null,null,null,"RANGE",null,{"$f":"O46-O47","v":0},"%",{"$f":"Q46-Q47","v":0},"%",null,null,"page 2",null,null,null,null,null,null,"page 3"]
[]
[null,null,null,null,null,null,null,null,null,null,null,null,"Max",null,{"$f":"MAX(M25:M29,M35:M39)","v":0},null,{"$f":"MAX(O25:O29,O35:O39)","v":0}]
[null,null,null,null,null,null,null,null,null,null,null,null,"Min",null,{"$f":"MIN(M25:M29,M35:M39)","v":0},null,{"$f":"MIN(O25:O29,O35:O39)","v":0}]

{"sheet":"QV-2 Correlation","index":16,"n_rows":47,"n_cols":41,"rows_kept":47,"cut":false,"hidden":false,"merged":[[6,23,6,24],[7,23,7,27],[9,26,9,27],[8,2,8,4],[0,3,4,8],[0,12,0,14],[0,19,0,20],[0,23,0,24],[3,23,3,24],[4,23,4,24],[5,23,5,24],[8,23,8,24],[6,3,6,8],[8,7,8,8],[1,23,1,24],[9,23,9,24],[1,31,2,31],[1,33,2,33],[2,23,2,24],[14,2,14,4],[14,7,14,8],[9,2,9,4],[11,7,11,8],[13,2,13,4],[13,7,13,8],[10,2,10,4],[12,7,12,8],[10,26,10,27],[11,2,11,4],[12,2,12,4],[9,7,9,8],[10,7,10,8],[22,35,22,40],[37,31,39,33],[40,31,40,33],[15,2,15,8],[31,4,31,6],[40,18,40,19],[17,2,17,4],[21,4,21,6],[21,18,21,19],[18,2,18,4]]}
[null,null,null,"Wisconsin Department \nof Transportation ",null,null,null,null,null,null,"Date:",null,{"$f":"IF(C9=\"\",\"\",C9)","v":""},null,null,null,null,null,"Gauge No.:",{"$f":"IF(C19=\"\",\"\",C19)","v":""},null,null,"Date:",{"$f":"IF(C9=\"\",\"\",C9)","v":""},null,null,"Layer:",{"$f":"IF('Project Info & Instructions'!G16=\"\",\"\",'Project Info & Instructions'!G16)","v":""}]
[null,null,null,null,null,null,null,null,null,null,null,null,null,null,null,null,null,null,"Nuclear / Core Correlation Worksheet     ",null,null,null,"Contract:",{"$f":"IF(C10=\"\",\"\",C10)","v":""},null,null,"Layer Thickness:",{"$f":"H13","v":""},null,null,null,"Ave Nuclear",null,"Core Density"]
[null,null,null,null,null,null,null,null,null,null,null,null,null,null,null,null,null,null,null,null,null,null,"Job No.:","",null,null,"Gmm:",{"$f":"H14","v":""}]
[null,null,null,null,null,null,null,null,null,null,null,null,null,null,null,null,null,null,null,null,null,null,"Route:","",null,null,null,null,null,null,null,{"$f":"IF(M25=\"\",#N/A,M25)","v":{"$error":"#N/A"}},null,{"$f":"IF(O25=\"\",#N/A,O25)","v":{"$error":"#N/A"}}]
[null,null,null,null,null,null,null,null,null,null,null,null,null,null,null,null,null,null,null,null,null,null,"Underlying Material:","",null,null,null,null,null,null,null,{"$f":"IF(M26=\"\",#N/A,M26)","v":{"$error":"#N/A"}},null,{"$f":"IF(O26=\"\",#N/A,O26)","v":{"$error":"#N/A"}}]
[null,{"$f":"'Project Info & Instructions'!A6","v":"Revised 04-08-22"},null,null,null,null,null,null,null,null,null,null,null,null,null,null,null,null,null,null,null,null,"WisDOT Mix No.:","",null,null,null,null,null,null,null,{"$error":"#N/A"},null,{"$error":"#N/A"}]
[null,null,null,"Nuclear / Core Correlation Worksheet",null,null,null,null,null,null,null,null,null,null,null,null,null,null,null,null,null,null,"Mix Type:","--",null,null,"Core Diameter:",{"$f":"H15","v":6},null,null,null,{"$f":"IF(M28=\"\",#N/A,M28)","v":{"$error":"#N/A"}},null,{"$error":"#N/A"}]
[null,null,null,null,null,null,null,null,null,null,null,null,null,null,null,null,null,null,null,null,null,null,"Test Strip Type:",{"$f":"'Project Info & Instructions'!O10","v":"Combined Density and Volumetrics Test Strip"},null,null,null,null,null,null,null,{"$error":"#N/A"},null,{"$error":"#N/A"}]
[null,"Date:",{"$f":"IF('Project Info & Instructions'!C10=\"\",\"\",'Project Info & Instructions'!C10)","v":""},null,null,null,"Test Strip #:",{"$f":"IF('Project Info & Instructions'!C11=\"\",\"\",'Project Info & Instructions'!C11)","v":""},null,null,null,null,null,null,null,null,null,null,null,null,null,null,"NUCDENSITYTEC:",{"$f":"IF('QV-2 Density Worksheet'!I6=\"\",\"\",'QV-2 Density Worksheet'!I6)","v":""},null,null,null,null,null,null,null,{"$f":"IF(M35=\"\",#N/A,M35)","v":{"$error":"#N/A"}},null,{"$f":"IF(O35=\"\",#N/A,O35)","v":{"$error":"#N/A"}}]
[null,"Contract:",{"$f":"IF('Project Info & Instructions'!C12=\"\",\"\",'Project Info & Instructions'!C12)","v":""},null,null,null,"Layer:",{"$f":"IF('Project Info & Instructions'!G16=\"\",\"\",'Project Info & Instructions'!G16)","v":""},null,null,null,null,null,null,null,null,null,null,null,null,null,null,"Gauge No.:",{"$f":"IF('QV-2 Density Worksheet'!M4=\"\",\"\",'QV-2 Density Worksheet'!M4)","v":""},null,null,"Spread of Cores (%)",null,null,null,null,{"$f":"IF(M36=\"\",#N/A,M36)","v":{"$error":"#N/A"}},null,{"$f":"IF(O36=\"\",#N/A,O36)","v":{"$error":"#N/A"}}]
[null,"Job No.:",{"$f":"IF('Project Info & Instructions'!C13=\"\",\"\",'Project Info & Instructions'!C13)","v":""},null,null,null,"Mixture Type:",{"$f":"IF('Project Info & Instructions'!C21=\"\",\"\",'Project Info & Instructions'!C21)","v":"--"},null,null,null,null,null,null,null,null,null,null,null,null,null,null,null,null,null,null,{"$f":"IF(Q44>0,Q44,\"\")","v":""},null,null,null,null,{"$error":"#N/A"},null,{"$error":"#N/A"}]
[null,"Route:",{"$f":"IF('Project Info & Instructions'!C14=\"\",\"\",'Project Info & Instructions'!C14)","v":""},null,null,null,null,null,null,null,null,null,null,null,null,null,null,null,null,null,null,null,null,null,null,null,null,null,null,null,null,{"$error":"#N/A"},null,{"$error":"#N/A"}]
[null,"Underlying Matl.:",{"$f":"IF('Project Info & Instructions'!G17=\"\",\"\",'Project Info & Instructions'!G17)","v":""},null,null,null,"Layer Thickness:",{"$f":"IF('Project Info & Instructions'!G12=\"\",\"\",'Project Info & Instructions'!G12)","v":""},null,null,null,null,null,null,null,null,null,null,null,null,null,null,"SN","Gauge ID","Offset","R-squared","Spread (%)",null,null,null,null,{"$error":"#N/A"},null,{"$error":"#N/A"}]
[null,"WisDOT Mix No.:",{"$f":"IF('Project Info & Instructions'!C16=\"\",\"\",'Project Info & Instructions'!C16)","v":""},null,null,null,"Gmm:",{"$f":"IF('Project Info & Instructions'!O9=2,'Core Data'!I1,'Air Voids Pay Factor'!D11)","v":""},null,null,null,null,null,null,null,null,null,null,null,null,null,null,{"$f":"IF('QC-1 Correlation'!C19=\"\",\"\",'QC-1 Correlation'!C19)","v":""},"QC-1",{"$f":"IF('QC-1 Correlation'!U41=\"\",\"\",'QC-1 Correlation'!U41)","v":""},{"$f":"IF('QC-1 Correlation'!U22=\"\",\"\",'QC-1 Correlation'!U22)","v":""},{"$f":"IF('QC-1 Correlation'!O44=\"\",\"\",'QC-1 Correlation'!O44)","v":0}]
[null,"Mix Type:",{"$f":"IF('Project Info & Instructions'!C21=\"\",\"\",'Project Info & Instructions'!C21)","v":"--"},null,null,null,"Core Diameter:",6,null,null,null,null,null,null,null,null,null,null,null,null,null,null,{"$f":"IF('QC-2 Correlation'!C19=\"\",\"\",'QC-2 Correlation'!C19)","v":""},"QC-2",{"$f":"IF('QC-2 Correlation'!U41=\"\",\"\",'QC-2 Correlation'!U41)","v":""},{"$f":"IF('QC-2 Correlation'!U22=\"\",\"\",'QC-2 Correlation'!U22)","v":""},{"$f":"IF('QC-2 Correlation'!O44=\"\",\"\",'QC-2 Correlation'!O44)","v":0},null,null,null,null,{"$f":"IF(ISNUMBER(AF4),AF4,\"\")","v":""},null,{"$f":"IF(ISNUMBER(AH4),AH4,\"\")","v":""}]
[null,"Test Strip Type:",{"$f":"'Project Info & Instructions'!O10","v":"Combined Density and Volumetrics Test Strip"},null,null,null,null,null,null,null,null,null,null,null,null,null,null,null,null,null,null,null,{"$f":"IF('QV-1 Correlation'!C19=\"\",\"\",'QV-1 Correlation'!C19)","v":""},"QV-1",{"$f":"IF('QV-1 Correlation'!U41=\"\",\"\",'QV-1 Correlation'!U41)","v":""},{"$f":"IF('QV-1 Correlation'!U22=\"\",\"\",'QV-1 Correlation'!U22)","v":""},{"$f":"IF('QV-1 Correlation'!O44=\"\",\"\",'QV-1 Correlation'!O44)","v":0},null,null,null,null,{"$f":"IF(ISNUMBER(AF5),AF5,\"\")","v":""},null,""]
[null,null,null,null,null,null,null,null,null,null,null,null,null,null,null,null,null,null,null,null,null,null,{"$f":"IF('QV-2 Correlation'!C19=\"\",\"\",'QV-2 Correlation'!C19)","v":""},"QV-2",{"$f":"IF('QV-2 Correlation'!U41=\"\",\"\",'QV-2 Correlation'!U41)","v":""},{"$f":"IF('QV-2 Correlation'!U22=\"\",\"\",'QV-2 Correlation'!U22)","v":""},{"$f":"IF('QV-2 Correlation'!O44=\"\",\"\",'QV-2 Correlation'!O44)","v":0},null,null,null,null,"",null,""]
[null,"NUCDENSITYTEC:",{"$f":"IF('QV-2 Density Worksheet'!I6=\"\",\"\",'QV-2 Density Worksheet'!I6)","v":""},null,null,null,null,null,null,null,null,null,null,null,null,null,null,null,null,null,null,null,null,null,null,null,null,null,null,null,null,"",null,""]
[null,"Gauge No.:",{"$f":"IF('QV-2 Density Worksheet'!M4=\"\",\"\",'QV-2 Density Worksheet'!M4)","v":""},null,null,null,null,null,null,null,null,null,null,null,null,null,null,null,null,null,null,null,null,null,null,null,null,null,null,null,null,"",null,""]
[null,null,null,null,null,null,null,null,null,null,null,null,null,null,null,null,null,null,null,null,null,null,null,null,null,null,null,null,null,null,null,"",null,""]
[null,"ZONE 1",null,null,null,null,null,null,null,null,null,null,null,null,null,null,null,null,null,null,null,null,null,null,null,null,null,null,null,null,null,"",null,""]
[null,"Station (@ center of Zone):",null,null,{"$f":"IF('QC-1 Density Worksheet'!B16=\"\",\"\",'QC-1 Density Worksheet'!B16)","v":0},null,null,null,null,null,null,null,"CALCULATIONS",null,null,null,null,null,"R-Squared",null,{"$f":"IFERROR(RSQ(AF15:AF24,AH15:AH24),\"\")","v":""},null,null,null,"Core Density Calculations",null,null,null,null,null,null,"",null,""]
[null,null,null,null,null,null,null,null,null,null,null,null,null,null,null,null,null,null,null,null,null,null,null,null,null,"Core Data Used:",{"$f":"IF('Core Data'!$AC$5=1,\"QC\",\"QV\")","v":"QC"},null,null,null,null,"",null,"",null,"All Values including removed cores"]
[null,"Reading 1\n(pcf)",null,"Reading 2\n(pcf)","Difference\n(pcf)",null,"Reading 3*            \n(pcf)",null,"Ave Nuclear\n(pcf)",null,"Core Gmb",null,"Ave Nuclear\n(%)",null,"Core Density (%)",null,"Difference\n(%)",null,"Adjusted Nuc. (%)",null,"Adj. Diff. (%)",null,null,"Dry weight","SSD","Submerged","Core Density",null,null,"Check for Removed Cores",null,"",null,"",null,"Core Density","Ave Nuclear","Core Density","Difference","Adjusted Nuc.","Adj. Diff."]
[{"$f":"'Core Data'!A11","v":""},{"$f":"'QV-2 Density Worksheet'!T14","v":""},null,{"$f":"'QV-2 Density Worksheet'!U14","v":""},{"$f":"IFERROR(ROUND(ABS(B25-D25),1),\"\")","v":""},null,{"$f":"'QV-2 Density Worksheet'!V14","v":""},null,{"$f":"IFERROR('QV-2 Density Worksheet'!AD14,\"\")","v":""},{"$f":"A25","v":""},{"$f":"IFERROR(AA25,\"\")","v":""},null,{"$f":"IF(AD25=1,\"\",IFERROR(ROUND(I25/ROUND($H$14*62.24,1)*100,1),\"\"))","v":""},null,{"$f":"IF(AD25=1,\"\",IFERROR(K25/$H$14*100,\"\"))","v":""},null,{"$f":"IFERROR(O25-M25,\"\")","v":""},null,{"$f":"IFERROR(M25+$U$41,\"\")","v":""},null,{"$f":"IFERROR(O25-S25,\"\")","v":""},null,{"$f":"A25","v":""},{"$f":"IF('Core Data'!$AC$5=1,'Core Data'!D11,'Core Data'!L11)","v":0},{"$f":"IF('Core Data'!$AC$5=1,'Core Data'!E11,'Core Data'!M11)","v":0},{"$f":"IF('Core Data'!$AC$5=1,'Core Data'!F11,'Core Data'!N11)","v":0},{"$f":"IF('Core Data'!$AC$5=1,'Core Data'!G11,'Core Data'!O11)","v":""},{"$f":"IF('Core Data'!AC11=TRUE,\"Removed\",\"\")","v":""},null,{"$f":"IF('Core Data'!AC11=TRUE,1,\"\")","v":""},null,null,null,null,null,{"$f":"IFERROR(AA25,\"\")","v":""},{"$f":"IFERROR(ROUND(I25/ROUND($H$14*62.24,1)*100,1),\"\")","v":""},{"$f":"IFERROR(AA25/$H$14*100,\"\")","v":""},{"$f":"IFERROR(AL25-AK25,\"\")","v":""},{"$f":"IFERROR(AK25+$AF$41,\"\")","v":""},{"$f":"IFERROR(AL25-AN25,\"\")","v":""}]
[{"$f":"'Core Data'!A12","v":""},{"$f":"'QV-2 Density Worksheet'!T15","v":""},null,{"$f":"'QV-2 Density Worksheet'!U15","v":""},{"$f":"IFERROR(ROUND(ABS(B26-D26),1),\"\")","v":""},null,{"$f":"'QV-2 Density Worksheet'!V15","v":""},null,{"$f":"IFERROR('QV-2 Density Worksheet'!AD15,\"\")","v":""},{"$f":"A26","v":""},{"$f":"IFERROR(AA26,\"\")","v":""},null,{"$f":"IF(AD26=1,\"\",IFERROR(ROUND(I26/ROUND($H$14*62.24,1)*100,1),\"\"))","v":""},null,{"$f":"IF(AD26=1,\"\",IFERROR(K26/$H$14*100,\"\"))","v":""},null,{"$f":"IFERROR(O26-M26,\"\")","v":""},null,{"$f":"IFERROR(M26+$U$41,\"\")","v":""},null,{"$f":"IFERROR(O26-S26,\"\")","v":""},null,{"$f":"A26","v":""},{"$f":"IF('Core Data'!$AC$5=1,'Core Data'!D12,'Core Data'!L12)","v":0},{"$f":"IF('Core Data'!$AC$5=1,'Core Data'!E12,'Core Data'!M12)","v":0},{"$f":"IF('Core Data'!$AC$5=1,'Core Data'!F12,'Core Data'!N12)","v":0},{"$f":"IF('Core Data'!$AC$5=1,'Core Data'!G12,'Core Data'!O12)","v":""},{"$f":"IF('Core Data'!AC12=TRUE,\"Removed\",\"\")","v":""},null,{"$f":"IF('Core Data'!AC12=TRUE,1,\"\")","v":""},null,null,null,null,null,{"$f":"IFERROR(AA26,\"\")","v":""},{"$f":"IFERROR(ROUND(I26/ROUND($H$14*62.24,1)*100,1),\"\")","v":""},{"$f":"IFERROR(AA26/$H$14*100,\"\")","v":""},{"$f":"IFERROR(AL26-AK26,\"\")","v":""},{"$f":"IFERROR(AK26+$AF$41,\"\")","v":""},{"$f":"IFERROR(AL26-AN26,\"\")","v":""}]
[{"$f":"'Core Data'!A13","v":""},{"$f":"'QV-2 Density Worksheet'!T16","v":""},null,{"$f":"'QV-2 Density Worksheet'!U16","v":""},"",null,{"$f":"'QV-2 Density Worksheet'!V16","v":""},null,{"$f":"IFERROR('QV-2 Density Worksheet'!AD16,\"\")","v":""},"",{"$f":"IFERROR(AA27,\"\")","v":""},null,"",null,"",null,{"$f":"IFERROR(O27-M27,\"\")","v":""},null,{"$f":"IFERROR(M27+$U$41,\"\")","v":""},null,{"$f":"IFERROR(O27-S27,\"\")","v":""},null,"",{"$f":"IF('Core Data'!$AC$5=1,'Core Data'!D13,'Core Data'!L13)","v":0},{"$f":"IF('Core Data'!$AC$5=1,'Core Data'!E13,'Core Data'!M13)","v":0},{"$f":"IF('Core Data'!$AC$5=1,'Core Data'!F13,'Core Data'!N13)","v":0},{"$f":"IF('Core Data'!$AC$5=1,'Core Data'!G13,'Core Data'!O13)","v":""},{"$f":"IF('Core Data'!AC13=TRUE,\"Removed\",\"\")","v":""},null,{"$f":"IF('Core Data'!AC13=TRUE,1,\"\")","v":""},null,null,null,null,null,"","","","",{"$f":"IFERROR(AK27+$AF$41,\"\")","v":""},""]
[{"$f":"'Core Data'!A14","v":""},{"$f":"'QV-2 Density Worksheet'!T17","v":""},null,{"$f":"'QV-2 Density Worksheet'!U17","v":""},"",null,{"$f":"'QV-2 Density Worksheet'!V17","v":""},null,{"$f":"IFERROR('QV-2 Density Worksheet'!AD17,\"\")","v":""},"",{"$f":"IFERROR(AA28,\"\")","v":""},null,"",null,"",null,{"$f":"IFERROR(O28-M28,\"\")","v":""},null,{"$f":"IFERROR(M28+$U$41,\"\")","v":""},null,{"$f":"IFERROR(O28-S28,\"\")","v":""},null,"",{"$f":"IF('Core Data'!$AC$5=1,'Core Data'!D14,'Core Data'!L14)","v":0},{"$f":"IF('Core Data'!$AC$5=1,'Core Data'!E14,'Core Data'!M14)","v":0},{"$f":"IF('Core Data'!$AC$5=1,'Core Data'!F14,'Core Data'!N14)","v":0},{"$f":"IF('Core Data'!$AC$5=1,'Core Data'!G14,'Core Data'!O14)","v":""},{"$f":"IF('Core Data'!AC14=TRUE,\"Removed\",\"\")","v":""},null,{"$f":"IF('Core Data'!AC14=TRUE,1,\"\")","v":""},null,null,null,null,null,"","","","",{"$f":"IFERROR(AK28+$AF$41,\"\")","v":""},""]
[{"$f":"'Core Data'!A15","v":""},{"$f":"'QV-2 Density Worksheet'!T18","v":""},null,{"$f":"'QV-2 Density Worksheet'!U18","v":""},"",null,{"$f":"'QV-2 Density Worksheet'!V18","v":""},null,{"$f":"IFERROR('QV-2 Density Worksheet'!AD18,\"\")","v":""},"",{"$f":"IFERROR(AA29,\"\")","v":""},null,"",null,"",null,{"$f":"IFERROR(O29-M29,\"\")","v":""},null,{"$f":"IFERROR(M29+$U$41,\"\")","v":""},null,{"$f":"IFERROR(O29-S29,\"\")","v":""},null,"",{"$f":"IF('Core Data'!$AC$5=1,'Core Data'!D15,'Core Data'!L15)","v":0},{"$f":"IF('Core Data'!$AC$5=1,'Core Data'!E15,'Core Data'!M15)","v":0},{"$f":"IF('Core Data'!$AC$5=1,'Core Data'!F15,'Core Data'!N15)","v":0},{"$f":"IF('Core Data'!$AC$5=1,'Core Data'!G15,'Core Data'!O15)","v":""},{"$f":"IF('Core Data'!AC15=TRUE,\"Removed\",\"\")","v":""},null,{"$f":"IF('Core Data'!AC15=TRUE,1,\"\")","v":""},null,null,null,null,null,"","","","",{"$f":"IFERROR(AK29+$AF$41,\"\")","v":""},""]
[]
[null,"ZONE 2"]
[null,"Station (@ center of Zone):",null,null,{"$f":"IF('QC-1 Density Worksheet'!B22=\"\",\"\",'QC-1 Density Worksheet'!B22)","v":0}]
[]
[null,"Reading 1\n(pcf)",null,"Reading 2\n(pcf)","Difference\n(pcf)",null,"Reading 3*            \n(pcf)",null,"Ave Nuclear\n(pcf)",null,"Core Gmb",null,"Ave Nuclear\n(%)",null,"Core Density (%)",null,"Difference\n(%)",null,"Adjusted Nuc. (%)",null,"Adj. Diff. (%)",null,null,"Dry weight","SSD","Submerged","Core Density",null,null,null,null,null,null,null,null,"Core Density","Ave Nuclear","Core Density","Difference","Adjusted Nuc.","Adj. Diff."]
[{"$f":"'Core Data'!A19","v":""},{"$f":"'QV-2 Density Worksheet'!T20","v":""},null,{"$f":"'QV-2 Density Worksheet'!U20","v":""},{"$f":"IFERROR(ROUND(ABS(B35-D35),1),\"\")","v":""},null,{"$f":"'QV-2 Density Worksheet'!V20","v":""},null,{"$f":"IFERROR('QV-2 Density Worksheet'!AD20,\"\")","v":""},"",{"$f":"IFERROR(AA35,\"\")","v":""},null,{"$f":"IF(AD35=1,\"\",IFERROR(ROUND(I35/ROUND($H$14*62.24,1)*100,1),\"\"))","v":""},null,{"$f":"IF(AD35=1,\"\",IFERROR(K35/$H$14*100,\"\"))","v":""},null,{"$f":"IFERROR(O35-M35,\"\")","v":""},null,{"$f":"IFERROR(M35+$U$41,\"\")","v":""},null,{"$f":"IFERROR(O35-S35,\"\")","v":""},null,{"$f":"A35","v":""},{"$f":"IF('Core Data'!$AC$5=1,'Core Data'!D19,'Core Data'!L19)","v":0},{"$f":"IF('Core Data'!$AC$5=1,'Core Data'!E19,'Core Data'!M19)","v":0},{"$f":"IF('Core Data'!$AC$5=1,'Core Data'!F19,'Core Data'!N19)","v":0},{"$f":"IF('Core Data'!$AC$5=1,'Core Data'!G19,'Core Data'!O19)","v":""},{"$f":"IF('Core Data'!AC19=TRUE,\"Removed\",\"\")","v":""},null,{"$f":"IF('Core Data'!AC19=TRUE,1,\"\")","v":""},null,null,null,null,null,"",{"$f":"IFERROR(ROUND(I35/ROUND($H$14*62.24,1)*100,1),\"\")","v":""},{"$f":"IFERROR(AA35/$H$14*100,\"\")","v":""},{"$f":"IFERROR(AL35-AK35,\"\")","v":""},{"$f":"IFERROR(AK35+$AF$41,\"\")","v":""},{"$f":"IFERROR(AL35-AN35,\"\")","v":""}]
[{"$f":"'Core Data'!A20","v":""},{"$f":"'QV-2 Density Worksheet'!T21","v":""},null,{"$f":"'QV-2 Density Worksheet'!U21","v":""},{"$f":"IFERROR(ROUND(ABS(B36-D36),1),\"\")","v":""},null,{"$f":"'QV-2 Density Worksheet'!V21","v":""},null,{"$f":"IFERROR('QV-2 Density Worksheet'!AD21,\"\")","v":""},"",{"$f":"IFERROR(AA36,\"\")","v":""},null,"",null,{"$f":"IF(AD36=1,\"\",IFERROR(K36/$H$14*100,\"\"))","v":""},null,{"$f":"IFERROR(O36-M36,\"\")","v":""},null,{"$f":"IFERROR(M36+$U$41,\"\")","v":""},null,{"$f":"IFERROR(O36-S36,\"\")","v":""},null,{"$f":"A36","v":""},{"$f":"IF('Core Data'!$AC$5=1,'Core Data'!D20,'Core Data'!L20)","v":0},{"$f":"IF('Core Data'!$AC$5=1,'Core Data'!E20,'Core Data'!M20)","v":0},{"$f":"IF('Core Data'!$AC$5=1,'Core Data'!F20,'Core Data'!N20)","v":0},{"$f":"IF('Core Data'!$AC$5=1,'Core Data'!G20,'Core Data'!O20)","v":""},{"$f":"IF('Core Data'!AC20=TRUE,\"Removed\",\"\")","v":""},null,{"$f":"IF('Core Data'!AC20=TRUE,1,\"\")","v":""},null,null,null,null,null,"",{"$f":"IFERROR(ROUND(I36/ROUND($H$14*62.24,1)*100,1),\"\")","v":""},{"$f":"IFERROR(AA36/$H$14*100,\"\")","v":""},{"$f":"IFERROR(AL36-AK36,\"\")","v":""},{"$f":"IFERROR(AK36+$AF$41,\"\")","v":""},{"$f":"IFERROR(AL36-AN36,\"\")","v":""}]
[{"$f":"'Core Data'!A21","v":""},{"$f":"'QV-2 Density Worksheet'!T22","v":""},null,{"$f":"'QV-2 Density Worksheet'!U22","v":""},"",null,{"$f":"'QV-2 Density Worksheet'!V22","v":""},null,{"$f":"IFERROR('QV-2 Density Worksheet'!AD22,\"\")","v":""},"",{"$f":"IFERROR(AA37,\"\")","v":""},null,"",null,"",null,{"$f":"IFERROR(O37-M37,\"\")","v":""},null,{"$f":"IFERROR(M37+$U$41,\"\")","v":""},null,{"$f":"IFERROR(O37-S37,\"\")","v":""},null,"",{"$f":"IF('Core Data'!$AC$5=1,'Core Data'!D21,'Core Data'!L21)","v":0},{"$f":"IF('Core Data'!$AC$5=1,'Core Data'!E21,'Core Data'!M21)","v":0},{"$f":"IF('Core Data'!$AC$5=1,'Core Data'!F21,'Core Data'!N21)","v":0},{"$f":"IF('Core Data'!$AC$5=1,'Core Data'!G21,'Core Data'!O21)","v":""},{"$f":"IF('Core Data'!AC21=TRUE,\"Removed\",\"\")","v":""},null,{"$f":"IF('Core Data'!AC21=TRUE,1,\"\")","v":""},null,null,null,null,null,"","","","",{"$f":"IFERROR(AK37+$AF$41,\"\")","v":""},""]
[{"$f":"'Core Data'!A22","v":""},{"$f":"'QV-2 Density Worksheet'!T23","v":""},null,{"$f":"'QV-2 Density Worksheet'!U23","v":""},"",null,{"$f":"'QV-2 Density Worksheet'!V23","v":""},null,{"$f":"IFERROR('QV-2 Density Worksheet'!AD23,\"\")","v":""},"",{"$f":"IFERROR(AA38,\"\")","v":""},null,"",null,"",null,{"$f":"IFERROR(O38-M38,\"\")","v":""},null,{"$f":"IFERROR(M38+$U$41,\"\")","v":""},null,{"$f":"IFERROR(O38-S38,\"\")","v":""},null,"",{"$f":"IF('Core Data'!$AC$5=1,'Core Data'!D22,'Core Data'!L22)","v":0},{"$f":"IF('Core Data'!$AC$5=1,'Core Data'!E22,'Core Data'!M22)","v":0},{"$f":"IF('Core Data'!$AC$5=1,'Core Data'!F22,'Core Data'!N22)","v":0},{"$f":"IF('Core Data'!$AC$5=1,'Core Data'!G22,'Core Data'!O22)","v":""},{"$f":"IF('Core Data'!AC22=TRUE,\"Removed\",\"\")","v":""},null,{"$f":"IF('Core Data'!AC22=TRUE,1,\"\")","v":""},null,"OFFSET including removed cores",null,null,null,"","","","",{"$f":"IFERROR(AK38+$AF$41,\"\")","v":""},""]
[{"$f":"'Core Data'!A23","v":""},{"$f":"'QV-2 Density Worksheet'!T24","v":""},null,{"$f":"'QV-2 Density Worksheet'!U24","v":""},"",null,{"$f":"'QV-2 Density Worksheet'!V24","v":""},null,{"$f":"IFERROR('QV-2 Density Worksheet'!AD24,\"\")","v":""},"",{"$f":"IFERROR(AA39,\"\")","v":""},null,"",null,"",null,{"$f":"IFERROR(O39-M39,\"\")","v":""},null,{"$f":"IFERROR(M39+$U$41,\"\")","v":""},null,{"$f":"IFERROR(O39-S39,\"\")","v":""},null,"",{"$f":"IF('Core Data'!$AC$5=1,'Core Data'!D23,'Core Data'!L23)","v":0},{"$f":"IF('Core Data'!$AC$5=1,'Core Data'!E23,'Core Data'!M23)","v":0},{"$f":"IF('Core Data'!$AC$5=1,'Core Data'!F23,'Core Data'!N23)","v":0},{"$f":"IF('Core Data'!$AC$5=1,'Core Data'!G23,'Core Data'!O23)","v":""},{"$f":"IF('Core Data'!AC23=TRUE,\"Removed\",\"\")","v":""},null,{"$f":"IF('Core Data'!AC23=TRUE,1,\"\")","v":""},null,null,null,null,null,"","","","",{"$f":"IFERROR(AK39+$AF$41,\"\")","v":""},""]
[]
[null,null,null,null,null,null,null,null,null,null,null,null,null,null,null,null,null,null,"OFFSET",null,{"$f":"IFERROR(AVERAGE(Q25:Q29,Q35:Q39),\"\")","v":""},null,null,null,null,null,null,null,null,null,null,{"$f":"IFERROR(AVERAGE(AM25:AM29,AM35:AM39),\"\")","v":""}]
[null,null,null,null,null,null,null,null,null,null,null,null,null,null,null,null,null,null,null,null,null,null,null,null,null,null,"Nuclear / Core Correlation Worksheet     "]
[null,null,null,null,null,null,null,null,null,null,null,null,null,null,"Gauge",null,"Cores"]
[null,null,null,null,null,null,null,null,"page 1",null,null,null,"RANGE",null,{"$f":"O46-O47","v":0},"%",{"$f":"Q46-Q47","v":0},"%",null,null,"page 2",null,null,null,null,null,null,"page 3"]
[]
[null,null,null,null,null,null,null,null,null,null,null,null,"Max",null,{"$f":"MAX(M25:M29,M35:M39)","v":0},null,{"$f":"MAX(O25:O29,O35:O39)","v":0}]
[null,null,null,null,null,null,null,null,null,null,null,null,"Min",null,{"$f":"MIN(M25:M29,M35:M39)","v":0},null,{"$f":"MIN(O25:O29,O35:O39)","v":0}]

{"sheet":"Data Summary","index":17,"n_rows":21,"n_cols":120,"rows_kept":21,"cut":false,"hidden":true,"merged":[[2,2,4,2],[1,1,5,1],[2,7,4,7],[2,6,4,6],[2,5,4,5],[2,4,4,4],[2,3,4,3],[2,12,4,12],[2,11,4,11],[2,10,4,10],[2,9,4,9],[2,8,4,8],[1,2,1,33],[2,25,4,25],[2,24,4,24],[2,23,4,23],[2,17,4,17],[2,16,4,16],[2,15,4,15],[2,14,4,14],[2,13,4,13],[2,22,4,22],[2,21,4,21],[2,20,4,20],[2,19,4,19],[2,18,4,18],[3,37,4,37],[3,36,4,36],[3,35,4,35],[3,34,4,34],[2,33,4,33],[3,42,4,42],[3,41,4,41],[3,40,4,40],[3,39,4,39],[3,38,4,38],[2,34,2,36],[2,37,2,39],[2,40,2,42],[3,47,4,47],[3,46,4,46],[3,45,4,45],[3,44,4,44],[3,43,4,43],[3,52,4,52],[3,51,4,51],[3,50,4,50],[3,49,4,49],[3,48,4,48],[3,71,4,71],[3,70,4,70],[3,69,4,69],[3,68,4,68],[3,57,4,57],[3,56,4,56],[3,55,4,55],[3,54,4,54],[3,53,4,53],[3,62,4,62],[3,61,4,61],[3,60,4,60],[3,59,4,59],[3,58,4,58],[1,77,1,119],[3,76,4,76],[3,75,4,75],[3,74,4,74],[3,73,4,73],[2,77,2,95],[2,96,2,119],[3,77,3,79],[3,80,3,82],[3,83,3,95],[3,96,3,101],[3,102,3,107],[3,108,3,113],[3,114,3,119],[2,43,2,45],[1,34,1,76],[2,32,4,32],[2,31,4,31],[2,30,4,30],[2,29,4,29],[2,28,4,28],[2,27,4,27],[2,26,4,26],[2,61,2,63],[2,64,2,66],[2,67,2,69],[2,70,2,76],[2,46,2,48],[2,49,2,51],[2,52,2,54],[2,55,2,57],[2,58,2,60],[3,67,4,67],[3,66,4,66],[3,65,4,65],[3,64,4,64],[3,63,4,63],[3,72,4,72],[17,1,20,1],[18,29,18,34],[18,35,18,40],[18,41,18,46],[17,23,17,46],[18,10,18,22],[18,23,18,28],[18,7,18,9],[17,4,17,22],[18,4,18,6],[17,2,17,3],[18,2,19,2],[18,3,19,3],[8,1,9,1],[12,39,12,45],[12,12,12,14],[12,24,12,26],[12,36,12,38],[12,27,12,29],[12,30,12,32],[12,33,12,35],[12,6,12,8],[12,9,12,11],[12,15,12,17],[12,18,12,20],[12,21,12,23],[12,1,14,1],[12,3,12,5],[12,2,13,2]]}
[]
[null,"Database C/P Line","Project Information",null,null,null,null,null,null,null,null,null,null,null,null,null,null,null,null,null,null,null,null,null,null,null,null,null,null,null,null,null,null,null,"Volumetrics",null,null,null,null,null,null,null,null,null,null,null,null,null,null,null,null,null,null,null,null,null,null,null,null,null,null,null,null,null,null,null,null,null,null,null,null,null,null,null,null,null,null,"Mainline Nuclear Density"]
[null,null,"Date:","Test Strip #:","Test Strip Type","Contract:","Job No.-Project ID:","Route-Road:","County:","WisDOT Mix No.:","Mix Gradation:","Mix Traffic Vol:","Asphalt Binder:","Binder Designation:","Mix Type:","Contract Unit Price:","Final Tonnage:","Final Length:","Paving Width(ft):","Lane Width(ft):","Nominal Thickness(in):","Estimated Tonnage:"," Estimated Stations- Start:","End:","Estimated Length(ft):","Test Strip Pavement Layer:","Underlying Layer:","Density Lower Spec Limit(%):","Project Leader:","Contractor:","JMF Gmm:","JMF Gse:"," JMF AC  %: ","JMF AC Sp Gr:","QC Gmm",null,null,"QC Gmb",null,null,"QC Va",null,null,"QC AC%",null,null,"QV Gmm",null,null,"QV Gmb",null,null,"QV Va",null,null,"QV AC%",null,null,"BTS Gmm",null,null,"BTS Gmb",null,null,"BTS Va",null,null,"BTS AC%",null,null,"Air Voids Pay Factor",null,null,null,null,null,null,"Density",null,null,null,null,null,null,null,null,null,null,null,null,null,null,null,null,null,null,"Density Gauge Correlation"]
[null,null,null,null,null,null,null,null,null,null,null,null,null,null,null,null,null,null,null,null,null,null,null,null,null,null,null,null,null,null,null,null,null,null,"AVG ","STEDEV","COV","AVG ","STEDEV","COV","AVG ","STEDEV","COV","AVG ","STEDEV","COV","AVG ","STEDEV","COV","AVG ","STEDEV","COV","AVG ","STEDEV","COV","AVG ","STEDEV","COV","AVG ","STEDEV","COV","AVG ","STEDEV","COV","AVG ","STEDEV","COV","AVG ","STEDEV","COV","Data Set used for Pay","AVG","STDEV","PWLAV","PFAV","Lot Size (Ton)","Air Voids Pay Adjustment","QC Cores",null,null,"QV Cores",null,null,"Density Pay Factor",null,null,null,null,null,null,null,null,null,null,null,null,"QC-1",null,null,null,null,null,"QC-2",null,null,null,null,null,"QV-1",null,null,null,null,null,"QV-2"]
[null,null,null,null,null,null,null,null,null,null,null,null,null,null,null,null,null,null,null,null,null,null,null,null,null,null,null,null,null,null,null,null,null,null,null,null,null,null,null,null,null,null,null,null,null,null,null,null,null,null,null,null,null,null,null,null,null,null,null,null,null,null,null,null,null,null,null,null,null,null,null,null,null,null,null,null,null,"AVG ","STEDEV","COV","AVG ","STEDEV","COV","Gmm Used for Core Density:","Gmm Data Used:","Core Data Used:","Standard Deviation","Mean","Number of Tests in Lot","Quality Index","d2","x","PWLD","PFD","Lot Size (Ton)","Density Pay Adjustment","Gauge Serial #","Core Spread (%)","Gauge Spread (%)","Gauge Comp. Avg.","Gauge Recommendation","Gauge Offset","Gauge Serial #","Core Spread (%)","Gauge Spread (%)","Gauge Comp. Avg.","Gauge Recommendation","Gauge Offset","Gauge Serial #","Core Spread (%)","Gauge Spread (%)","Gauge Comp. Avg.","Gauge Recommendation","Gauge Offset","Gauge Serial #","Core Spread (%)","Gauge Spread (%)","Gauge Comp. Avg.","Gauge Recommendation","Gauge Offset"]
[null,null,{"$f":"IF('Project Info & Instructions'!$C$10=\"\",\"\",'Project Info & Instructions'!$C$10)","v":""},{"$f":"IF('Project Info & Instructions'!$C$11=\"\",\"\",'Project Info & Instructions'!$C$11)","v":""},{"$f":"'Project Info & Instructions'!$O$11","v":"Combined"},{"$f":"IF('Project Info & Instructions'!$C$12=\"\",\"\",'Project Info & Instructions'!$C$12)","v":""},{"$f":"IF('Project Info & Instructions'!$C$13=\"\",\"\",'Project Info & Instructions'!$C$13)","v":""},{"$f":"IF('Project Info & Instructions'!$C$14=\"\",\"\",'Project Info & Instructions'!$C$14)","v":""},{"$f":"IF('Project Info & Instructions'!$C$15=\"\",\"\",'Project Info & Instructions'!$C$15)","v":""},{"$f":"IF('Project Info & Instructions'!$C$16=\"\",\"\",'Project Info & Instructions'!$C$16)","v":""},{"$f":"IF('Project Info & Instructions'!$C$17=\"\",\"\",'Project Info & Instructions'!$C$17)","v":""},{"$f":"IF('Project Info & Instructions'!$C$18=\"\",\"\",'Project Info & Instructions'!$C$18)","v":""},{"$f":"IF('Project Info & Instructions'!$C$19=\"\",\"\",'Project Info & Instructions'!$C$19)","v":""},{"$f":"IF('Project Info & Instructions'!$C$20=\"\",\"\",'Project Info & Instructions'!$C$20)","v":""},{"$f":"IF('Project Info & Instructions'!$C$21=\"--\",\"\",'Project Info & Instructions'!$C$21)","v":""},{"$f":"IF('Project Info & Instructions'!$C$22=\"\",\"\",'Project Info & Instructions'!$C$22)","v":""},{"$f":"IF('Project Info & Instructions'!$C$23=\"\",\"\",'Project Info & Instructions'!$C$23)","v":""},{"$f":"IF('Project Info & Instructions'!$C$24=\"\",\"\",'Project Info & Instructions'!$C$24)","v":""},{"$f":"IF('Project Info & Instructions'!$G$10=\"\",\"\",'Project Info & Instructions'!$G$10)","v":""},{"$f":"IF('Project Info & Instructions'!$G$11=\"\",\"\",'Project Info & Instructions'!$G$11)","v":""},{"$f":"IF('Project Info & Instructions'!$G$12=\"\",\"\",'Project Info & Instructions'!$G$12)","v":""},{"$f":"IF('Project Info & Instructions'!$G$13=\"\",'Project Info & Instructions'!$J$13,'Project Info & Instructions'!$G$13)","v":""},{"$f":"IF('Project Info & Instructions'!$G$14=\"\",\"\",'Project Info & Instructions'!$G$14)","v":""},{"$f":"IF('Project Info & Instructions'!$I$14=\"\",\"\",'Project Info & Instructions'!$I$14)","v":""},{"$f":"IF('Project Info & Instructions'!$G$15=\"\",'Project Info & Instructions'!$J$15,'Project Info & Instructions'!$G$15)","v":""},{"$f":"IF('Project Info & Instructions'!$G$16=\"\",\"\",'Project Info & Instructions'!$G$16)","v":""},{"$f":"IF('Project Info & Instructions'!$G$17=\"\",\"\",'Project Info & Instructions'!$G$17)","v":""},{"$f":"IF('Project Info & Instructions'!$G$18=\"Enter Mix and Layer Info\",\"\",'Project Info & Instructions'!$G$18)","v":""},{"$f":"IF('Project Info & Instructions'!$G$19=\"\",\"\",'Project Info & Instructions'!$G$19)","v":""},{"$f":"IF('Project Info & Instructions'!$G$20=\"\",\"\",'Project Info & Instructions'!$G$20)","v":""},{"$f":"IF('Project Info & Instructions'!$G$21=\"\",\"\",'Project Info & Instructions'!$G$21)","v":""},{"$f":"IF('Project Info & Instructions'!$I$23=\"\",\"\",'Project Info & Instructions'!$I$23)","v":""},{"$f":"IF('Project Info & Instructions'!$G$22=\"\",\"\",'Project Info & Instructions'!$G$22)","v":""},{"$f":"IF('Project Info & Instructions'!$G$23=\"\",\"\",'Project Info & Instructions'!$G$23)","v":""},{"$f":"IFERROR(AVERAGE('Split Sample Comparison'!$D$9:$D$11),\"\")","v":""},{"$f":"IFERROR(_xlfn.STDEV.P('Split Sample Comparison'!$D$9:$D$11),\"\")","v":""},{"$f":"IFERROR(AJ6/AI6,\"\")","v":""},{"$f":"IFERROR(AVERAGE('Split Sample Comparison'!$D$19:$D$21),\"\")","v":""},{"$f":"IFERROR(_xlfn.STDEV.P('Split Sample Comparison'!$D$19:$D$21),\"\")","v":""},{"$f":"IFERROR(AM6/AL6,\"\")","v":""},{"$f":"IFERROR(AVERAGE('Split Sample Comparison'!$N$27:$N$29),\"\")","v":""},{"$f":"IFERROR(_xlfn.STDEV.P('Split Sample Comparison'!$N$27:$N$29),\"\")","v":""},{"$f":"IFERROR(AP6/AO6,\"\")","v":""},{"$f":"IFERROR(AVERAGE('AC % Data'!$D$9:$D$11),\"\")","v":""},{"$f":"IFERROR(_xlfn.STDEV.P('AC % Data'!$D$9:$D$11),\"\")","v":""},{"$f":"IFERROR(AS6/AR6,\"\")","v":""},{"$f":"IFERROR(AVERAGE('Split Sample Comparison'!$E$9:$E$11),\"\")","v":""},{"$f":"IFERROR(_xlfn.STDEV.P('Split Sample Comparison'!$E$9:$E$11),\"\")","v":""},{"$f":"IFERROR(AV6/AU6,\"\")","v":""},{"$f":"IFERROR(AVERAGE('Split Sample Comparison'!$E$19:$E$21),\"\")","v":""},{"$f":"IFERROR(_xlfn.STDEV.P('Split Sample Comparison'!$E$19:$E$21),\"\")","v":""},{"$f":"IFERROR(AY6/AX6,\"\")","v":""},{"$f":"IFERROR(AVERAGE('Split Sample Comparison'!$O$27:$O$29),\"\")","v":""},{"$f":"IFERROR(_xlfn.STDEV.P('Split Sample Comparison'!$O$27:$O$29),\"\")","v":""},{"$f":"IFERROR(BB6/BA6,\"\")","v":""},{"$f":"IFERROR(AVERAGE('AC % Data'!$E$9:$E$11),\"\")","v":""},{"$f":"IFERROR(_xlfn.STDEV.P('AC % Data'!$E$9:$E$11),\"\")","v":""},{"$f":"IFERROR(BE6/BD6,\"\")","v":""},{"$f":"IFERROR(AVERAGE('Split Sample Comparison'!$K$9:$K$11),\"\")","v":""},{"$f":"IFERROR(_xlfn.STDEV.P('Split Sample Comparison'!$K$9:$K$11),\"\")","v":""},{"$f":"IFERROR(BH6/BG6,\"\")","v":""},{"$f":"IFERROR(AVERAGE('Split Sample Comparison'!$K$19:$K$21),\"\")","v":""},{"$f":"IFERROR(_xlfn.STDEV.P('Split Sample Comparison'!$K$19:$K$21),\"\")","v":""},{"$f":"IFERROR(BK6/BJ6,\"\")","v":""},{"$f":"IFERROR(AVERAGE('Split Sample Comparison'!$P$27:$P$29),\"\")","v":""},{"$f":"IFERROR(_xlfn.STDEV.P('Split Sample Comparison'!$P$27:$P$29),\"\")","v":""},{"$f":"IFERROR(BN6/BM6,\"\")","v":""},{"$f":"IFERROR(AVERAGE('AC % Data'!$G$9:$G$11),\"\")","v":""},{"$f":"IFERROR(_xlfn.STDEV.P('AC % Data'!$G$9:$G$11),\"\")","v":""},{"$f":"IFERROR(BQ6/BP6,\"\")","v":""},{"$f":"'Air Voids Pay Factor'!$D$12","v":"QC"},{"$f":"IF('Air Voids Pay Factor'!$H$9=\"\",\"\",'Air Voids Pay Factor'!$H$9)","v":""},{"$f":"IF('Air Voids Pay Factor'!$G$9=\"\",\"\",'Air Voids Pay Factor'!$G$9)","v":""},{"$f":"IF('Air Voids Pay Factor'!$R$9=\"\",\"\",'Air Voids Pay Factor'!$R$9)","v":""},{"$f":"IF('Air Voids Pay Factor'!$S$9=\"\",\"\",'Air Voids Pay Factor'!$S$9)","v":""},{"$f":"IF('Air Voids Pay Factor'!$T$9=\"\",\"\",'Air Voids Pay Factor'!$T$9)","v":""},{"$f":"IF('Air Voids Pay Factor'!$U$9=\"\",\"\",'Air Voids Pay Factor'!$U$9)","v":""},{"$f":"IFERROR(AVERAGE('Core Data'!$H$11:$H$15,'Core Data'!$H$19:$H$23),\"\")","v":""},{"$f":"IFERROR(_xlfn.STDEV.P('Core Data'!$H$11:$H$15,'Core Data'!$H$19:$H$23),\"\")","v":""},{"$f":"IFERROR(CA6/BZ6,\"\")","v":""},{"$f":"IFERROR(AVERAGE('Core Data'!$P$11:$P$15,'Core Data'!$P$19:$P$23),\"\")","v":""},{"$f":"IFERROR(_xlfn.STDEV.P('Core Data'!$P$11:$P$15,'Core Data'!$P$19:$P$23),\"\")","v":""},{"$f":"IFERROR(CD6/CC6,\"\")","v":""},{"$f":"IF('Density Pay Factor'!$D$19=\"\",\"\",'Density Pay Factor'!$D$19)","v":""},{"$f":"'Density Pay Factor'!$D$20","v":"QC"},{"$f":"'Density Pay Factor'!$D$21","v":"QC"},{"$f":"IF('Density Pay Factor'!$E$17=\"\",\"\",'Density Pay Factor'!$E$17)","v":""},{"$f":"IF('Density Pay Factor'!$F$17=\"\",\"\",'Density Pay Factor'!$F$17)","v":""},{"$f":"'Density Pay Factor'!$G$17","v":0},{"$f":"IFERROR('Density Pay Factor'!$H$17,\"\")","v":""},{"$f":"'Density Pay Factor'!$I$17","v":0},{"$f":"IFERROR('Density Pay Factor'!$J$17,\"\")","v":""},{"$f":"'Density Pay Factor'!$K$17","v":""},{"$f":"'Density Pay Factor'!$L$17","v":""},{"$f":"'Density Pay Factor'!$M$17","v":""},{"$f":"'Density Pay Factor'!$N$17","v":""},{"$f":"IF('Test Strip Summary'!$D$40=\"Enter Serial #\",\"\",'Test Strip Summary'!$D$40)","v":""},{"$f":"'Test Strip Summary'!$E$40","v":""},{"$f":"'Test Strip Summary'!$G$40","v":0},{"$f":"'Test Strip Summary'!$H$40","v":""},{"$f":"'Test Strip Summary'!$I$40","v":""},{"$f":"'Test Strip Summary'!$J$40","v":""},{"$f":"IF('Test Strip Summary'!$D$41=\"Enter Serial #\",\"\",'Test Strip Summary'!$D$41)","v":""},{"$f":"'Test Strip Summary'!$E$40","v":""},{"$f":"'Test Strip Summary'!$G$41","v":0},{"$f":"'Test Strip Summary'!$H$41","v":""},{"$f":"'Test Strip Summary'!$I$41","v":""},{"$f":"'Test Strip Summary'!$J$41","v":""},{"$f":"IF('Test Strip Summary'!$D$42=\"Enter Serial #\",\"\",'Test Strip Summary'!$D$42)","v":""},{"$f":"'Test Strip Summary'!$E$40","v":""},{"$f":"'Test Strip Summary'!$G$42","v":0},{"$f":"'Test Strip Summary'!$H$42","v":""},{"$f":"'Test Strip Summary'!$I$42","v":""},{"$f":"'Test Strip Summary'!$J$42","v":""},{"$f":"IF('Test Strip Summary'!$D$43=\"Enter Serial #\",\"\",'Test Strip Summary'!$D$43)","v":""},{"$f":"'Test Strip Summary'!$E$40","v":""},{"$f":"'Test Strip Summary'!$G$43","v":0},{"$f":"'Test Strip Summary'!$H$43","v":""},{"$f":"'Test Strip Summary'!$I$43","v":""},{"$f":"'Test Strip Summary'!$J$43","v":""}]
[]
[]
[null,"Project Information","Date:","Test Strip #:","Test Strip Type","Contract:","Job No.-Project ID:","Route-Road:","County:","WisDOT Mix No.:","Mix Gradation:","Mix Traffic Vol:","Asphalt Binder:","Binder Designation:","Mix Type:","Contract Unit Price:","Final Tonnage:","Final Length:","Paving Width(ft):","Lane Width(ft):","Nominal Thickness(in):","Estimated Tonnage:"," Estimated Stations- Start:","End:","Estimated Length(ft):","Test Strip Pavement Layer:","Underlying Layer:","Density Lower Spec Limit(%):","Project Leader:","Contractor:","JMF Gmm:","JMF Gse:"," JMF AC  %: ","JMF AC Sp Gr:"]
[null,null,{"$f":"IF('Project Info & Instructions'!$C$10=\"\",\"\",'Project Info & Instructions'!$C$10)","v":""},{"$f":"IF('Project Info & Instructions'!$C$11=\"\",\"\",'Project Info & Instructions'!$C$11)","v":""},{"$f":"'Project Info & Instructions'!$O$11","v":"Combined"},{"$f":"IF('Project Info & Instructions'!$C$12=\"\",\"\",'Project Info & Instructions'!$C$12)","v":""},{"$f":"IF('Project Info & Instructions'!$C$13=\"\",\"\",'Project Info & Instructions'!$C$13)","v":""},{"$f":"IF('Project Info & Instructions'!$C$14=\"\",\"\",'Project Info & Instructions'!$C$14)","v":""},{"$f":"IF('Project Info & Instructions'!$C$15=\"\",\"\",'Project Info & Instructions'!$C$15)","v":""},{"$f":"IF('Project Info & Instructions'!$C$16=\"\",\"\",'Project Info & Instructions'!$C$16)","v":""},{"$f":"IF('Project Info & Instructions'!$C$17=\"\",\"\",'Project Info & Instructions'!$C$17)","v":""},{"$f":"IF('Project Info & Instructions'!$C$18=\"\",\"\",'Project Info & Instructions'!$C$18)","v":""},{"$f":"IF('Project Info & Instructions'!$C$19=\"\",\"\",'Project Info & Instructions'!$C$19)","v":""},{"$f":"IF('Project Info & Instructions'!$C$20=\"\",\"\",'Project Info & Instructions'!$C$20)","v":""},{"$f":"IF('Project Info & Instructions'!$C$21=\"--\",\"\",'Project Info & Instructions'!$C$21)","v":""},{"$f":"IF('Project Info & Instructions'!$C$22=\"\",\"\",'Project Info & Instructions'!$C$22)","v":""},{"$f":"IF('Project Info & Instructions'!$C$23=\"\",\"\",'Project Info & Instructions'!$C$23)","v":""},{"$f":"IF('Project Info & Instructions'!$C$24=\"\",\"\",'Project Info & Instructions'!$C$24)","v":""},{"$f":"IF('Project Info & Instructions'!$G$10=\"\",\"\",'Project Info & Instructions'!$G$10)","v":""},{"$f":"IF('Project Info & Instructions'!$G$11=\"\",\"\",'Project Info & Instructions'!$G$11)","v":""},{"$f":"IF('Project Info & Instructions'!$G$12=\"\",\"\",'Project Info & Instructions'!$G$12)","v":""},{"$f":"IF('Project Info & Instructions'!$G$13=\"\",'Project Info & Instructions'!$J$13,'Project Info & Instructions'!$G$13)","v":""},{"$f":"IF('Project Info & Instructions'!$G$14=\"\",\"\",'Project Info & Instructions'!$G$14)","v":""},{"$f":"IF('Project Info & Instructions'!$I$14=\"\",\"\",'Project Info & Instructions'!$I$14)","v":""},{"$f":"IF('Project Info & Instructions'!$G$15=\"\",'Project Info & Instructions'!$J$15,'Project Info & Instructions'!$G$15)","v":""},{"$f":"IF('Project Info & Instructions'!$G$16=\"\",\"\",'Project Info & Instructions'!$G$16)","v":""},{"$f":"IF('Project Info & Instructions'!$G$17=\"\",\"\",'Project Info & Instructions'!$G$17)","v":""},{"$f":"IF('Project Info & Instructions'!$G$18=\"Enter Mix and Layer Info\",\"\",'Project Info & Instructions'!$G$18)","v":""},{"$f":"IF('Project Info & Instructions'!$G$19=\"\",\"\",'Project Info & Instructions'!$G$19)","v":""},{"$f":"IF('Project Info & Instructions'!$G$20=\"\",\"\",'Project Info & Instructions'!$G$20)","v":""},{"$f":"IF('Project Info & Instructions'!$G$21=\"\",\"\",'Project Info & Instructions'!$G$21)","v":""},{"$f":"IF('Project Info & Instructions'!$I$23=\"\",\"\",'Project Info & Instructions'!$I$23)","v":""},{"$f":"IF('Project Info & Instructions'!$G$22=\"\",\"\",'Project Info & Instructions'!$G$22)","v":""},{"$f":"IF('Project Info & Instructions'!$G$23=\"\",\"\",'Project Info & Instructions'!$G$23)","v":""}]
[]
[]
[null,"Volumetrics","Test Strip Pavement Layer:","QC Gmm",null,null,"QC Gmb",null,null,"QC Va",null,null,"QC AC%",null,null,"QV Gmm",null,null,"QV Gmb",null,null,"QV Va",null,null,"QV AC%",null,null,"BTS Gmm",null,null,"BTS Gmb",null,null,"BTS Va",null,null,"BTS AC%",null,null,"Air Voids Pay Factor"]
[null,null,null,"AVG ","STEDEV","COV","AVG ","STEDEV","COV","AVG ","STEDEV","COV","AVG ","STEDEV","COV","AVG ","STEDEV","COV","AVG ","STEDEV","COV","AVG ","STEDEV","COV","AVG ","STEDEV","COV","AVG ","STEDEV","COV","AVG ","STEDEV","COV","AVG ","STEDEV","COV","AVG ","STEDEV","COV","Data Set used for Pay","AVG","STDEV","PWLAV","PFAV","Lot Size (Ton)","Air Voids Pay Adjustment"]
[null,null,{"$f":"IF('Project Info & Instructions'!$G$16=\"\",\"\",'Project Info & Instructions'!$G$16)","v":""},{"$f":"IFERROR(AVERAGE('Split Sample Comparison'!$D$9:$D$11),\"\")","v":""},{"$f":"IFERROR(_xlfn.STDEV.P('Split Sample Comparison'!$D$9:$D$11),\"\")","v":""},{"$f":"IFERROR(E15/D15,\"\")","v":""},{"$f":"IFERROR(AVERAGE('Split Sample Comparison'!$D$19:$D$21),\"\")","v":""},{"$f":"IFERROR(_xlfn.STDEV.P('Split Sample Comparison'!$D$19:$D$21),\"\")","v":""},{"$f":"IFERROR(H15/G15,\"\")","v":""},{"$f":"IFERROR(AVERAGE('Split Sample Comparison'!$N$27:$N$29),\"\")","v":""},{"$f":"IFERROR(_xlfn.STDEV.P('Split Sample Comparison'!$N$27:$N$29),\"\")","v":""},{"$f":"IFERROR(K15/J15,\"\")","v":""},{"$f":"IFERROR(AVERAGE('AC % Data'!$D$9:$D$11),\"\")","v":""},{"$f":"IFERROR(_xlfn.STDEV.P('AC % Data'!$D$9:$D$11),\"\")","v":""},{"$f":"IFERROR(N15/M15,\"\")","v":""},{"$f":"IFERROR(AVERAGE('Split Sample Comparison'!$E$9:$E$11),\"\")","v":""},{"$f":"IFERROR(_xlfn.STDEV.P('Split Sample Comparison'!$E$9:$E$11),\"\")","v":""},{"$f":"IFERROR(Q15/P15,\"\")","v":""},{"$f":"IFERROR(AVERAGE('Split Sample Comparison'!$E$19:$E$21),\"\")","v":""},{"$f":"IFERROR(_xlfn.STDEV.P('Split Sample Comparison'!$E$19:$E$21),\"\")","v":""},{"$f":"IFERROR(T15/S15,\"\")","v":""},{"$f":"IFERROR(AVERAGE('Split Sample Comparison'!$O$27:$O$29),\"\")","v":""},{"$f":"IFERROR(_xlfn.STDEV.P('Split Sample Comparison'!$O$27:$O$29),\"\")","v":""},{"$f":"IFERROR(W15/V15,\"\")","v":""},{"$f":"IFERROR(AVERAGE('AC % Data'!$E$9:$E$11),\"\")","v":""},{"$f":"IFERROR(_xlfn.STDEV.P('AC % Data'!$E$9:$E$11),\"\")","v":""},{"$f":"IFERROR(Z15/Y15,\"\")","v":""},{"$f":"IFERROR(AVERAGE('Split Sample Comparison'!$K$9:$K$11),\"\")","v":""},{"$f":"IFERROR(_xlfn.STDEV.P('Split Sample Comparison'!$K$9:$K$11),\"\")","v":""},{"$f":"IFERROR(AC15/AB15,\"\")","v":""},{"$f":"IFERROR(AVERAGE('Split Sample Comparison'!$K$19:$K$21),\"\")","v":""},{"$f":"IFERROR(_xlfn.STDEV.P('Split Sample Comparison'!$K$19:$K$21),\"\")","v":""},{"$f":"IFERROR(AF15/AE15,\"\")","v":""},{"$f":"IFERROR(AVERAGE('Split Sample Comparison'!$P$27:$P$29),\"\")","v":""},{"$f":"IFERROR(_xlfn.STDEV.P('Split Sample Comparison'!$P$27:$P$29),\"\")","v":""},{"$f":"IFERROR(AI15/AH15,\"\")","v":""},{"$f":"IFERROR(AVERAGE('AC % Data'!$G$9:$G$11),\"\")","v":""},{"$f":"IFERROR(_xlfn.STDEV.P('AC % Data'!$G$9:$G$11),\"\")","v":""},{"$f":"IFERROR(AL15/AK15,\"\")","v":""},{"$f":"'Air Voids Pay Factor'!$D$12","v":"QC"},{"$f":"IF('Air Voids Pay Factor'!$H$9=\"\",\"\",'Air Voids Pay Factor'!$H$9)","v":""},{"$f":"IF('Air Voids Pay Factor'!$G$9=\"\",\"\",'Air Voids Pay Factor'!$G$9)","v":""},{"$f":"IF('Air Voids Pay Factor'!$R$9=\"\",\"\",'Air Voids Pay Factor'!$R$9)","v":""},{"$f":"IF('Air Voids Pay Factor'!$S$9=\"\",\"\",'Air Voids Pay Factor'!$S$9)","v":""},{"$f":"IF('Air Voids Pay Factor'!$T$9=\"\",\"\",'Air Voids Pay Factor'!$T$9)","v":""},{"$f":"IF('Air Voids Pay Factor'!$U$9=\"\",\"\",'Air Voids Pay Factor'!$U$9)","v":""}]
[]
[]
[null,"Mainline Nuclear Density","Summary",null,"Density",null,null,null,null,null,null,null,null,null,null,null,null,null,null,null,null,null,null,"Density Gauge Correlation"]
[null,null,"Test Strip Pavement Layer:","Density Lower Spec Limit(%):","QC Cores",null,null,"QV Cores",null,null,"Density Pay Factor",null,null,null,null,null,null,null,null,null,null,null,null,"QC-1",null,null,null,null,null,"QC-2",null,null,null,null,null,"QV-1",null,null,null,null,null,"QV-2"]
[null,null,null,null,"AVG ","STEDEV","COV","AVG ","STEDEV","COV","Gmm Used for Core Density:","Gmm Data Used:","Core Data Used:","Standard Deviation","Mean","Number of Tests in Lot","Quality Index","d2","x","PWLD","PFD","Lot Size (Ton)","Density Pay Adjustment","Gauge Serial #","Core Spread (%)","Gauge Spread (%)","Gauge Comp. Avg.","Gauge Recommendation","Gauge Offset","Gauge Serial #","Core Spread (%)","Gauge Spread (%)","Gauge Comp. Avg.","Gauge Recommendation","Gauge Offset","Gauge Serial #","Core Spread (%)","Gauge Spread (%)","Gauge Comp. Avg.","Gauge Recommendation","Gauge Offset","Gauge Serial #","Core Spread (%)","Gauge Spread (%)","Gauge Comp. Avg.","Gauge Recommendation","Gauge Offset"]
[null,null,{"$f":"IF('Project Info & Instructions'!$G$16=\"\",\"\",'Project Info & Instructions'!$G$16)","v":""},{"$f":"IF('Project Info & Instructions'!$G$18=\"Enter Mix and Layer Info\",\"\",'Project Info & Instructions'!$G$18)","v":""},{"$f":"IFERROR(AVERAGE('Core Data'!$H$11:$H$15,'Core Data'!$H$19:$H$23),\"\")","v":""},{"$f":"IFERROR(_xlfn.STDEV.P('Core Data'!$H$11:$H$15,'Core Data'!$H$19:$H$23),\"\")","v":""},{"$f":"IFERROR(F21/E21,\"\")","v":""},{"$f":"IFERROR(AVERAGE('Core Data'!$P$11:$P$15,'Core Data'!$P$19:$P$23),\"\")","v":""},{"$f":"IFERROR(_xlfn.STDEV.P('Core Data'!$P$11:$P$15,'Core Data'!$P$19:$P$23),\"\")","v":""},{"$f":"IFERROR(I21/H21,\"\")","v":""},{"$f":"IF('Density Pay Factor'!$D$19=\"\",\"\",'Density Pay Factor'!$D$19)","v":""},{"$f":"'Density Pay Factor'!$D$20","v":"QC"},{"$f":"'Density Pay Factor'!$D$21","v":"QC"},{"$f":"IF('Density Pay Factor'!$E$17=\"\",\"\",'Density Pay Factor'!$E$17)","v":""},{"$f":"IF('Density Pay Factor'!$F$17=\"\",\"\",'Density Pay Factor'!$F$17)","v":""},{"$f":"'Density Pay Factor'!$G$17","v":0},{"$f":"IFERROR('Density Pay Factor'!$H$17,\"\")","v":""},{"$f":"'Density Pay Factor'!$I$17","v":0},{"$f":"IFERROR('Density Pay Factor'!$J$17,\"\")","v":""},{"$f":"'Density Pay Factor'!$K$17","v":""},{"$f":"'Density Pay Factor'!$L$17","v":""},{"$f":"'Density Pay Factor'!$M$17","v":""},{"$f":"'Density Pay Factor'!$N$17","v":""},{"$f":"IF('Test Strip Summary'!$D$40=\"Enter Serial #\",\"\",'Test Strip Summary'!$D$40)","v":""},{"$f":"'Test Strip Summary'!$E$40","v":""},{"$f":"'Test Strip Summary'!$G$40","v":0},{"$f":"'Test Strip Summary'!$H$40","v":""},{"$f":"'Test Strip Summary'!$I$40","v":""},{"$f":"'Test Strip Summary'!$J$40","v":""},{"$f":"IF('Test Strip Summary'!$D$41=\"Enter Serial #\",\"\",'Test Strip Summary'!$D$41)","v":""},{"$f":"'Test Strip Summary'!$E$40","v":""},{"$f":"'Test Strip Summary'!$G$41","v":0},{"$f":"'Test Strip Summary'!$H$41","v":""},{"$f":"'Test Strip Summary'!$I$41","v":""},{"$f":"'Test Strip Summary'!$J$41","v":""},{"$f":"IF('Test Strip Summary'!$D$42=\"Enter Serial #\",\"\",'Test Strip Summary'!$D$42)","v":""},{"$f":"'Test Strip Summary'!$E$40","v":""},{"$f":"'Test Strip Summary'!$G$42","v":0},{"$f":"'Test Strip Summary'!$H$42","v":""},{"$f":"'Test Strip Summary'!$I$42","v":""},{"$f":"'Test Strip Summary'!$J$42","v":""},{"$f":"IF('Test Strip Summary'!$D$43=\"Enter Serial #\",\"\",'Test Strip Summary'!$D$43)","v":""},{"$f":"'Test Strip Summary'!$E$40","v":""},{"$f":"'Test Strip Summary'!$G$43","v":0},{"$f":"'Test Strip Summary'!$H$43","v":""},{"$f":"'Test Strip Summary'!$I$43","v":""},{"$f":"'Test Strip Summary'!$J$43","v":""}]